Workbook

Sheet roll
B15: Sl No | C15: Exam Roll No
B16: 1 | C16: 10001
B17: =B16+1 -> 2 | C17: 501
B18: =B17+1 -> 3 | C18: =C16+1 -> 10002
B19: 4 | C19: =C17+1 -> 502
B20: 5 | C20: =C18+1 -> 10003
B21: 6 | C21: 503
B22: 7 | C22: 10004
B23: 8 | C23: 504
B24: 9 | C24: 10005
B25: 10 | C25: 505
B26: 11 | C26: 10006
B27: 12 | C27: 506
B28: 13 | C28: 10007
B29: 14 | C29: 507
B30: 15 | C30: 10008
B31: 16 | C31: 508
B32: 17 | C32: 10009
B33: 18 | C33: 509
B34: 19 | C34: 10010
B35: 20 | C35: 510
B36: 21 | C36: 10011
B37: 22 | C37: 511
B38: 23 | C38: 10012
B39: 24 | C39: 512
B40: 25 | C40: 10013
B41: 26 | C41: 513
B42: 27 | C42: 10014
B43: 28 | C43: 514
B44: 29 | C44: 10015
B45: 30 | C45: 515
B46: 31 | C46: 10016
B47: 32 | C47: 516
B48: 33 | C48: 10017
B49: 34 | C49: 517
B50: 35 | C50: 10018
B51: 36 | C51: 518
B52: 37 | C52: 10019
B53: 38 | C53: 519
B54: 39 | C54: 10020
B55: 40 | C55: 520
B56: 41 | C56: 10021
B57: 42 | C57: 521
B58: 43 | C58: 10022
B59: 44 | C59: 522
B60: 45 | C60: 10023
B61: 46 | C61: 523
B62: 47 | C62: 10024
B63: 48 | C63: 524
B64: 49 | C64: 10025
B65: 50 | C65: 525
B66: 51 | C66: 10026
B67: 52 | C67: 526
B68: 53 | C68: 10027
B69: 54 | C69: 527
B70: 55 | C70: 10028
B71: 56 | C71: 528
B72: 57 | C72: 10029
B73: 58 | C73: 529
B74: 59 | C74: 10030
B75: 60 | C75: 530
B76: 61 | C76: 10031
B77: 62 | C77: 531
B78: 63 | C78: 10032
B79: 64 | C79: 532
B80: 65 | C80: 10033
B81: 66 | C81: 533
B82: =B81+1 -> 67 | C82: 10034
B83: 68 | C83: 534
B84: 69 | C84: =C82+1 -> 10035
B85: 70 | C85: 535
B86: 71 | C86: 10036
B87: 72 | C87: 536
B88: 73 | C88: 10037
B89: 74 | C89: 537
B90: 75 | C90: 10038
B91: 76 | C91: 538
B92: 77 | C92: 10039
B93: 78 | C93: 539
B94: 79 | C94: 10040
B95: 80 | C95: 540
B96: 81 | C96: 10041
B97: 82 | C97: 541
B98: 83 | C98: 10042
B99: 84 | C99: 542
B100: 85 | C100: 10043
B101: 86 | C101: 543
B102: 87 | C102: 10044
B103: 88 | C103: 544
B104: 89 | C104: 10045
B105: 90 | C105: 545
B106: 91 | C106: 10046
B107: 92 | C107: 546
B108: 93 | C108: 10047
B109: 94 | C109: 547
B110: 95 | C110: 10048
B111: 96 | C111: 548
B112: 97 | C112: 10049
B113: 98 | C113: 549
B114: 99 | C114: 10050
B115: 100 | C115: 550
B116: 101 | C116: 10051
B117: 102 | C117: 551
B118: 103 | C118: 10052
B119: 104 | C119: 552
B120: 105 | C120: 10053
B121: 106 | C121: 553
B122: 107 | C122: 10054
B123: 108 | C123: 554
B124: 109 | C124: 10055
B125: 110 | C125: 555
B126: 111 | C126: 10056
B127: 112 | C127: 556
B128: 113 | C128: 10057
B129: 114 | C129: 557
B130: 115 | C130: 10058
B131: 116 | C131: 558
B132: 117 | C132: 10059
B133: 118 | C133: 559
B134: 119 | C134: 10060
B135: 120 | C135: 560
B136: 121 | C136: 10061
B137: 122 | C137: 561
B138: 123 | C138: 10062
B139: 124 | C139: 562
B140: 125 | C140: 10063
B141: 126 | C141: 563
B142: 127 | C142: 10064
B143: 128 | C143: 564
B144: 129 | C144: 10065
B145: 130 | C145: 565
B146: =B145+1 -> 131 | C146: 10066
B147: 132 | C147: 566
B148: 133 | C148: =C146+1 -> 10067
B149: 134 | C149: 567
B150: 135 | C150: 10068
B151: 136 | C151: 568
B152: 137 | C152: 10069
B153: 138 | C153: 569
B154: 139 | C154: 10070
B155: 140 | C155: 570
B156: 141 | C156: 10071
B157: 142 | C157: 571
B158: 143 | C158: 10072
B159: 144 | C159: 572
B160: 145 | C160: 10073
B161: 146 | C161: 573
B162: 147 | C162: 10074
B163: 148 | C163: 574
B164: 149 | C164: 10075
B165: 150 | C165: 575
B166: 151 | C166: 10076
B167: 152 | C167: 576
B168: 153 | C168: 10077
B169: 154 | C169: 577
B170: 155 | C170: 10078
B171: 156 | C171: 578
B172: 157 | C172: 10079
B173: 158 | C173: 579
B174: 159 | C174: 10080
B175: 160 | C175: 580
B176: 161 | C176: 10081
B177: 162 | C177: 581
B178: 163 | C178: 10082
B179: 164 | C179: 582
B180: 165 | C180: 10083
B181: 166 | C181: 583
B182: 167 | C182: 10084
B183: 168 | C183: 584
B184: 169 | C184: 10085
B185: 170 | C185: 585
B186: 171 | C186: 10086
B187: 172 | C187: 586
B188: 173 | C188: 10087
B189: 174 | C189: 587
B190: 175 | C190: 10088
B191: 176 | C191: 588
B192: 177 | C192: 10089
B193: 178 | C193: 589
B194: 179 | C194: 10090
B195: 180 | C195: 590
B196: 181 | C196: 10091
B197: 182 | C197: 591
B198: 183 | C198: 10092
B199: 184 | C199: 592
B200: 185 | C200: 10093
B201: 186 | C201: 593
B202: 187 | C202: 10094
B203: 188 | C203: 594
B204: 189 | C204: 10095
B205: 190 | C205: 595
B206: 191 | C206: 10096
B207: 192 | C207: 596
B208: 193 | C208: 10097
B209: 194 | C209: 597
B210: =B209+1 -> 195 | C210: 10098
B211: 196 | C211: 598
B212: 197 | C212: =C210+1 -> 10099
B213: 198 | C213: 599
B214: 199 | C214: 10100
... 601 more rows

Sheet rn_01
B1: =$J$1 -> Class VIIITH Board Examination, 2025 | J1: Class VIIITH Board Examination, 2025 | K1: 1 | L1: 10 | M1: 5 | N1: 5 | O1: 6
B2: परीक्षा केंद्र नाम एवं परीक्षा केंद्र क्रमांक | J2: GSSS Malutana | K2: 2 | L2: 10 | M2: 3 | N2: 20 | O2: 4
B3: =$J$2&" ("&$J$3&")" -> GSSS Malutana (12345) | J3: 12345 | K3: 3 | L3: 10 | M3: 9 | N3: 4 | O3: 5
B4: परीक्षा कक्ष / हॉल क्रमांक | J4: XYZ | K4: 4 | L4: 15 | M4: 3 | N4: 4 | O4: 3
B5: =$K$1 -> 1 | J5: Principal | K5: 5 | L5: 17 | M5: 5 | N5: 5 | O5: 9
B6: परीक्षा दिनांक (दिवस) ... से ... तक | J6: ASD | K6: 6 | L6: 10 | M6: 3 | N6: 3 | O6: 3
B7: =TEXT($J$8,"DD-MM-YYYY") -> 01-03-2025 | C7: =IF(B7="","",TEXT(B7,"DDDD")) -> Saturday | D7: =TEXT($J$9,"DD-MM-YYYY") -> 22-05-2025 | E7: =IF(D7="","",TEXT(D7,"DDDD")) -> Thursday | J7: Lecturer | K7: 7 | L7: 19 | M7: 5 | N7: 5 | O7: 7
B8: परीक्षार्थी रोल नंबर ... से ... तक | J8: 01-Mar-2025 | K8: 8 | L8: 20 | M8: 3 | N8: 3 | O8: 20
B9: =IF(B14>0,B15,IF(C14>0,C15,IF(D14>0,D15,IF(E14>0,E15,0)))) -> 10001 | D9: =IF(E14>0,LOOKUP(2,1/(E15:E34<>""),E15:E34),IF(D14>0,LOOKUP(2,1/(D15:D34<>""),D15:D34),IF(C14>0,LOOKUP(2,1/(C15:C34<>""),C15:C34),IF(B14>0,LOOKUP(2,1/(B15:B34<>""),B15:B34),0)))) -> 513 | J9: 22-May-2025 | K9: 9 | L9: 20 | M9: 9 | N9: 8 | O9: 11
B10: कुल सम्मिलित परीक्षार्थी | K10: 10 | L10: 10 | M10: 6 | N10: 3 | O10: 12
B11: =COUNTIF(B15:E34,">0") -> 26
B12: परीक्षार्थी बैठक व्यवस्था
B13: पंक्ति 1 | C13: पंक्ति 2 | D13: पंक्ति 3 | E13: पंक्ति 4
B14: =L1 -> 10 | C14: =M1 -> 5 | D14: 5 | E14: 6
B15: =IF(ROW(B1)-1>=$B$14,"",OFFSET(INDIRECT(MID(CELL("filename",roll!$A$15),FIND("]",CELL("filename",roll!$A$15))+1,31)&"!"&ADDRESS(16,3,4)),ROW(B1)-1,0)) -> 10001 | C15: =IF(ROW(B1)-1>=$C$14,"",OFFSET(INDIRECT(MID(CELL("filename",roll!$A$15),FIND("]",CELL("filename",roll!$A$15))+1,31)&"!"&ADDRESS(16,3,4)),ROW(B1)-1+SUM($B$14:$B$14),0)) -> 10006 | D15: =IF(ROW(B1)-1>=$D$14,"",OFFSET(INDIRECT(MID(CELL("filename",roll!$A$15),FIND("]",CELL("filename",roll!$A$15))+1,31)&"!"&ADDRESS(16,3,4)),ROW(B1)-1+SUM($B$14:$C$14),0)) -> 508 | E15: =IF(ROW(B1)-1>=$E$14,"",OFFSET(INDIRECT(MID(CELL("filename",roll!$A$15),FIND("]",CELL("filename",roll!$A$15))+1,31)&"!"&ADDRESS(16,3,4)),ROW(B1)-1+SUM($B$14:$D$14),0)) -> 10011 | F15: =IF(SUM(B15:E15)>0,1,"") -> 1
B16: =IF(ROW(B2)-1>=$B$14,"",OFFSET(INDIRECT(MID(CELL("filename",roll!$A$15),FIND("]",CELL("filename",roll!$A$15))+1,31)&"!"&ADDRESS(16,3,4)),ROW(B2)-1,0)) -> 501 | C16: =IF(ROW(B2)-1>=$C$14,"",OFFSET(INDIRECT(MID(CELL("filename",roll!$A$15),FIND("]",CELL("filename",roll!$A$15))+1,31)&"!"&ADDRESS(16,3,4)),ROW(B2)-1+SUM($B$14:$B$14),0)) -> 506 | D16: =IF(ROW(B2)-1>=$D$14,"",OFFSET(INDIRECT(MID(CELL("filename",roll!$A$15),FIND("]",CELL("filename",roll!$A$15))+1,31)&"!"&ADDRESS(16,3,4)),ROW(B2)-1+SUM($B$14:$C$14),0)) -> 10009 | E16: =IF(ROW(B2)-1>=$E$14,"",OFFSET(INDIRECT(MID(CELL("filename",roll!$A$15),FIND("]",CELL("filename",roll!$A$15))+1,31)&"!"&ADDRESS(16,3,4)),ROW(B2)-1+SUM($B$14:$D$14),0)) -> 511 | F16: =IF(SUM(B16:E16)>0,1,"") -> 1
B17: =IF(ROW(B3)-1>=$B$14,"",OFFSET(INDIRECT(MID(CELL("filename",roll!$A$15),FIND("]",CELL("filename",roll!$A$15))+1,31)&"!"&ADDRESS(16,3,4)),ROW(B3)-1,0)) -> 10002 | C17: =IF(ROW(B3)-1>=$C$14,"",OFFSET(INDIRECT(MID(CELL("filename",roll!$A$15),FIND("]",CELL("filename",roll!$A$15))+1,31)&"!"&ADDRESS(16,3,4)),ROW(B3)-1+SUM($B$14:$B$14),0)) -> 10007 | D17: =IF(ROW(B3)-1>=$D$14,"",OFFSET(INDIRECT(MID(CELL("filename",roll!$A$15),FIND("]",CELL("filename",roll!$A$15))+1,31)&"!"&ADDRESS(16,3,4)),ROW(B3)-1+SUM($B$14:$C$14),0)) -> 509 | E17: =IF(ROW(B3)-1>=$E$14,"",OFFSET(INDIRECT(MID(CELL("filename",roll!$A$15),FIND("]",CELL("filename",roll!$A$15))+1,31)&"!"&ADDRESS(16,3,4)),ROW(B3)-1+SUM($B$14:$D$14),0)) -> 10012 | F17: 1
B18: =IF(ROW(B4)-1>=$B$14,"",OFFSET(INDIRECT(MID(CELL("filename",roll!$A$15),FIND("]",CELL("filename",roll!$A$15))+1,31)&"!"&ADDRESS(16,3,4)),ROW(B4)-1,0)) -> 502 | C18: =IF(ROW(B4)-1>=$C$14,"",OFFSET(INDIRECT(MID(CELL("filename",roll!$A$15),FIND("]",CELL("filename",roll!$A$15))+1,31)&"!"&ADDRESS(16,3,4)),ROW(B4)-1+SUM($B$14:$B$14),0)) -> 507 | D18: =IF(ROW(B4)-1>=$D$14,"",OFFSET(INDIRECT(MID(CELL("filename",roll!$A$15),FIND("]",CELL("filename",roll!$A$15))+1,31)&"!"&ADDRESS(16,3,4)),ROW(B4)-1+SUM($B$14:$C$14),0)) -> 10010 | E18: =IF(ROW(B4)-1>=$E$14,"",OFFSET(INDIRECT(MID(CELL("filename",roll!$A$15),FIND("]",CELL("filename",roll!$A$15))+1,31)&"!"&ADDRESS(16,3,4)),ROW(B4)-1+SUM($B$14:$D$14),0)) -> 512 | F18: 1
B19: =IF(ROW(B5)-1>=$B$14,"",OFFSET(INDIRECT(MID(CELL("filename",roll!$A$15),FIND("]",CELL("filename",roll!$A$15))+1,31)&"!"&ADDRESS(16,3,4)),ROW(B5)-1,0)) -> 10003 | C19: =IF(ROW(B5)-1>=$C$14,"",OFFSET(INDIRECT(MID(CELL("filename",roll!$A$15),FIND("]",CELL("filename",roll!$A$15))+1,31)&"!"&ADDRESS(16,3,4)),ROW(B5)-1+SUM($B$14:$B$14),0)) -> 10008 | D19: =IF(ROW(B5)-1>=$D$14,"",OFFSET(INDIRECT(MID(CELL("filename",roll!$A$15),FIND("]",CELL("filename",roll!$A$15))+1,31)&"!"&ADDRESS(16,3,4)),ROW(B5)-1+SUM($B$14:$C$14),0)) -> 510 | E19: =IF(ROW(B5)-1>=$E$14,"",OFFSET(INDIRECT(MID(CELL("filename",roll!$A$15),FIND("]",CELL("filename",roll!$A$15))+1,31)&"!"&ADDRESS(16,3,4)),ROW(B5)-1+SUM($B$14:$D$14),0)) -> 10013 | F19: 1
B20: =IF(ROW(B6)-1>=$B$14,"",OFFSET(INDIRECT(MID(CELL("filename",roll!$A$15),FIND("]",CELL("filename",roll!$A$15))+1,31)&"!"&ADDRESS(16,3,4)),ROW(B6)-1,0)) -> 503 | C20: =IF(ROW(B6)-1>=$C$14,"",OFFSET(INDIRECT(MID(CELL("filename",roll!$A$15),FIND("]",CELL("filename",roll!$A$15))+1,31)&"!"&ADDRESS(16,3,4)),ROW(B6)-1+SUM($B$14:$B$14),0)) ->  | D20: =IF(ROW(B6)-1>=$D$14,"",OFFSET(INDIRECT(MID(CELL("filename",roll!$A$15),FIND("]",CELL("filename",roll!$A$15))+1,31)&"!"&ADDRESS(16,3,4)),ROW(B6)-1+SUM($B$14:$C$14),0)) ->  | E20: =IF(ROW(B6)-1>=$E$14,"",OFFSET(INDIRECT(MID(CELL("filename",roll!$A$15),FIND("]",CELL("filename",roll!$A$15))+1,31)&"!"&ADDRESS(16,3,4)),ROW(B6)-1+SUM($B$14:$D$14),0)) -> 513 | F20: 1
B21: =IF(ROW(B7)-1>=$B$14,"",OFFSET(INDIRECT(MID(CELL("filename",roll!$A$15),FIND("]",CELL("filename",roll!$A$15))+1,31)&"!"&ADDRESS(16,3,4)),ROW(B7)-1,0)) -> 10004 | C21: =IF(ROW(B7)-1>=$C$14,"",OFFSET(INDIRECT(MID(CELL("filename",roll!$A$15),FIND("]",CELL("filename",roll!$A$15))+1,31)&"!"&ADDRESS(16,3,4)),ROW(B7)-1+SUM($B$14:$B$14),0)) ->  | D21: =IF(ROW(B7)-1>=$D$14,"",OFFSET(INDIRECT(MID(CELL("filename",roll!$A$15),FIND("]",CELL("filename",roll!$A$15))+1,31)&"!"&ADDRESS(16,3,4)),ROW(B7)-1+SUM($B$14:$C$14),0)) ->  | E21: =IF(ROW(B7)-1>=$E$14,"",OFFSET(INDIRECT(MID(CELL("filename",roll!$A$15),FIND("]",CELL("filename",roll!$A$15))+1,31)&"!"&ADDRESS(16,3,4)),ROW(B7)-1+SUM($B$14:$D$14),0)) ->  | F21: 1
B22: =IF(ROW(B8)-1>=$B$14,"",OFFSET(INDIRECT(MID(CELL("filename",roll!$A$15),FIND("]",CELL("filename",roll!$A$15))+1,31)&"!"&ADDRESS(16,3,4)),ROW(B8)-1,0)) -> 504 | C22: =IF(ROW(B8)-1>=$C$14,"",OFFSET(INDIRECT(MID(CELL("filename",roll!$A$15),FIND("]",CELL("filename",roll!$A$15))+1,31)&"!"&ADDRESS(16,3,4)),ROW(B8)-1+SUM($B$14:$B$14),0)) ->  | D22: =IF(ROW(B8)-1>=$D$14,"",OFFSET(INDIRECT(MID(CELL("filename",roll!$A$15),FIND("]",CELL("filename",roll!$A$15))+1,31)&"!"&ADDRESS(16,3,4)),ROW(B8)-1+SUM($B$14:$C$14),0)) ->  | E22: =IF(ROW(B8)-1>=$E$14,"",OFFSET(INDIRECT(MID(CELL("filename",roll!$A$15),FIND("]",CELL("filename",roll!$A$15))+1,31)&"!"&ADDRESS(16,3,4)),ROW(B8)-1+SUM($B$14:$D$14),0)) ->  | F22: 1
B23: =IF(ROW(B9)-1>=$B$14,"",OFFSET(INDIRECT(MID(CELL("filename",roll!$A$15),FIND("]",CELL("filename",roll!$A$15))+1,31)&"!"&ADDRESS(16,3,4)),ROW(B9)-1,0)) -> 10005 | C23: =IF(ROW(B9)-1>=$C$14,"",OFFSET(INDIRECT(MID(CELL("filename",roll!$A$15),FIND("]",CELL("filename",roll!$A$15))+1,31)&"!"&ADDRESS(16,3,4)),ROW(B9)-1+SUM($B$14:$B$14),0)) ->  | D23: =IF(ROW(B9)-1>=$D$14,"",OFFSET(INDIRECT(MID(CELL("filename",roll!$A$15),FIND("]",CELL("filename",roll!$A$15))+1,31)&"!"&ADDRESS(16,3,4)),ROW(B9)-1+SUM($B$14:$C$14),0)) ->  | E23: =IF(ROW(B9)-1>=$E$14,"",OFFSET(INDIRECT(MID(CELL("filename",roll!$A$15),FIND("]",CELL("filename",roll!$A$15))+1,31)&"!"&ADDRESS(16,3,4)),ROW(B9)-1+SUM($B$14:$D$14),0)) ->  | F23: 1
B24: =IF(ROW(B10)-1>=$B$14,"",OFFSET(INDIRECT(MID(CELL("filename",roll!$A$15),FIND("]",CELL("filename",roll!$A$15))+1,31)&"!"&ADDRESS(16,3,4)),ROW(B10)-1,0)) -> 505 | C24: =IF(ROW(B10)-1>=$C$14,"",OFFSET(INDIRECT(MID(CELL("filename",roll!$A$15),FIND("]",CELL("filename",roll!$A$15))+1,31)&"!"&ADDRESS(16,3,4)),ROW(B10)-1+SUM($B$14:$B$14),0)) ->  | D24: =IF(ROW(B10)-1>=$D$14,"",OFFSET(INDIRECT(MID(CELL("filename",roll!$A$15),FIND("]",CELL("filename",roll!$A$15))+1,31)&"!"&ADDRESS(16,3,4)),ROW(B10)-1+SUM($B$14:$C$14),0)) ->  | E24: =IF(ROW(B10)-1>=$E$14,"",OFFSET(INDIRECT(MID(CELL("filename",roll!$A$15),FIND("]",CELL("filename",roll!$A$15))+1,31)&"!"&ADDRESS(16,3,4)),ROW(B10)-1+SUM($B$14:$D$14),0)) ->  | F24: 1
B25: =IF(ROW(B11)-1>=$B$14,"",OFFSET(INDIRECT(MID(CELL("filename",roll!$A$15),FIND("]",CELL("filename",roll!$A$15))+1,31)&"!"&ADDRESS(16,3,4)),ROW(B11)-1,0)) ->  | C25: =IF(ROW(B11)-1>=$C$14,"",OFFSET(INDIRECT(MID(CELL("filename",roll!$A$15),FIND("]",CELL("filename",roll!$A$15))+1,31)&"!"&ADDRESS(16,3,4)),ROW(B11)-1+SUM($B$14:$B$14),0)) ->  | D25: =IF(ROW(B11)-1>=$D$14,"",OFFSET(INDIRECT(MID(CELL("filename",roll!$A$15),FIND("]",CELL("filename",roll!$A$15))+1,31)&"!"&ADDRESS(16,3,4)),ROW(B11)-1+SUM($B$14:$C$14),0)) ->  | E25: =IF(ROW(B11)-1>=$E$14,"",OFFSET(INDIRECT(MID(CELL("filename",roll!$A$15),FIND("]",CELL("filename",roll!$A$15))+1,31)&"!"&ADDRESS(16,3,4)),ROW(B11)-1+SUM($B$14:$D$14),0)) -> 
B26: =IF(ROW(B12)-1>=$B$14,"",OFFSET(INDIRECT(MID(CELL("filename",roll!$A$15),FIND("]",CELL("filename",roll!$A$15))+1,31)&"!"&ADDRESS(16,3,4)),ROW(B12)-1,0)) ->  | C26: =IF(ROW(B12)-1>=$C$14,"",OFFSET(INDIRECT(MID(CELL("filename",roll!$A$15),FIND("]",CELL("filename",roll!$A$15))+1,31)&"!"&ADDRESS(16,3,4)),ROW(B12)-1+SUM($B$14:$B$14),0)) ->  | D26: =IF(ROW(B12)-1>=$D$14,"",OFFSET(INDIRECT(MID(CELL("filename",roll!$A$15),FIND("]",CELL("filename",roll!$A$15))+1,31)&"!"&ADDRESS(16,3,4)),ROW(B12)-1+SUM($B$14:$C$14),0)) ->  | E26: =IF(ROW(B12)-1>=$E$14,"",OFFSET(INDIRECT(MID(CELL("filename",roll!$A$15),FIND("]",CELL("filename",roll!$A$15))+1,31)&"!"&ADDRESS(16,3,4)),ROW(B12)-1+SUM($B$14:$D$14),0)) -> 
B27: =IF(ROW(B13)-1>=$B$14,"",OFFSET(INDIRECT(MID(CELL("filename",roll!$A$15),FIND("]",CELL("filename",roll!$A$15))+1,31)&"!"&ADDRESS(16,3,4)),ROW(B13)-1,0)) ->  | C27: =IF(ROW(B13)-1>=$C$14,"",OFFSET(INDIRECT(MID(CELL("filename",roll!$A$15),FIND("]",CELL("filename",roll!$A$15))+1,31)&"!"&ADDRESS(16,3,4)),ROW(B13)-1+SUM($B$14:$B$14),0)) ->  | D27: =IF(ROW(B13)-1>=$D$14,"",OFFSET(INDIRECT(MID(CELL("filename",roll!$A$15),FIND("]",CELL("filename",roll!$A$15))+1,31)&"!"&ADDRESS(16,3,4)),ROW(B13)-1+SUM($B$14:$C$14),0)) ->  | E27: =IF(ROW(B13)-1>=$E$14,"",OFFSET(INDIRECT(MID(CELL("filename",roll!$A$15),FIND("]",CELL("filename",roll!$A$15))+1,31)&"!"&ADDRESS(16,3,4)),ROW(B13)-1+SUM($B$14:$D$14),0)) -> 
B28: =IF(ROW(B14)-1>=$B$14,"",OFFSET(INDIRECT(MID(CELL("filename",roll!$A$15),FIND("]",CELL("filename",roll!$A$15))+1,31)&"!"&ADDRESS(16,3,4)),ROW(B14)-1,0)) ->  | C28: =IF(ROW(B14)-1>=$C$14,"",OFFSET(INDIRECT(MID(CELL("filename",roll!$A$15),FIND("]",CELL("filename",roll!$A$15))+1,31)&"!"&ADDRESS(16,3,4)),ROW(B14)-1+SUM($B$14:$B$14),0)) ->  | D28: =IF(ROW(B14)-1>=$D$14,"",OFFSET(INDIRECT(MID(CELL("filename",roll!$A$15),FIND("]",CELL("filename",roll!$A$15))+1,31)&"!"&ADDRESS(16,3,4)),ROW(B14)-1+SUM($B$14:$C$14),0)) ->  | E28: =IF(ROW(B14)-1>=$E$14,"",OFFSET(INDIRECT(MID(CELL("filename",roll!$A$15),FIND("]",CELL("filename",roll!$A$15))+1,31)&"!"&ADDRESS(16,3,4)),ROW(B14)-1+SUM($B$14:$D$14),0)) -> 
B29: =IF(ROW(B15)-1>=$B$14,"",OFFSET(INDIRECT(MID(CELL("filename",roll!$A$15),FIND("]",CELL("filename",roll!$A$15))+1,31)&"!"&ADDRESS(16,3,4)),ROW(B15)-1,0)) ->  | C29: =IF(ROW(B15)-1>=$C$14,"",OFFSET(INDIRECT(MID(CELL("filename",roll!$A$15),FIND("]",CELL("filename",roll!$A$15))+1,31)&"!"&ADDRESS(16,3,4)),ROW(B15)-1+SUM($B$14:$B$14),0)) ->  | D29: =IF(ROW(B15)-1>=$D$14,"",OFFSET(INDIRECT(MID(CELL("filename",roll!$A$15),FIND("]",CELL("filename",roll!$A$15))+1,31)&"!"&ADDRESS(16,3,4)),ROW(B15)-1+SUM($B$14:$C$14),0)) ->  | E29: =IF(ROW(B15)-1>=$E$14,"",OFFSET(INDIRECT(MID(CELL("filename",roll!$A$15),FIND("]",CELL("filename",roll!$A$15))+1,31)&"!"&ADDRESS(16,3,4)),ROW(B15)-1+SUM($B$14:$D$14),0)) -> 
B30: =IF(ROW(B16)-1>=$B$14,"",OFFSET(INDIRECT(MID(CELL("filename",roll!$A$15),FIND("]",CELL("filename",roll!$A$15))+1,31)&"!"&ADDRESS(16,3,4)),ROW(B16)-1,0)) ->  | C30: =IF(ROW(B16)-1>=$C$14,"",OFFSET(INDIRECT(MID(CELL("filename",roll!$A$15),FIND("]",CELL("filename",roll!$A$15))+1,31)&"!"&ADDRESS(16,3,4)),ROW(B16)-1+SUM($B$14:$B$14),0)) ->  | D30: =IF(ROW(B16)-1>=$D$14,"",OFFSET(INDIRECT(MID(CELL("filename",roll!$A$15),FIND("]",CELL("filename",roll!$A$15))+1,31)&"!"&ADDRESS(16,3,4)),ROW(B16)-1+SUM($B$14:$C$14),0)) ->  | E30: =IF(ROW(B16)-1>=$E$14,"",OFFSET(INDIRECT(MID(CELL("filename",roll!$A$15),FIND("]",CELL("filename",roll!$A$15))+1,31)&"!"&ADDRESS(16,3,4)),ROW(B16)-1+SUM($B$14:$D$14),0)) -> 
B31: =IF(ROW(B17)-1>=$B$14,"",OFFSET(INDIRECT(MID(CELL("filename",roll!$A$15),FIND("]",CELL("filename",roll!$A$15))+1,31)&"!"&ADDRESS(16,3,4)),ROW(B17)-1,0)) ->  | C31: =IF(ROW(B17)-1>=$C$14,"",OFFSET(INDIRECT(MID(CELL("filename",roll!$A$15),FIND("]",CELL("filename",roll!$A$15))+1,31)&"!"&ADDRESS(16,3,4)),ROW(B17)-1+SUM($B$14:$B$14),0)) ->  | D31: =IF(ROW(B17)-1>=$D$14,"",OFFSET(INDIRECT(MID(CELL("filename",roll!$A$15),FIND("]",CELL("filename",roll!$A$15))+1,31)&"!"&ADDRESS(16,3,4)),ROW(B17)-1+SUM($B$14:$C$14),0)) ->  | E31: =IF(ROW(B17)-1>=$E$14,"",OFFSET(INDIRECT(MID(CELL("filename",roll!$A$15),FIND("]",CELL("filename",roll!$A$15))+1,31)&"!"&ADDRESS(16,3,4)),ROW(B17)-1+SUM($B$14:$D$14),0)) -> 
B32: =IF(ROW(B18)-1>=$B$14,"",OFFSET(INDIRECT(MID(CELL("filename",roll!$A$15),FIND("]",CELL("filename",roll!$A$15))+1,31)&"!"&ADDRESS(16,3,4)),ROW(B18)-1,0)) ->  | C32: =IF(ROW(B18)-1>=$C$14,"",OFFSET(INDIRECT(MID(CELL("filename",roll!$A$15),FIND("]",CELL("filename",roll!$A$15))+1,31)&"!"&ADDRESS(16,3,4)),ROW(B18)-1+SUM($B$14:$B$14),0)) ->  | D32: =IF(ROW(B18)-1>=$D$14,"",OFFSET(INDIRECT(MID(CELL("filename",roll!$A$15),FIND("]",CELL("filename",roll!$A$15))+1,31)&"!"&ADDRESS(16,3,4)),ROW(B18)-1+SUM($B$14:$C$14),0)) ->  | E32: =IF(ROW(B18)-1>=$E$14,"",OFFSET(INDIRECT(MID(CELL("filename",roll!$A$15),FIND("]",CELL("filename",roll!$A$15))+1,31)&"!"&ADDRESS(16,3,4)),ROW(B18)-1+SUM($B$14:$D$14),0)) -> 
B33: =IF(ROW(B19)-1>=$B$14,"",OFFSET(INDIRECT(MID(CELL("filename",roll!$A$15),FIND("]",CELL("filename",roll!$A$15))+1,31)&"!"&ADDRESS(16,3,4)),ROW(B19)-1,0)) ->  | C33: =IF(ROW(B19)-1>=$C$14,"",OFFSET(INDIRECT(MID(CELL("filename",roll!$A$15),FIND("]",CELL("filename",roll!$A$15))+1,31)&"!"&ADDRESS(16,3,4)),ROW(B19)-1+SUM($B$14:$B$14),0)) ->  | D33: =IF(ROW(B19)-1>=$D$14,"",OFFSET(INDIRECT(MID(CELL("filename",roll!$A$15),FIND("]",CELL("filename",roll!$A$15))+1,31)&"!"&ADDRESS(16,3,4)),ROW(B19)-1+SUM($B$14:$C$14),0)) ->  | E33: =IF(ROW(B19)-1>=$E$14,"",OFFSET(INDIRECT(MID(CELL("filename",roll!$A$15),FIND("]",CELL("filename",roll!$A$15))+1,31)&"!"&ADDRESS(16,3,4)),ROW(B19)-1+SUM($B$14:$D$14),0)) -> 
B34: =IF(ROW(B20)-1>=$B$14,"",OFFSET(INDIRECT(MID(CELL("filename",roll!$A$15),FIND("]",CELL("filename",roll!$A$15))+1,31)&"!"&ADDRESS(16,3,4)),ROW(B20)-1,0)) ->  | C34: =IF(ROW(B20)-1>=$C$14,"",OFFSET(INDIRECT(MID(CELL("filename",roll!$A$15),FIND("]",CELL("filename",roll!$A$15))+1,31)&"!"&ADDRESS(16,3,4)),ROW(B20)-1+SUM($B$14:$B$14),0)) ->  | D34: =IF(ROW(B20)-1>=$D$14,"",OFFSET(INDIRECT(MID(CELL("filename",roll!$A$15),FIND("]",CELL("filename",roll!$A$15))+1,31)&"!"&ADDRESS(16,3,4)),ROW(B20)-1+SUM($B$14:$C$14),0)) ->  | E34: =IF(ROW(B20)-1>=$E$14,"",OFFSET(INDIRECT(MID(CELL("filename",roll!$A$15),FIND("]",CELL("filename",roll!$A$15))+1,31)&"!"&ADDRESS(16,3,4)),ROW(B20)-1+SUM($B$14:$D$14),0)) -> 
B36: परीक्षा प्रभारी | E36: केन्द्राधीक्षक
B37: =$J$6&" ("&$J$7&")" -> ASD (Lecturer) | E37: =$J$4&" ("&$J$5&")" -> XYZ (Principal)

Sheet rn_02
B1: =rn_01!$B$1 -> Class VIIITH Board Examination, 2025
B2: परीक्षा केंद्र नाम एवं परीक्षा केंद्र क्रमांक
B3: =rn_01!$B$3 -> GSSS Malutana (12345)
B4: परीक्षा कक्ष / हॉल क्रमांक
B5: =rn_01!$K$2 -> 2
B6: परीक्षा दिनांक (दिवस) ... से ... तक
B7: =rn_01!$B$7 -> 01-03-2025 | C7: =IF(B7="","",TEXT(B7,"DDDD")) -> Saturday | D7: =rn_01!$D$7 -> 22-05-2025 | E7: =IF(D7="","",TEXT(D7,"DDDD")) -> Thursday
B8: परीक्षार्थी रोल नंबर ... से ... तक
B9: =IF(B14>0,B15,IF(C14>0,C15,IF(D14>0,D15,IF(E14>0,E15,0)))) -> 10014 | D9: =IF(E14>0,LOOKUP(2,1/(E15:E34<>""),E15:E34),IF(D14>0,LOOKUP(2,1/(D15:D34<>""),D15:D34),IF(C14>0,LOOKUP(2,1/(C15:C34<>""),C15:C34),IF(B14>0,LOOKUP(2,1/(B15:B34<>""),B15:B34),0)))) -> 10032
B10: कुल सम्मिलित परीक्षार्थी
B11: =COUNTIF($B$15:$E$34,">0") -> 37
B12: परीक्षार्थी बैठक व्यवस्था
B13: पंक्ति 1 | C13: पंक्ति 2 | D13: पंक्ति 3 | E13: पंक्ति 4
B14: =rn_01!L2 -> 10 | C14: =rn_01!M2 -> 3 | D14: =rn_01!N2 -> 20 | E14: =rn_01!O2 -> 4
B15: =IF(ROW(B1)-1>=$B$14,"",OFFSET(INDIRECT(MID(CELL("filename",roll!$A$15),FIND("]",CELL("filename",roll!$A$15))+1,31)&"!"&ADDRESS(MATCH(rn_01!$D$9,roll!C:C,0)+1,3,4)),ROW(B1)-1,0)) -> 10014 | C15: =IF(ROW(B1)-1>=$C$14,"",OFFSET(INDIRECT(MID(CELL("filename",roll!$A$15),FIND("]",CELL("filename",roll!$A$15))+1,31)&"!"&ADDRESS(MATCH(rn_01!$D$9,roll!C:C,0)+1,3,4)),ROW(B1)-1+SUM($B$14:$B$14),0)) -> 10019 | D15: =IF(ROW(B1)-1>=$D$14,"",OFFSET(INDIRECT(MID(CELL("filename",roll!$A$15),FIND("]",CELL("filename",roll!$A$15))+1,31)&"!"&ADDRESS(MATCH(rn_01!$D$9,roll!C:C,0)+1,3,4)),ROW(B1)-1+SUM($B$14:$C$14),0)) -> 520 | E15: =IF(ROW(B1)-1>=$E$14,"",OFFSET(INDIRECT(MID(CELL("filename",roll!$A$15),FIND("]",CELL("filename",roll!$A$15))+1,31)&"!"&ADDRESS(MATCH(rn_01!$D$9,roll!C:C,0)+1,3,4)),ROW(B1)-1+SUM($B$14:$D$14),0)) -> 530 | F15: =IF(SUM(B15:E15)>0,1,"") -> 1
B16: =IF(ROW(B2)-1>=$B$14,"",OFFSET(INDIRECT(MID(CELL("filename",roll!$A$15),FIND("]",CELL("filename",roll!$A$15))+1,31)&"!"&ADDRESS(MATCH(rn_01!$D$9,roll!C:C,0)+1,3,4)),ROW(B2)-1,0)) -> 514 | C16: =IF(ROW(B2)-1>=$C$14,"",OFFSET(INDIRECT(MID(CELL("filename",roll!$A$15),FIND("]",CELL("filename",roll!$A$15))+1,31)&"!"&ADDRESS(MATCH(rn_01!$D$9,roll!C:C,0)+1,3,4)),ROW(B2)-1+SUM($B$14:$B$14),0)) -> 519 | D16: =IF(ROW(B2)-1>=$D$14,"",OFFSET(INDIRECT(MID(CELL("filename",roll!$A$15),FIND("]",CELL("filename",roll!$A$15))+1,31)&"!"&ADDRESS(MATCH(rn_01!$D$9,roll!C:C,0)+1,3,4)),ROW(B2)-1+SUM($B$14:$C$14),0)) -> 10021 | E16: =IF(ROW(B2)-1>=$E$14,"",OFFSET(INDIRECT(MID(CELL("filename",roll!$A$15),FIND("]",CELL("filename",roll!$A$15))+1,31)&"!"&ADDRESS(MATCH(rn_01!$D$9,roll!C:C,0)+1,3,4)),ROW(B2)-1+SUM($B$14:$D$14),0)) -> 10031 | F16: =IF(SUM(B16:E16)>0,1,"") -> 1
B17: =IF(ROW(B3)-1>=$B$14,"",OFFSET(INDIRECT(MID(CELL("filename",roll!$A$15),FIND("]",CELL("filename",roll!$A$15))+1,31)&"!"&ADDRESS(MATCH(rn_01!$D$9,roll!C:C,0)+1,3,4)),ROW(B3)-1,0)) -> 10015 | C17: =IF(ROW(B3)-1>=$C$14,"",OFFSET(INDIRECT(MID(CELL("filename",roll!$A$15),FIND("]",CELL("filename",roll!$A$15))+1,31)&"!"&ADDRESS(MATCH(rn_01!$D$9,roll!C:C,0)+1,3,4)),ROW(B3)-1+SUM($B$14:$B$14),0)) -> 10020 | D17: =IF(ROW(B3)-1>=$D$14,"",OFFSET(INDIRECT(MID(CELL("filename",roll!$A$15),FIND("]",CELL("filename",roll!$A$15))+1,31)&"!"&ADDRESS(MATCH(rn_01!$D$9,roll!C:C,0)+1,3,4)),ROW(B3)-1+SUM($B$14:$C$14),0)) -> 521 | E17: =IF(ROW(B3)-1>=$E$14,"",OFFSET(INDIRECT(MID(CELL("filename",roll!$A$15),FIND("]",CELL("filename",roll!$A$15))+1,31)&"!"&ADDRESS(MATCH(rn_01!$D$9,roll!C:C,0)+1,3,4)),ROW(B3)-1+SUM($B$14:$D$14),0)) -> 531 | F17: 1
B18: =IF(ROW(B4)-1>=$B$14,"",OFFSET(INDIRECT(MID(CELL("filename",roll!$A$15),FIND("]",CELL("filename",roll!$A$15))+1,31)&"!"&ADDRESS(MATCH(rn_01!$D$9,roll!C:C,0)+1,3,4)),ROW(B4)-1,0)) -> 515 | C18: =IF(ROW(B4)-1>=$C$14,"",OFFSET(INDIRECT(MID(CELL("filename",roll!$A$15),FIND("]",CELL("filename",roll!$A$15))+1,31)&"!"&ADDRESS(MATCH(rn_01!$D$9,roll!C:C,0)+1,3,4)),ROW(B4)-1+SUM($B$14:$B$14),0)) ->  | D18: =IF(ROW(B4)-1>=$D$14,"",OFFSET(INDIRECT(MID(CELL("filename",roll!$A$15),FIND("]",CELL("filename",roll!$A$15))+1,31)&"!"&ADDRESS(MATCH(rn_01!$D$9,roll!C:C,0)+1,3,4)),ROW(B4)-1+SUM($B$14:$C$14),0)) -> 10022 | E18: =IF(ROW(B4)-1>=$E$14,"",OFFSET(INDIRECT(MID(CELL("filename",roll!$A$15),FIND("]",CELL("filename",roll!$A$15))+1,31)&"!"&ADDRESS(MATCH(rn_01!$D$9,roll!C:C,0)+1,3,4)),ROW(B4)-1+SUM($B$14:$D$14),0)) -> 10032 | F18: 1
B19: =IF(ROW(B5)-1>=$B$14,"",OFFSET(INDIRECT(MID(CELL("filename",roll!$A$15),FIND("]",CELL("filename",roll!$A$15))+1,31)&"!"&ADDRESS(MATCH(rn_01!$D$9,roll!C:C,0)+1,3,4)),ROW(B5)-1,0)) -> 10016 | C19: =IF(ROW(B5)-1>=$C$14,"",OFFSET(INDIRECT(MID(CELL("filename",roll!$A$15),FIND("]",CELL("filename",roll!$A$15))+1,31)&"!"&ADDRESS(MATCH(rn_01!$D$9,roll!C:C,0)+1,3,4)),ROW(B5)-1+SUM($B$14:$B$14),0)) ->  | D19: =IF(ROW(B5)-1>=$D$14,"",OFFSET(INDIRECT(MID(CELL("filename",roll!$A$15),FIND("]",CELL("filename",roll!$A$15))+1,31)&"!"&ADDRESS(MATCH(rn_01!$D$9,roll!C:C,0)+1,3,4)),ROW(B5)-1+SUM($B$14:$C$14),0)) -> 522 | E19: =IF(ROW(B5)-1>=$E$14,"",OFFSET(INDIRECT(MID(CELL("filename",roll!$A$15),FIND("]",CELL("filename",roll!$A$15))+1,31)&"!"&ADDRESS(MATCH(rn_01!$D$9,roll!C:C,0)+1,3,4)),ROW(B5)-1+SUM($B$14:$D$14),0)) ->  | F19: 1
B20: =IF(ROW(B6)-1>=$B$14,"",OFFSET(INDIRECT(MID(CELL("filename",roll!$A$15),FIND("]",CELL("filename",roll!$A$15))+1,31)&"!"&ADDRESS(MATCH(rn_01!$D$9,roll!C:C,0)+1,3,4)),ROW(B6)-1,0)) -> 516 | C20: =IF(ROW(B6)-1>=$C$14,"",OFFSET(INDIRECT(MID(CELL("filename",roll!$A$15),FIND("]",CELL("filename",roll!$A$15))+1,31)&"!"&ADDRESS(MATCH(rn_01!$D$9,roll!C:C,0)+1,3,4)),ROW(B6)-1+SUM($B$14:$B$14),0)) ->  | D20: =IF(ROW(B6)-1>=$D$14,"",OFFSET(INDIRECT(MID(CELL("filename",roll!$A$15),FIND("]",CELL("filename",roll!$A$15))+1,31)&"!"&ADDRESS(MATCH(rn_01!$D$9,roll!C:C,0)+1,3,4)),ROW(B6)-1+SUM($B$14:$C$14),0)) -> 10023 | E20: =IF(ROW(B6)-1>=$E$14,"",OFFSET(INDIRECT(MID(CELL("filename",roll!$A$15),FIND("]",CELL("filename",roll!$A$15))+1,31)&"!"&ADDRESS(MATCH(rn_01!$D$9,roll!C:C,0)+1,3,4)),ROW(B6)-1+SUM($B$14:$D$14),0)) ->  | F20: 1
B21: =IF(ROW(B7)-1>=$B$14,"",OFFSET(INDIRECT(MID(CELL("filename",roll!$A$15),FIND("]",CELL("filename",roll!$A$15))+1,31)&"!"&ADDRESS(MATCH(rn_01!$D$9,roll!C:C,0)+1,3,4)),ROW(B7)-1,0)) -> 10017 | C21: =IF(ROW(B7)-1>=$C$14,"",OFFSET(INDIRECT(MID(CELL("filename",roll!$A$15),FIND("]",CELL("filename",roll!$A$15))+1,31)&"!"&ADDRESS(MATCH(rn_01!$D$9,roll!C:C,0)+1,3,4)),ROW(B7)-1+SUM($B$14:$B$14),0)) ->  | D21: =IF(ROW(B7)-1>=$D$14,"",OFFSET(INDIRECT(MID(CELL("filename",roll!$A$15),FIND("]",CELL("filename",roll!$A$15))+1,31)&"!"&ADDRESS(MATCH(rn_01!$D$9,roll!C:C,0)+1,3,4)),ROW(B7)-1+SUM($B$14:$C$14),0)) -> 523 | E21: =IF(ROW(B7)-1>=$E$14,"",OFFSET(INDIRECT(MID(CELL("filename",roll!$A$15),FIND("]",CELL("filename",roll!$A$15))+1,31)&"!"&ADDRESS(MATCH(rn_01!$D$9,roll!C:C,0)+1,3,4)),ROW(B7)-1+SUM($B$14:$D$14),0)) ->  | F21: 1
B22: =IF(ROW(B8)-1>=$B$14,"",OFFSET(INDIRECT(MID(CELL("filename",roll!$A$15),FIND("]",CELL("filename",roll!$A$15))+1,31)&"!"&ADDRESS(MATCH(rn_01!$D$9,roll!C:C,0)+1,3,4)),ROW(B8)-1,0)) -> 517 | C22: =IF(ROW(B8)-1>=$C$14,"",OFFSET(INDIRECT(MID(CELL("filename",roll!$A$15),FIND("]",CELL("filename",roll!$A$15))+1,31)&"!"&ADDRESS(MATCH(rn_01!$D$9,roll!C:C,0)+1,3,4)),ROW(B8)-1+SUM($B$14:$B$14),0)) ->  | D22: =IF(ROW(B8)-1>=$D$14,"",OFFSET(INDIRECT(MID(CELL("filename",roll!$A$15),FIND("]",CELL("filename",roll!$A$15))+1,31)&"!"&ADDRESS(MATCH(rn_01!$D$9,roll!C:C,0)+1,3,4)),ROW(B8)-1+SUM($B$14:$C$14),0)) -> 10024 | E22: =IF(ROW(B8)-1>=$E$14,"",OFFSET(INDIRECT(MID(CELL("filename",roll!$A$15),FIND("]",CELL("filename",roll!$A$15))+1,31)&"!"&ADDRESS(MATCH(rn_01!$D$9,roll!C:C,0)+1,3,4)),ROW(B8)-1+SUM($B$14:$D$14),0)) ->  | F22: 1
B23: =IF(ROW(B9)-1>=$B$14,"",OFFSET(INDIRECT(MID(CELL("filename",roll!$A$15),FIND("]",CELL("filename",roll!$A$15))+1,31)&"!"&ADDRESS(MATCH(rn_01!$D$9,roll!C:C,0)+1,3,4)),ROW(B9)-1,0)) -> 10018 | C23: =IF(ROW(B9)-1>=$C$14,"",OFFSET(INDIRECT(MID(CELL("filename",roll!$A$15),FIND("]",CELL("filename",roll!$A$15))+1,31)&"!"&ADDRESS(MATCH(rn_01!$D$9,roll!C:C,0)+1,3,4)),ROW(B9)-1+SUM($B$14:$B$14),0)) ->  | D23: =IF(ROW(B9)-1>=$D$14,"",OFFSET(INDIRECT(MID(CELL("filename",roll!$A$15),FIND("]",CELL("filename",roll!$A$15))+1,31)&"!"&ADDRESS(MATCH(rn_01!$D$9,roll!C:C,0)+1,3,4)),ROW(B9)-1+SUM($B$14:$C$14),0)) -> 524 | E23: =IF(ROW(B9)-1>=$E$14,"",OFFSET(INDIRECT(MID(CELL("filename",roll!$A$15),FIND("]",CELL("filename",roll!$A$15))+1,31)&"!"&ADDRESS(MATCH(rn_01!$D$9,roll!C:C,0)+1,3,4)),ROW(B9)-1+SUM($B$14:$D$14),0)) ->  | F23: 1
B24: =IF(ROW(B10)-1>=$B$14,"",OFFSET(INDIRECT(MID(CELL("filename",roll!$A$15),FIND("]",CELL("filename",roll!$A$15))+1,31)&"!"&ADDRESS(MATCH(rn_01!$D$9,roll!C:C,0)+1,3,4)),ROW(B10)-1,0)) -> 518 | C24: =IF(ROW(B10)-1>=$C$14,"",OFFSET(INDIRECT(MID(CELL("filename",roll!$A$15),FIND("]",CELL("filename",roll!$A$15))+1,31)&"!"&ADDRESS(MATCH(rn_01!$D$9,roll!C:C,0)+1,3,4)),ROW(B10)-1+SUM($B$14:$B$14),0)) ->  | D24: =IF(ROW(B10)-1>=$D$14,"",OFFSET(INDIRECT(MID(CELL("filename",roll!$A$15),FIND("]",CELL("filename",roll!$A$15))+1,31)&"!"&ADDRESS(MATCH(rn_01!$D$9,roll!C:C,0)+1,3,4)),ROW(B10)-1+SUM($B$14:$C$14),0)) -> 10025 | E24: =IF(ROW(B10)-1>=$E$14,"",OFFSET(INDIRECT(MID(CELL("filename",roll!$A$15),FIND("]",CELL("filename",roll!$A$15))+1,31)&"!"&ADDRESS(MATCH(rn_01!$D$9,roll!C:C,0)+1,3,4)),ROW(B10)-1+SUM($B$14:$D$14),0)) ->  | F24: 1
B25: =IF(ROW(B11)-1>=$B$14,"",OFFSET(INDIRECT(MID(CELL("filename",roll!$A$15),FIND("]",CELL("filename",roll!$A$15))+1,31)&"!"&ADDRESS(MATCH(rn_01!$D$9,roll!C:C,0)+1,3,4)),ROW(B11)-1,0)) ->  | C25: =IF(ROW(B11)-1>=$C$14,"",OFFSET(INDIRECT(MID(CELL("filename",roll!$A$15),FIND("]",CELL("filename",roll!$A$15))+1,31)&"!"&ADDRESS(MATCH(rn_01!$D$9,roll!C:C,0)+1,3,4)),ROW(B11)-1+SUM($B$14:$B$14),0)) ->  | D25: =IF(ROW(B11)-1>=$D$14,"",OFFSET(INDIRECT(MID(CELL("filename",roll!$A$15),FIND("]",CELL("filename",roll!$A$15))+1,31)&"!"&ADDRESS(MATCH(rn_01!$D$9,roll!C:C,0)+1,3,4)),ROW(B11)-1+SUM($B$14:$C$14),0)) -> 525 | E25: =IF(ROW(B11)-1>=$E$14,"",OFFSET(INDIRECT(MID(CELL("filename",roll!$A$15),FIND("]",CELL("filename",roll!$A$15))+1,31)&"!"&ADDRESS(MATCH(rn_01!$D$9,roll!C:C,0)+1,3,4)),ROW(B11)-1+SUM($B$14:$D$14),0)) ->  | F25: 1
B26: =IF(ROW(B12)-1>=$B$14,"",OFFSET(INDIRECT(MID(CELL("filename",roll!$A$15),FIND("]",CELL("filename",roll!$A$15))+1,31)&"!"&ADDRESS(MATCH(rn_01!$D$9,roll!C:C,0)+1,3,4)),ROW(B12)-1,0)) ->  | C26: =IF(ROW(B12)-1>=$C$14,"",OFFSET(INDIRECT(MID(CELL("filename",roll!$A$15),FIND("]",CELL("filename",roll!$A$15))+1,31)&"!"&ADDRESS(MATCH(rn_01!$D$9,roll!C:C,0)+1,3,4)),ROW(B12)-1+SUM($B$14:$B$14),0)) ->  | D26: =IF(ROW(B12)-1>=$D$14,"",OFFSET(INDIRECT(MID(CELL("filename",roll!$A$15),FIND("]",CELL("filename",roll!$A$15))+1,31)&"!"&ADDRESS(MATCH(rn_01!$D$9,roll!C:C,0)+1,3,4)),ROW(B12)-1+SUM($B$14:$C$14),0)) -> 10026 | E26: =IF(ROW(B12)-1>=$E$14,"",OFFSET(INDIRECT(MID(CELL("filename",roll!$A$15),FIND("]",CELL("filename",roll!$A$15))+1,31)&"!"&ADDRESS(MATCH(rn_01!$D$9,roll!C:C,0)+1,3,4)),ROW(B12)-1+SUM($B$14:$D$14),0)) ->  | F26: 1
B27: =IF(ROW(B13)-1>=$B$14,"",OFFSET(INDIRECT(MID(CELL("filename",roll!$A$15),FIND("]",CELL("filename",roll!$A$15))+1,31)&"!"&ADDRESS(MATCH(rn_01!$D$9,roll!C:C,0)+1,3,4)),ROW(B13)-1,0)) ->  | C27: =IF(ROW(B13)-1>=$C$14,"",OFFSET(INDIRECT(MID(CELL("filename",roll!$A$15),FIND("]",CELL("filename",roll!$A$15))+1,31)&"!"&ADDRESS(MATCH(rn_01!$D$9,roll!C:C,0)+1,3,4)),ROW(B13)-1+SUM($B$14:$B$14),0)) ->  | D27: =IF(ROW(B13)-1>=$D$14,"",OFFSET(INDIRECT(MID(CELL("filename",roll!$A$15),FIND("]",CELL("filename",roll!$A$15))+1,31)&"!"&ADDRESS(MATCH(rn_01!$D$9,roll!C:C,0)+1,3,4)),ROW(B13)-1+SUM($B$14:$C$14),0)) -> 526 | E27: =IF(ROW(B13)-1>=$E$14,"",OFFSET(INDIRECT(MID(CELL("filename",roll!$A$15),FIND("]",CELL("filename",roll!$A$15))+1,31)&"!"&ADDRESS(MATCH(rn_01!$D$9,roll!C:C,0)+1,3,4)),ROW(B13)-1+SUM($B$14:$D$14),0)) ->  | F27: 1
B28: =IF(ROW(B14)-1>=$B$14,"",OFFSET(INDIRECT(MID(CELL("filename",roll!$A$15),FIND("]",CELL("filename",roll!$A$15))+1,31)&"!"&ADDRESS(MATCH(rn_01!$D$9,roll!C:C,0)+1,3,4)),ROW(B14)-1,0)) ->  | C28: =IF(ROW(B14)-1>=$C$14,"",OFFSET(INDIRECT(MID(CELL("filename",roll!$A$15),FIND("]",CELL("filename",roll!$A$15))+1,31)&"!"&ADDRESS(MATCH(rn_01!$D$9,roll!C:C,0)+1,3,4)),ROW(B14)-1+SUM($B$14:$B$14),0)) ->  | D28: =IF(ROW(B14)-1>=$D$14,"",OFFSET(INDIRECT(MID(CELL("filename",roll!$A$15),FIND("]",CELL("filename",roll!$A$15))+1,31)&"!"&ADDRESS(MATCH(rn_01!$D$9,roll!C:C,0)+1,3,4)),ROW(B14)-1+SUM($B$14:$C$14),0)) -> 10027 | E28: =IF(ROW(B14)-1>=$E$14,"",OFFSET(INDIRECT(MID(CELL("filename",roll!$A$15),FIND("]",CELL("filename",roll!$A$15))+1,31)&"!"&ADDRESS(MATCH(rn_01!$D$9,roll!C:C,0)+1,3,4)),ROW(B14)-1+SUM($B$14:$D$14),0)) ->  | F28: 1
B29: =IF(ROW(B15)-1>=$B$14,"",OFFSET(INDIRECT(MID(CELL("filename",roll!$A$15),FIND("]",CELL("filename",roll!$A$15))+1,31)&"!"&ADDRESS(MATCH(rn_01!$D$9,roll!C:C,0)+1,3,4)),ROW(B15)-1,0)) ->  | C29: =IF(ROW(B15)-1>=$C$14,"",OFFSET(INDIRECT(MID(CELL("filename",roll!$A$15),FIND("]",CELL("filename",roll!$A$15))+1,31)&"!"&ADDRESS(MATCH(rn_01!$D$9,roll!C:C,0)+1,3,4)),ROW(B15)-1+SUM($B$14:$B$14),0)) ->  | D29: =IF(ROW(B15)-1>=$D$14,"",OFFSET(INDIRECT(MID(CELL("filename",roll!$A$15),FIND("]",CELL("filename",roll!$A$15))+1,31)&"!"&ADDRESS(MATCH(rn_01!$D$9,roll!C:C,0)+1,3,4)),ROW(B15)-1+SUM($B$14:$C$14),0)) -> 527 | E29: =IF(ROW(B15)-1>=$E$14,"",OFFSET(INDIRECT(MID(CELL("filename",roll!$A$15),FIND("]",CELL("filename",roll!$A$15))+1,31)&"!"&ADDRESS(MATCH(rn_01!$D$9,roll!C:C,0)+1,3,4)),ROW(B15)-1+SUM($B$14:$D$14),0)) ->  | F29: 1
B30: =IF(ROW(B16)-1>=$B$14,"",OFFSET(INDIRECT(MID(CELL("filename",roll!$A$15),FIND("]",CELL("filename",roll!$A$15))+1,31)&"!"&ADDRESS(MATCH(rn_01!$D$9,roll!C:C,0)+1,3,4)),ROW(B16)-1,0)) ->  | C30: =IF(ROW(B16)-1>=$C$14,"",OFFSET(INDIRECT(MID(CELL("filename",roll!$A$15),FIND("]",CELL("filename",roll!$A$15))+1,31)&"!"&ADDRESS(MATCH(rn_01!$D$9,roll!C:C,0)+1,3,4)),ROW(B16)-1+SUM($B$14:$B$14),0)) ->  | D30: =IF(ROW(B16)-1>=$D$14,"",OFFSET(INDIRECT(MID(CELL("filename",roll!$A$15),FIND("]",CELL("filename",roll!$A$15))+1,31)&"!"&ADDRESS(MATCH(rn_01!$D$9,roll!C:C,0)+1,3,4)),ROW(B16)-1+SUM($B$14:$C$14),0)) -> 10028 | E30: =IF(ROW(B16)-1>=$E$14,"",OFFSET(INDIRECT(MID(CELL("filename",roll!$A$15),FIND("]",CELL("filename",roll!$A$15))+1,31)&"!"&ADDRESS(MATCH(rn_01!$D$9,roll!C:C,0)+1,3,4)),ROW(B16)-1+SUM($B$14:$D$14),0)) ->  | F30: 1
B31: =IF(ROW(B17)-1>=$B$14,"",OFFSET(INDIRECT(MID(CELL("filename",roll!$A$15),FIND("]",CELL("filename",roll!$A$15))+1,31)&"!"&ADDRESS(MATCH(rn_01!$D$9,roll!C:C,0)+1,3,4)),ROW(B17)-1,0)) ->  | C31: =IF(ROW(B17)-1>=$C$14,"",OFFSET(INDIRECT(MID(CELL("filename",roll!$A$15),FIND("]",CELL("filename",roll!$A$15))+1,31)&"!"&ADDRESS(MATCH(rn_01!$D$9,roll!C:C,0)+1,3,4)),ROW(B17)-1+SUM($B$14:$B$14),0)) ->  | D31: =IF(ROW(B17)-1>=$D$14,"",OFFSET(INDIRECT(MID(CELL("filename",roll!$A$15),FIND("]",CELL("filename",roll!$A$15))+1,31)&"!"&ADDRESS(MATCH(rn_01!$D$9,roll!C:C,0)+1,3,4)),ROW(B17)-1+SUM($B$14:$C$14),0)) -> 528 | E31: =IF(ROW(B17)-1>=$E$14,"",OFFSET(INDIRECT(MID(CELL("filename",roll!$A$15),FIND("]",CELL("filename",roll!$A$15))+1,31)&"!"&ADDRESS(MATCH(rn_01!$D$9,roll!C:C,0)+1,3,4)),ROW(B17)-1+SUM($B$14:$D$14),0)) ->  | F31: 1
B32: =IF(ROW(B18)-1>=$B$14,"",OFFSET(INDIRECT(MID(CELL("filename",roll!$A$15),FIND("]",CELL("filename",roll!$A$15))+1,31)&"!"&ADDRESS(MATCH(rn_01!$D$9,roll!C:C,0)+1,3,4)),ROW(B18)-1,0)) ->  | C32: =IF(ROW(B18)-1>=$C$14,"",OFFSET(INDIRECT(MID(CELL("filename",roll!$A$15),FIND("]",CELL("filename",roll!$A$15))+1,31)&"!"&ADDRESS(MATCH(rn_01!$D$9,roll!C:C,0)+1,3,4)),ROW(B18)-1+SUM($B$14:$B$14),0)) ->  | D32: =IF(ROW(B18)-1>=$D$14,"",OFFSET(INDIRECT(MID(CELL("filename",roll!$A$15),FIND("]",CELL("filename",roll!$A$15))+1,31)&"!"&ADDRESS(MATCH(rn_01!$D$9,roll!C:C,0)+1,3,4)),ROW(B18)-1+SUM($B$14:$C$14),0)) -> 10029 | E32: =IF(ROW(B18)-1>=$E$14,"",OFFSET(INDIRECT(MID(CELL("filename",roll!$A$15),FIND("]",CELL("filename",roll!$A$15))+1,31)&"!"&ADDRESS(MATCH(rn_01!$D$9,roll!C:C,0)+1,3,4)),ROW(B18)-1+SUM($B$14:$D$14),0)) ->  | F32: 1
B33: =IF(ROW(B19)-1>=$B$14,"",OFFSET(INDIRECT(MID(CELL("filename",roll!$A$15),FIND("]",CELL("filename",roll!$A$15))+1,31)&"!"&ADDRESS(MATCH(rn_01!$D$9,roll!C:C,0)+1,3,4)),ROW(B19)-1,0)) ->  | C33: =IF(ROW(B19)-1>=$C$14,"",OFFSET(INDIRECT(MID(CELL("filename",roll!$A$15),FIND("]",CELL("filename",roll!$A$15))+1,31)&"!"&ADDRESS(MATCH(rn_01!$D$9,roll!C:C,0)+1,3,4)),ROW(B19)-1+SUM($B$14:$B$14),0)) ->  | D33: =IF(ROW(B19)-1>=$D$14,"",OFFSET(INDIRECT(MID(CELL("filename",roll!$A$15),FIND("]",CELL("filename",roll!$A$15))+1,31)&"!"&ADDRESS(MATCH(rn_01!$D$9,roll!C:C,0)+1,3,4)),ROW(B19)-1+SUM($B$14:$C$14),0)) -> 529 | E33: =IF(ROW(B19)-1>=$E$14,"",OFFSET(INDIRECT(MID(CELL("filename",roll!$A$15),FIND("]",CELL("filename",roll!$A$15))+1,31)&"!"&ADDRESS(MATCH(rn_01!$D$9,roll!C:C,0)+1,3,4)),ROW(B19)-1+SUM($B$14:$D$14),0)) ->  | F33: 1
B34: =IF(ROW(B20)-1>=$B$14,"",OFFSET(INDIRECT(MID(CELL("filename",roll!$A$15),FIND("]",CELL("filename",roll!$A$15))+1,31)&"!"&ADDRESS(MATCH(rn_01!$D$9,roll!C:C,0)+1,3,4)),ROW(B20)-1,0)) ->  | C34: =IF(ROW(B20)-1>=$C$14,"",OFFSET(INDIRECT(MID(CELL("filename",roll!$A$15),FIND("]",CELL("filename",roll!$A$15))+1,31)&"!"&ADDRESS(MATCH(rn_01!$D$9,roll!C:C,0)+1,3,4)),ROW(B20)-1+SUM($B$14:$B$14),0)) ->  | D34: =IF(ROW(B20)-1>=$D$14,"",OFFSET(INDIRECT(MID(CELL("filename",roll!$A$15),FIND("]",CELL("filename",roll!$A$15))+1,31)&"!"&ADDRESS(MATCH(rn_01!$D$9,roll!C:C,0)+1,3,4)),ROW(B20)-1+SUM($B$14:$C$14),0)) -> 10030 | E34: =IF(ROW(B20)-1>=$E$14,"",OFFSET(INDIRECT(MID(CELL("filename",roll!$A$15),FIND("]",CELL("filename",roll!$A$15))+1,31)&"!"&ADDRESS(MATCH(rn_01!$D$9,roll!C:C,0)+1,3,4)),ROW(B20)-1+SUM($B$14:$D$14),0)) ->  | F34: 1
B36: परीक्षा प्रभारी | E36: केन्द्राधीक्षक
B37: =rn_01!$B$37 -> ASD (Lecturer) | E37: =rn_01!$E$37 -> XYZ (Principal)

Sheet rn_03
B1: =rn_01!$B$1 -> Class VIIITH Board Examination, 2025
B2: परीक्षा केंद्र नाम एवं परीक्षा केंद्र क्रमांक
B3: =rn_01!$B$3 -> GSSS Malutana (12345)
B4: परीक्षा कक्ष / हॉल क्रमांक
B5: =rn_01!$K$3 -> 3
B6: परीक्षा दिनांक (दिवस) ... से ... तक
B7: =rn_01!$B$7 -> 01-03-2025 | C7: =IF(B7="","",TEXT(B7,"DDDD")) -> Saturday | D7: =rn_01!$D$7 -> 22-05-2025 | E7: =IF(D7="","",TEXT(D7,"DDDD")) -> Thursday
B8: परीक्षार्थी रोल नंबर ... से ... तक
B9: =IF(B14>0,B15,IF(C14>0,C15,IF(D14>0,D15,IF(E14>0,E15,0)))) -> 532 | D9: =IF(E14>0,LOOKUP(2,1/(E15:E34<>""),E15:E34),IF(D14>0,LOOKUP(2,1/(D15:D34<>""),D15:D34),IF(C14>0,LOOKUP(2,1/(C15:C34<>""),C15:C34),IF(B14>0,LOOKUP(2,1/(B15:B34<>""),B15:B34),0)))) -> 10046
B10: कुल सम्मिलित परीक्षार्थी
B11: =COUNTIF($B$15:$E$34,">0") -> 28
B12: परीक्षार्थी बैठक व्यवस्था
B13: पंक्ति 1 | C13: पंक्ति 2 | D13: पंक्ति 3 | E13: पंक्ति 4
B14: =rn_01!L3 -> 10 | C14: =rn_01!M3 -> 9 | D14: =rn_01!N3 -> 4 | E14: =rn_01!O3 -> 5
B15: =IF(ROW(B1)-1>=$B$14,"",OFFSET(INDIRECT(MID(CELL("filename",roll!$A$15),FIND("]",CELL("filename",roll!$A$15))+1,31)&"!"&ADDRESS(MATCH(rn_02!$D$9,roll!C:C,0)+1,3,4)),ROW(B1)-1,0)) -> 532 | C15: =IF(ROW(B1)-1>=$C$14,"",OFFSET(INDIRECT(MID(CELL("filename",roll!$A$15),FIND("]",CELL("filename",roll!$A$15))+1,31)&"!"&ADDRESS(MATCH(rn_02!$D$9,roll!C:C,0)+1,3,4)),ROW(B1)-1+SUM($B$14:$B$14),0)) -> 537 | D15: =IF(ROW(B1)-1>=$D$14,"",OFFSET(INDIRECT(MID(CELL("filename",roll!$A$15),FIND("]",CELL("filename",roll!$A$15))+1,31)&"!"&ADDRESS(MATCH(rn_02!$D$9,roll!C:C,0)+1,3,4)),ROW(B1)-1+SUM($B$14:$C$14),0)) -> 10042 | E15: =IF(ROW(B1)-1>=$E$14,"",OFFSET(INDIRECT(MID(CELL("filename",roll!$A$15),FIND("]",CELL("filename",roll!$A$15))+1,31)&"!"&ADDRESS(MATCH(rn_02!$D$9,roll!C:C,0)+1,3,4)),ROW(B1)-1+SUM($B$14:$D$14),0)) -> 10044 | F15: =IF(SUM(B15:E15)>0,1,"") -> 1
B16: =IF(ROW(B2)-1>=$B$14,"",OFFSET(INDIRECT(MID(CELL("filename",roll!$A$15),FIND("]",CELL("filename",roll!$A$15))+1,31)&"!"&ADDRESS(MATCH(rn_02!$D$9,roll!C:C,0)+1,3,4)),ROW(B2)-1,0)) -> 10033 | C16: =IF(ROW(B2)-1>=$C$14,"",OFFSET(INDIRECT(MID(CELL("filename",roll!$A$15),FIND("]",CELL("filename",roll!$A$15))+1,31)&"!"&ADDRESS(MATCH(rn_02!$D$9,roll!C:C,0)+1,3,4)),ROW(B2)-1+SUM($B$14:$B$14),0)) -> 10038 | D16: =IF(ROW(B2)-1>=$D$14,"",OFFSET(INDIRECT(MID(CELL("filename",roll!$A$15),FIND("]",CELL("filename",roll!$A$15))+1,31)&"!"&ADDRESS(MATCH(rn_02!$D$9,roll!C:C,0)+1,3,4)),ROW(B2)-1+SUM($B$14:$C$14),0)) -> 542 | E16: =IF(ROW(B2)-1>=$E$14,"",OFFSET(INDIRECT(MID(CELL("filename",roll!$A$15),FIND("]",CELL("filename",roll!$A$15))+1,31)&"!"&ADDRESS(MATCH(rn_02!$D$9,roll!C:C,0)+1,3,4)),ROW(B2)-1+SUM($B$14:$D$14),0)) -> 544 | F16: =IF(SUM(B16:E16)>0,1,"") -> 1
B17: =IF(ROW(B3)-1>=$B$14,"",OFFSET(INDIRECT(MID(CELL("filename",roll!$A$15),FIND("]",CELL("filename",roll!$A$15))+1,31)&"!"&ADDRESS(MATCH(rn_02!$D$9,roll!C:C,0)+1,3,4)),ROW(B3)-1,0)) -> 533 | C17: =IF(ROW(B3)-1>=$C$14,"",OFFSET(INDIRECT(MID(CELL("filename",roll!$A$15),FIND("]",CELL("filename",roll!$A$15))+1,31)&"!"&ADDRESS(MATCH(rn_02!$D$9,roll!C:C,0)+1,3,4)),ROW(B3)-1+SUM($B$14:$B$14),0)) -> 538 | D17: =IF(ROW(B3)-1>=$D$14,"",OFFSET(INDIRECT(MID(CELL("filename",roll!$A$15),FIND("]",CELL("filename",roll!$A$15))+1,31)&"!"&ADDRESS(MATCH(rn_02!$D$9,roll!C:C,0)+1,3,4)),ROW(B3)-1+SUM($B$14:$C$14),0)) -> 10043 | E17: =IF(ROW(B3)-1>=$E$14,"",OFFSET(INDIRECT(MID(CELL("filename",roll!$A$15),FIND("]",CELL("filename",roll!$A$15))+1,31)&"!"&ADDRESS(MATCH(rn_02!$D$9,roll!C:C,0)+1,3,4)),ROW(B3)-1+SUM($B$14:$D$14),0)) -> 10045 | F17: 1
B18: =IF(ROW(B4)-1>=$B$14,"",OFFSET(INDIRECT(MID(CELL("filename",roll!$A$15),FIND("]",CELL("filename",roll!$A$15))+1,31)&"!"&ADDRESS(MATCH(rn_02!$D$9,roll!C:C,0)+1,3,4)),ROW(B4)-1,0)) -> 10034 | C18: =IF(ROW(B4)-1>=$C$14,"",OFFSET(INDIRECT(MID(CELL("filename",roll!$A$15),FIND("]",CELL("filename",roll!$A$15))+1,31)&"!"&ADDRESS(MATCH(rn_02!$D$9,roll!C:C,0)+1,3,4)),ROW(B4)-1+SUM($B$14:$B$14),0)) -> 10039 | D18: =IF(ROW(B4)-1>=$D$14,"",OFFSET(INDIRECT(MID(CELL("filename",roll!$A$15),FIND("]",CELL("filename",roll!$A$15))+1,31)&"!"&ADDRESS(MATCH(rn_02!$D$9,roll!C:C,0)+1,3,4)),ROW(B4)-1+SUM($B$14:$C$14),0)) -> 543 | E18: =IF(ROW(B4)-1>=$E$14,"",OFFSET(INDIRECT(MID(CELL("filename",roll!$A$15),FIND("]",CELL("filename",roll!$A$15))+1,31)&"!"&ADDRESS(MATCH(rn_02!$D$9,roll!C:C,0)+1,3,4)),ROW(B4)-1+SUM($B$14:$D$14),0)) -> 545 | F18: 1
B19: =IF(ROW(B5)-1>=$B$14,"",OFFSET(INDIRECT(MID(CELL("filename",roll!$A$15),FIND("]",CELL("filename",roll!$A$15))+1,31)&"!"&ADDRESS(MATCH(rn_02!$D$9,roll!C:C,0)+1,3,4)),ROW(B5)-1,0)) -> 534 | C19: =IF(ROW(B5)-1>=$C$14,"",OFFSET(INDIRECT(MID(CELL("filename",roll!$A$15),FIND("]",CELL("filename",roll!$A$15))+1,31)&"!"&ADDRESS(MATCH(rn_02!$D$9,roll!C:C,0)+1,3,4)),ROW(B5)-1+SUM($B$14:$B$14),0)) -> 539 | D19: =IF(ROW(B5)-1>=$D$14,"",OFFSET(INDIRECT(MID(CELL("filename",roll!$A$15),FIND("]",CELL("filename",roll!$A$15))+1,31)&"!"&ADDRESS(MATCH(rn_02!$D$9,roll!C:C,0)+1,3,4)),ROW(B5)-1+SUM($B$14:$C$14),0)) ->  | E19: =IF(ROW(B5)-1>=$E$14,"",OFFSET(INDIRECT(MID(CELL("filename",roll!$A$15),FIND("]",CELL("filename",roll!$A$15))+1,31)&"!"&ADDRESS(MATCH(rn_02!$D$9,roll!C:C,0)+1,3,4)),ROW(B5)-1+SUM($B$14:$D$14),0)) -> 10046 | F19: 1
B20: =IF(ROW(B6)-1>=$B$14,"",OFFSET(INDIRECT(MID(CELL("filename",roll!$A$15),FIND("]",CELL("filename",roll!$A$15))+1,31)&"!"&ADDRESS(MATCH(rn_02!$D$9,roll!C:C,0)+1,3,4)),ROW(B6)-1,0)) -> 10035 | C20: =IF(ROW(B6)-1>=$C$14,"",OFFSET(INDIRECT(MID(CELL("filename",roll!$A$15),FIND("]",CELL("filename",roll!$A$15))+1,31)&"!"&ADDRESS(MATCH(rn_02!$D$9,roll!C:C,0)+1,3,4)),ROW(B6)-1+SUM($B$14:$B$14),0)) -> 10040 | D20: =IF(ROW(B6)-1>=$D$14,"",OFFSET(INDIRECT(MID(CELL("filename",roll!$A$15),FIND("]",CELL("filename",roll!$A$15))+1,31)&"!"&ADDRESS(MATCH(rn_02!$D$9,roll!C:C,0)+1,3,4)),ROW(B6)-1+SUM($B$14:$C$14),0)) ->  | E20: =IF(ROW(B6)-1>=$E$14,"",OFFSET(INDIRECT(MID(CELL("filename",roll!$A$15),FIND("]",CELL("filename",roll!$A$15))+1,31)&"!"&ADDRESS(MATCH(rn_02!$D$9,roll!C:C,0)+1,3,4)),ROW(B6)-1+SUM($B$14:$D$14),0)) ->  | F20: 1
B21: =IF(ROW(B7)-1>=$B$14,"",OFFSET(INDIRECT(MID(CELL("filename",roll!$A$15),FIND("]",CELL("filename",roll!$A$15))+1,31)&"!"&ADDRESS(MATCH(rn_02!$D$9,roll!C:C,0)+1,3,4)),ROW(B7)-1,0)) -> 535 | C21: =IF(ROW(B7)-1>=$C$14,"",OFFSET(INDIRECT(MID(CELL("filename",roll!$A$15),FIND("]",CELL("filename",roll!$A$15))+1,31)&"!"&ADDRESS(MATCH(rn_02!$D$9,roll!C:C,0)+1,3,4)),ROW(B7)-1+SUM($B$14:$B$14),0)) -> 540 | D21: =IF(ROW(B7)-1>=$D$14,"",OFFSET(INDIRECT(MID(CELL("filename",roll!$A$15),FIND("]",CELL("filename",roll!$A$15))+1,31)&"!"&ADDRESS(MATCH(rn_02!$D$9,roll!C:C,0)+1,3,4)),ROW(B7)-1+SUM($B$14:$C$14),0)) ->  | E21: =IF(ROW(B7)-1>=$E$14,"",OFFSET(INDIRECT(MID(CELL("filename",roll!$A$15),FIND("]",CELL("filename",roll!$A$15))+1,31)&"!"&ADDRESS(MATCH(rn_02!$D$9,roll!C:C,0)+1,3,4)),ROW(B7)-1+SUM($B$14:$D$14),0)) ->  | F21: 1
B22: =IF(ROW(B8)-1>=$B$14,"",OFFSET(INDIRECT(MID(CELL("filename",roll!$A$15),FIND("]",CELL("filename",roll!$A$15))+1,31)&"!"&ADDRESS(MATCH(rn_02!$D$9,roll!C:C,0)+1,3,4)),ROW(B8)-1,0)) -> 10036 | C22: =IF(ROW(B8)-1>=$C$14,"",OFFSET(INDIRECT(MID(CELL("filename",roll!$A$15),FIND("]",CELL("filename",roll!$A$15))+1,31)&"!"&ADDRESS(MATCH(rn_02!$D$9,roll!C:C,0)+1,3,4)),ROW(B8)-1+SUM($B$14:$B$14),0)) -> 10041 | D22: =IF(ROW(B8)-1>=$D$14,"",OFFSET(INDIRECT(MID(CELL("filename",roll!$A$15),FIND("]",CELL("filename",roll!$A$15))+1,31)&"!"&ADDRESS(MATCH(rn_02!$D$9,roll!C:C,0)+1,3,4)),ROW(B8)-1+SUM($B$14:$C$14),0)) ->  | E22: =IF(ROW(B8)-1>=$E$14,"",OFFSET(INDIRECT(MID(CELL("filename",roll!$A$15),FIND("]",CELL("filename",roll!$A$15))+1,31)&"!"&ADDRESS(MATCH(rn_02!$D$9,roll!C:C,0)+1,3,4)),ROW(B8)-1+SUM($B$14:$D$14),0)) ->  | F22: 1
B23: =IF(ROW(B9)-1>=$B$14,"",OFFSET(INDIRECT(MID(CELL("filename",roll!$A$15),FIND("]",CELL("filename",roll!$A$15))+1,31)&"!"&ADDRESS(MATCH(rn_02!$D$9,roll!C:C,0)+1,3,4)),ROW(B9)-1,0)) -> 536 | C23: =IF(ROW(B9)-1>=$C$14,"",OFFSET(INDIRECT(MID(CELL("filename",roll!$A$15),FIND("]",CELL("filename",roll!$A$15))+1,31)&"!"&ADDRESS(MATCH(rn_02!$D$9,roll!C:C,0)+1,3,4)),ROW(B9)-1+SUM($B$14:$B$14),0)) -> 541 | D23: =IF(ROW(B9)-1>=$D$14,"",OFFSET(INDIRECT(MID(CELL("filename",roll!$A$15),FIND("]",CELL("filename",roll!$A$15))+1,31)&"!"&ADDRESS(MATCH(rn_02!$D$9,roll!C:C,0)+1,3,4)),ROW(B9)-1+SUM($B$14:$C$14),0)) ->  | E23: =IF(ROW(B9)-1>=$E$14,"",OFFSET(INDIRECT(MID(CELL("filename",roll!$A$15),FIND("]",CELL("filename",roll!$A$15))+1,31)&"!"&ADDRESS(MATCH(rn_02!$D$9,roll!C:C,0)+1,3,4)),ROW(B9)-1+SUM($B$14:$D$14),0)) ->  | F23: 1
B24: =IF(ROW(B10)-1>=$B$14,"",OFFSET(INDIRECT(MID(CELL("filename",roll!$A$15),FIND("]",CELL("filename",roll!$A$15))+1,31)&"!"&ADDRESS(MATCH(rn_02!$D$9,roll!C:C,0)+1,3,4)),ROW(B10)-1,0)) -> 10037 | C24: =IF(ROW(B10)-1>=$C$14,"",OFFSET(INDIRECT(MID(CELL("filename",roll!$A$15),FIND("]",CELL("filename",roll!$A$15))+1,31)&"!"&ADDRESS(MATCH(rn_02!$D$9,roll!C:C,0)+1,3,4)),ROW(B10)-1+SUM($B$14:$B$14),0)) ->  | D24: =IF(ROW(B10)-1>=$D$14,"",OFFSET(INDIRECT(MID(CELL("filename",roll!$A$15),FIND("]",CELL("filename",roll!$A$15))+1,31)&"!"&ADDRESS(MATCH(rn_02!$D$9,roll!C:C,0)+1,3,4)),ROW(B10)-1+SUM($B$14:$C$14),0)) ->  | E24: =IF(ROW(B10)-1>=$E$14,"",OFFSET(INDIRECT(MID(CELL("filename",roll!$A$15),FIND("]",CELL("filename",roll!$A$15))+1,31)&"!"&ADDRESS(MATCH(rn_02!$D$9,roll!C:C,0)+1,3,4)),ROW(B10)-1+SUM($B$14:$D$14),0)) ->  | F24: 1
B25: =IF(ROW(B11)-1>=$B$14,"",OFFSET(INDIRECT(MID(CELL("filename",roll!$A$15),FIND("]",CELL("filename",roll!$A$15))+1,31)&"!"&ADDRESS(MATCH(rn_02!$D$9,roll!C:C,0)+1,3,4)),ROW(B11)-1,0)) ->  | C25: =IF(ROW(B11)-1>=$C$14,"",OFFSET(INDIRECT(MID(CELL("filename",roll!$A$15),FIND("]",CELL("filename",roll!$A$15))+1,31)&"!"&ADDRESS(MATCH(rn_02!$D$9,roll!C:C,0)+1,3,4)),ROW(B11)-1+SUM($B$14:$B$14),0)) ->  | D25: =IF(ROW(B11)-1>=$D$14,"",OFFSET(INDIRECT(MID(CELL("filename",roll!$A$15),FIND("]",CELL("filename",roll!$A$15))+1,31)&"!"&ADDRESS(MATCH(rn_02!$D$9,roll!C:C,0)+1,3,4)),ROW(B11)-1+SUM($B$14:$C$14),0)) ->  | E25: =IF(ROW(B11)-1>=$E$14,"",OFFSET(INDIRECT(MID(CELL("filename",roll!$A$15),FIND("]",CELL("filename",roll!$A$15))+1,31)&"!"&ADDRESS(MATCH(rn_02!$D$9,roll!C:C,0)+1,3,4)),ROW(B11)-1+SUM($B$14:$D$14),0)) -> 
B26: =IF(ROW(B12)-1>=$B$14,"",OFFSET(INDIRECT(MID(CELL("filename",roll!$A$15),FIND("]",CELL("filename",roll!$A$15))+1,31)&"!"&ADDRESS(MATCH(rn_02!$D$9,roll!C:C,0)+1,3,4)),ROW(B12)-1,0)) ->  | C26: =IF(ROW(B12)-1>=$C$14,"",OFFSET(INDIRECT(MID(CELL("filename",roll!$A$15),FIND("]",CELL("filename",roll!$A$15))+1,31)&"!"&ADDRESS(MATCH(rn_02!$D$9,roll!C:C,0)+1,3,4)),ROW(B12)-1+SUM($B$14:$B$14),0)) ->  | D26: =IF(ROW(B12)-1>=$D$14,"",OFFSET(INDIRECT(MID(CELL("filename",roll!$A$15),FIND("]",CELL("filename",roll!$A$15))+1,31)&"!"&ADDRESS(MATCH(rn_02!$D$9,roll!C:C,0)+1,3,4)),ROW(B12)-1+SUM($B$14:$C$14),0)) ->  | E26: =IF(ROW(B12)-1>=$E$14,"",OFFSET(INDIRECT(MID(CELL("filename",roll!$A$15),FIND("]",CELL("filename",roll!$A$15))+1,31)&"!"&ADDRESS(MATCH(rn_02!$D$9,roll!C:C,0)+1,3,4)),ROW(B12)-1+SUM($B$14:$D$14),0)) -> 
B27: =IF(ROW(B13)-1>=$B$14,"",OFFSET(INDIRECT(MID(CELL("filename",roll!$A$15),FIND("]",CELL("filename",roll!$A$15))+1,31)&"!"&ADDRESS(MATCH(rn_02!$D$9,roll!C:C,0)+1,3,4)),ROW(B13)-1,0)) ->  | C27: =IF(ROW(B13)-1>=$C$14,"",OFFSET(INDIRECT(MID(CELL("filename",roll!$A$15),FIND("]",CELL("filename",roll!$A$15))+1,31)&"!"&ADDRESS(MATCH(rn_02!$D$9,roll!C:C,0)+1,3,4)),ROW(B13)-1+SUM($B$14:$B$14),0)) ->  | D27: =IF(ROW(B13)-1>=$D$14,"",OFFSET(INDIRECT(MID(CELL("filename",roll!$A$15),FIND("]",CELL("filename",roll!$A$15))+1,31)&"!"&ADDRESS(MATCH(rn_02!$D$9,roll!C:C,0)+1,3,4)),ROW(B13)-1+SUM($B$14:$C$14),0)) ->  | E27: =IF(ROW(B13)-1>=$E$14,"",OFFSET(INDIRECT(MID(CELL("filename",roll!$A$15),FIND("]",CELL("filename",roll!$A$15))+1,31)&"!"&ADDRESS(MATCH(rn_02!$D$9,roll!C:C,0)+1,3,4)),ROW(B13)-1+SUM($B$14:$D$14),0)) -> 
B28: =IF(ROW(B14)-1>=$B$14,"",OFFSET(INDIRECT(MID(CELL("filename",roll!$A$15),FIND("]",CELL("filename",roll!$A$15))+1,31)&"!"&ADDRESS(MATCH(rn_02!$D$9,roll!C:C,0)+1,3,4)),ROW(B14)-1,0)) ->  | C28: =IF(ROW(B14)-1>=$C$14,"",OFFSET(INDIRECT(MID(CELL("filename",roll!$A$15),FIND("]",CELL("filename",roll!$A$15))+1,31)&"!"&ADDRESS(MATCH(rn_02!$D$9,roll!C:C,0)+1,3,4)),ROW(B14)-1+SUM($B$14:$B$14),0)) ->  | D28: =IF(ROW(B14)-1>=$D$14,"",OFFSET(INDIRECT(MID(CELL("filename",roll!$A$15),FIND("]",CELL("filename",roll!$A$15))+1,31)&"!"&ADDRESS(MATCH(rn_02!$D$9,roll!C:C,0)+1,3,4)),ROW(B14)-1+SUM($B$14:$C$14),0)) ->  | E28: =IF(ROW(B14)-1>=$E$14,"",OFFSET(INDIRECT(MID(CELL("filename",roll!$A$15),FIND("]",CELL("filename",roll!$A$15))+1,31)&"!"&ADDRESS(MATCH(rn_02!$D$9,roll!C:C,0)+1,3,4)),ROW(B14)-1+SUM($B$14:$D$14),0)) -> 
B29: =IF(ROW(B15)-1>=$B$14,"",OFFSET(INDIRECT(MID(CELL("filename",roll!$A$15),FIND("]",CELL("filename",roll!$A$15))+1,31)&"!"&ADDRESS(MATCH(rn_02!$D$9,roll!C:C,0)+1,3,4)),ROW(B15)-1,0)) ->  | C29: =IF(ROW(B15)-1>=$C$14,"",OFFSET(INDIRECT(MID(CELL("filename",roll!$A$15),FIND("]",CELL("filename",roll!$A$15))+1,31)&"!"&ADDRESS(MATCH(rn_02!$D$9,roll!C:C,0)+1,3,4)),ROW(B15)-1+SUM($B$14:$B$14),0)) ->  | D29: =IF(ROW(B15)-1>=$D$14,"",OFFSET(INDIRECT(MID(CELL("filename",roll!$A$15),FIND("]",CELL("filename",roll!$A$15))+1,31)&"!"&ADDRESS(MATCH(rn_02!$D$9,roll!C:C,0)+1,3,4)),ROW(B15)-1+SUM($B$14:$C$14),0)) ->  | E29: =IF(ROW(B15)-1>=$E$14,"",OFFSET(INDIRECT(MID(CELL("filename",roll!$A$15),FIND("]",CELL("filename",roll!$A$15))+1,31)&"!"&ADDRESS(MATCH(rn_02!$D$9,roll!C:C,0)+1,3,4)),ROW(B15)-1+SUM($B$14:$D$14),0)) -> 
B30: =IF(ROW(B16)-1>=$B$14,"",OFFSET(INDIRECT(MID(CELL("filename",roll!$A$15),FIND("]",CELL("filename",roll!$A$15))+1,31)&"!"&ADDRESS(MATCH(rn_02!$D$9,roll!C:C,0)+1,3,4)),ROW(B16)-1,0)) ->  | C30: =IF(ROW(B16)-1>=$C$14,"",OFFSET(INDIRECT(MID(CELL("filename",roll!$A$15),FIND("]",CELL("filename",roll!$A$15))+1,31)&"!"&ADDRESS(MATCH(rn_02!$D$9,roll!C:C,0)+1,3,4)),ROW(B16)-1+SUM($B$14:$B$14),0)) ->  | D30: =IF(ROW(B16)-1>=$D$14,"",OFFSET(INDIRECT(MID(CELL("filename",roll!$A$15),FIND("]",CELL("filename",roll!$A$15))+1,31)&"!"&ADDRESS(MATCH(rn_02!$D$9,roll!C:C,0)+1,3,4)),ROW(B16)-1+SUM($B$14:$C$14),0)) ->  | E30: =IF(ROW(B16)-1>=$E$14,"",OFFSET(INDIRECT(MID(CELL("filename",roll!$A$15),FIND("]",CELL("filename",roll!$A$15))+1,31)&"!"&ADDRESS(MATCH(rn_02!$D$9,roll!C:C,0)+1,3,4)),ROW(B16)-1+SUM($B$14:$D$14),0)) -> 
B31: =IF(ROW(B17)-1>=$B$14,"",OFFSET(INDIRECT(MID(CELL("filename",roll!$A$15),FIND("]",CELL("filename",roll!$A$15))+1,31)&"!"&ADDRESS(MATCH(rn_02!$D$9,roll!C:C,0)+1,3,4)),ROW(B17)-1,0)) ->  | C31: =IF(ROW(B17)-1>=$C$14,"",OFFSET(INDIRECT(MID(CELL("filename",roll!$A$15),FIND("]",CELL("filename",roll!$A$15))+1,31)&"!"&ADDRESS(MATCH(rn_02!$D$9,roll!C:C,0)+1,3,4)),ROW(B17)-1+SUM($B$14:$B$14),0)) ->  | D31: =IF(ROW(B17)-1>=$D$14,"",OFFSET(INDIRECT(MID(CELL("filename",roll!$A$15),FIND("]",CELL("filename",roll!$A$15))+1,31)&"!"&ADDRESS(MATCH(rn_02!$D$9,roll!C:C,0)+1,3,4)),ROW(B17)-1+SUM($B$14:$C$14),0)) ->  | E31: =IF(ROW(B17)-1>=$E$14,"",OFFSET(INDIRECT(MID(CELL("filename",roll!$A$15),FIND("]",CELL("filename",roll!$A$15))+1,31)&"!"&ADDRESS(MATCH(rn_02!$D$9,roll!C:C,0)+1,3,4)),ROW(B17)-1+SUM($B$14:$D$14),0)) -> 
B32: =IF(ROW(B18)-1>=$B$14,"",OFFSET(INDIRECT(MID(CELL("filename",roll!$A$15),FIND("]",CELL("filename",roll!$A$15))+1,31)&"!"&ADDRESS(MATCH(rn_02!$D$9,roll!C:C,0)+1,3,4)),ROW(B18)-1,0)) ->  | C32: =IF(ROW(B18)-1>=$C$14,"",OFFSET(INDIRECT(MID(CELL("filename",roll!$A$15),FIND("]",CELL("filename",roll!$A$15))+1,31)&"!"&ADDRESS(MATCH(rn_02!$D$9,roll!C:C,0)+1,3,4)),ROW(B18)-1+SUM($B$14:$B$14),0)) ->  | D32: =IF(ROW(B18)-1>=$D$14,"",OFFSET(INDIRECT(MID(CELL("filename",roll!$A$15),FIND("]",CELL("filename",roll!$A$15))+1,31)&"!"&ADDRESS(MATCH(rn_02!$D$9,roll!C:C,0)+1,3,4)),ROW(B18)-1+SUM($B$14:$C$14),0)) ->  | E32: =IF(ROW(B18)-1>=$E$14,"",OFFSET(INDIRECT(MID(CELL("filename",roll!$A$15),FIND("]",CELL("filename",roll!$A$15))+1,31)&"!"&ADDRESS(MATCH(rn_02!$D$9,roll!C:C,0)+1,3,4)),ROW(B18)-1+SUM($B$14:$D$14),0)) -> 
B33: =IF(ROW(B19)-1>=$B$14,"",OFFSET(INDIRECT(MID(CELL("filename",roll!$A$15),FIND("]",CELL("filename",roll!$A$15))+1,31)&"!"&ADDRESS(MATCH(rn_02!$D$9,roll!C:C,0)+1,3,4)),ROW(B19)-1,0)) ->  | C33: =IF(ROW(B19)-1>=$C$14,"",OFFSET(INDIRECT(MID(CELL("filename",roll!$A$15),FIND("]",CELL("filename",roll!$A$15))+1,31)&"!"&ADDRESS(MATCH(rn_02!$D$9,roll!C:C,0)+1,3,4)),ROW(B19)-1+SUM($B$14:$B$14),0)) ->  | D33: =IF(ROW(B19)-1>=$D$14,"",OFFSET(INDIRECT(MID(CELL("filename",roll!$A$15),FIND("]",CELL("filename",roll!$A$15))+1,31)&"!"&ADDRESS(MATCH(rn_02!$D$9,roll!C:C,0)+1,3,4)),ROW(B19)-1+SUM($B$14:$C$14),0)) ->  | E33: =IF(ROW(B19)-1>=$E$14,"",OFFSET(INDIRECT(MID(CELL("filename",roll!$A$15),FIND("]",CELL("filename",roll!$A$15))+1,31)&"!"&ADDRESS(MATCH(rn_02!$D$9,roll!C:C,0)+1,3,4)),ROW(B19)-1+SUM($B$14:$D$14),0)) -> 
B34: =IF(ROW(B20)-1>=$B$14,"",OFFSET(INDIRECT(MID(CELL("filename",roll!$A$15),FIND("]",CELL("filename",roll!$A$15))+1,31)&"!"&ADDRESS(MATCH(rn_02!$D$9,roll!C:C,0)+1,3,4)),ROW(B20)-1,0)) ->  | C34: =IF(ROW(B20)-1>=$C$14,"",OFFSET(INDIRECT(MID(CELL("filename",roll!$A$15),FIND("]",CELL("filename",roll!$A$15))+1,31)&"!"&ADDRESS(MATCH(rn_02!$D$9,roll!C:C,0)+1,3,4)),ROW(B20)-1+SUM($B$14:$B$14),0)) ->  | D34: =IF(ROW(B20)-1>=$D$14,"",OFFSET(INDIRECT(MID(CELL("filename",roll!$A$15),FIND("]",CELL("filename",roll!$A$15))+1,31)&"!"&ADDRESS(MATCH(rn_02!$D$9,roll!C:C,0)+1,3,4)),ROW(B20)-1+SUM($B$14:$C$14),0)) ->  | E34: =IF(ROW(B20)-1>=$E$14,"",OFFSET(INDIRECT(MID(CELL("filename",roll!$A$15),FIND("]",CELL("filename",roll!$A$15))+1,31)&"!"&ADDRESS(MATCH(rn_02!$D$9,roll!C:C,0)+1,3,4)),ROW(B20)-1+SUM($B$14:$D$14),0)) -> 
B36: परीक्षा प्रभारी | E36: केन्द्राधीक्षक
B37: =rn_01!$B$37 -> ASD (Lecturer) | E37: =rn_01!$E$37 -> XYZ (Principal)

Sheet rn_04
B1: =rn_01!$B$1 -> Class VIIITH Board Examination, 2025
B2: परीक्षा केंद्र नाम एवं परीक्षा केंद्र क्रमांक
B3: =rn_01!$B$3 -> GSSS Malutana (12345)
B4: परीक्षा कक्ष / हॉल क्रमांक
B5: =rn_01!$K$4 -> 4
B6: परीक्षा दिनांक (दिवस) ... से ... तक
B7: =rn_01!$B$7 -> 01-03-2025 | C7: =IF(B7="","",TEXT(B7,"DDDD")) -> Saturday | D7: =rn_01!$D$7 -> 22-05-2025 | E7: =IF(D7="","",TEXT(D7,"DDDD")) -> Thursday
B8: परीक्षार्थी रोल नंबर ... से ... तक
B9: =IF(B14>0,B15,IF(C14>0,C15,IF(D14>0,D15,IF(E14>0,E15,0)))) -> 546 | D9: =IF(E14>0,LOOKUP(2,1/(E15:E34<>""),E15:E34),IF(D14>0,LOOKUP(2,1/(D15:D34<>""),D15:D34),IF(C14>0,LOOKUP(2,1/(C15:C34<>""),C15:C34),IF(B14>0,LOOKUP(2,1/(B15:B34<>""),B15:B34),0)))) -> 558
B10: कुल सम्मिलित परीक्षार्थी
B11: =COUNTIF($B$15:$E$34,">0") -> 25
B12: परीक्षार्थी बैठक व्यवस्था
B13: पंक्ति 1 | C13: पंक्ति 2 | D13: पंक्ति 3 | E13: पंक्ति 4
B14: =rn_01!L4 -> 15 | C14: =rn_01!M4 -> 3 | D14: =rn_01!N4 -> 4 | E14: =rn_01!O4 -> 3
B15: =IF(ROW(B1)-1>=$B$14,"",OFFSET(INDIRECT(MID(CELL("filename",roll!$A$15),FIND("]",CELL("filename",roll!$A$15))+1,31)&"!"&ADDRESS(MATCH(rn_03!$D$9,roll!C:C,0)+1,3,4)),ROW(B1)-1,0)) -> 546 | C15: =IF(ROW(B1)-1>=$C$14,"",OFFSET(INDIRECT(MID(CELL("filename",roll!$A$15),FIND("]",CELL("filename",roll!$A$15))+1,31)&"!"&ADDRESS(MATCH(rn_03!$D$9,roll!C:C,0)+1,3,4)),ROW(B1)-1+SUM($B$14:$B$14),0)) -> 10054 | D15: =IF(ROW(B1)-1>=$D$14,"",OFFSET(INDIRECT(MID(CELL("filename",roll!$A$15),FIND("]",CELL("filename",roll!$A$15))+1,31)&"!"&ADDRESS(MATCH(rn_03!$D$9,roll!C:C,0)+1,3,4)),ROW(B1)-1+SUM($B$14:$C$14),0)) -> 555 | E15: =IF(ROW(B1)-1>=$E$14,"",OFFSET(INDIRECT(MID(CELL("filename",roll!$A$15),FIND("]",CELL("filename",roll!$A$15))+1,31)&"!"&ADDRESS(MATCH(rn_03!$D$9,roll!C:C,0)+1,3,4)),ROW(B1)-1+SUM($B$14:$D$14),0)) -> 557 | F15: =IF(SUM(B15:E15)>0,1,"") -> 1
B16: =IF(ROW(B2)-1>=$B$14,"",OFFSET(INDIRECT(MID(CELL("filename",roll!$A$15),FIND("]",CELL("filename",roll!$A$15))+1,31)&"!"&ADDRESS(MATCH(rn_03!$D$9,roll!C:C,0)+1,3,4)),ROW(B2)-1,0)) -> 10047 | C16: =IF(ROW(B2)-1>=$C$14,"",OFFSET(INDIRECT(MID(CELL("filename",roll!$A$15),FIND("]",CELL("filename",roll!$A$15))+1,31)&"!"&ADDRESS(MATCH(rn_03!$D$9,roll!C:C,0)+1,3,4)),ROW(B2)-1+SUM($B$14:$B$14),0)) -> 554 | D16: =IF(ROW(B2)-1>=$D$14,"",OFFSET(INDIRECT(MID(CELL("filename",roll!$A$15),FIND("]",CELL("filename",roll!$A$15))+1,31)&"!"&ADDRESS(MATCH(rn_03!$D$9,roll!C:C,0)+1,3,4)),ROW(B2)-1+SUM($B$14:$C$14),0)) -> 10056 | E16: =IF(ROW(B2)-1>=$E$14,"",OFFSET(INDIRECT(MID(CELL("filename",roll!$A$15),FIND("]",CELL("filename",roll!$A$15))+1,31)&"!"&ADDRESS(MATCH(rn_03!$D$9,roll!C:C,0)+1,3,4)),ROW(B2)-1+SUM($B$14:$D$14),0)) -> 10058 | F16: =IF(SUM(B16:E16)>0,1,"") -> 1
B17: =IF(ROW(B3)-1>=$B$14,"",OFFSET(INDIRECT(MID(CELL("filename",roll!$A$15),FIND("]",CELL("filename",roll!$A$15))+1,31)&"!"&ADDRESS(MATCH(rn_03!$D$9,roll!C:C,0)+1,3,4)),ROW(B3)-1,0)) -> 547 | C17: =IF(ROW(B3)-1>=$C$14,"",OFFSET(INDIRECT(MID(CELL("filename",roll!$A$15),FIND("]",CELL("filename",roll!$A$15))+1,31)&"!"&ADDRESS(MATCH(rn_03!$D$9,roll!C:C,0)+1,3,4)),ROW(B3)-1+SUM($B$14:$B$14),0)) -> 10055 | D17: =IF(ROW(B3)-1>=$D$14,"",OFFSET(INDIRECT(MID(CELL("filename",roll!$A$15),FIND("]",CELL("filename",roll!$A$15))+1,31)&"!"&ADDRESS(MATCH(rn_03!$D$9,roll!C:C,0)+1,3,4)),ROW(B3)-1+SUM($B$14:$C$14),0)) -> 556 | E17: =IF(ROW(B3)-1>=$E$14,"",OFFSET(INDIRECT(MID(CELL("filename",roll!$A$15),FIND("]",CELL("filename",roll!$A$15))+1,31)&"!"&ADDRESS(MATCH(rn_03!$D$9,roll!C:C,0)+1,3,4)),ROW(B3)-1+SUM($B$14:$D$14),0)) -> 558 | F17: 1
B18: =IF(ROW(B4)-1>=$B$14,"",OFFSET(INDIRECT(MID(CELL("filename",roll!$A$15),FIND("]",CELL("filename",roll!$A$15))+1,31)&"!"&ADDRESS(MATCH(rn_03!$D$9,roll!C:C,0)+1,3,4)),ROW(B4)-1,0)) -> 10048 | C18: =IF(ROW(B4)-1>=$C$14,"",OFFSET(INDIRECT(MID(CELL("filename",roll!$A$15),FIND("]",CELL("filename",roll!$A$15))+1,31)&"!"&ADDRESS(MATCH(rn_03!$D$9,roll!C:C,0)+1,3,4)),ROW(B4)-1+SUM($B$14:$B$14),0)) ->  | D18: =IF(ROW(B4)-1>=$D$14,"",OFFSET(INDIRECT(MID(CELL("filename",roll!$A$15),FIND("]",CELL("filename",roll!$A$15))+1,31)&"!"&ADDRESS(MATCH(rn_03!$D$9,roll!C:C,0)+1,3,4)),ROW(B4)-1+SUM($B$14:$C$14),0)) -> 10057 | E18: =IF(ROW(B4)-1>=$E$14,"",OFFSET(INDIRECT(MID(CELL("filename",roll!$A$15),FIND("]",CELL("filename",roll!$A$15))+1,31)&"!"&ADDRESS(MATCH(rn_03!$D$9,roll!C:C,0)+1,3,4)),ROW(B4)-1+SUM($B$14:$D$14),0)) ->  | F18: 1
B19: =IF(ROW(B5)-1>=$B$14,"",OFFSET(INDIRECT(MID(CELL("filename",roll!$A$15),FIND("]",CELL("filename",roll!$A$15))+1,31)&"!"&ADDRESS(MATCH(rn_03!$D$9,roll!C:C,0)+1,3,4)),ROW(B5)-1,0)) -> 548 | C19: =IF(ROW(B5)-1>=$C$14,"",OFFSET(INDIRECT(MID(CELL("filename",roll!$A$15),FIND("]",CELL("filename",roll!$A$15))+1,31)&"!"&ADDRESS(MATCH(rn_03!$D$9,roll!C:C,0)+1,3,4)),ROW(B5)-1+SUM($B$14:$B$14),0)) ->  | D19: =IF(ROW(B5)-1>=$D$14,"",OFFSET(INDIRECT(MID(CELL("filename",roll!$A$15),FIND("]",CELL("filename",roll!$A$15))+1,31)&"!"&ADDRESS(MATCH(rn_03!$D$9,roll!C:C,0)+1,3,4)),ROW(B5)-1+SUM($B$14:$C$14),0)) ->  | E19: =IF(ROW(B5)-1>=$E$14,"",OFFSET(INDIRECT(MID(CELL("filename",roll!$A$15),FIND("]",CELL("filename",roll!$A$15))+1,31)&"!"&ADDRESS(MATCH(rn_03!$D$9,roll!C:C,0)+1,3,4)),ROW(B5)-1+SUM($B$14:$D$14),0)) ->  | F19: 1
B20: =IF(ROW(B6)-1>=$B$14,"",OFFSET(INDIRECT(MID(CELL("filename",roll!$A$15),FIND("]",CELL("filename",roll!$A$15))+1,31)&"!"&ADDRESS(MATCH(rn_03!$D$9,roll!C:C,0)+1,3,4)),ROW(B6)-1,0)) -> 10049 | C20: =IF(ROW(B6)-1>=$C$14,"",OFFSET(INDIRECT(MID(CELL("filename",roll!$A$15),FIND("]",CELL("filename",roll!$A$15))+1,31)&"!"&ADDRESS(MATCH(rn_03!$D$9,roll!C:C,0)+1,3,4)),ROW(B6)-1+SUM($B$14:$B$14),0)) ->  | D20: =IF(ROW(B6)-1>=$D$14,"",OFFSET(INDIRECT(MID(CELL("filename",roll!$A$15),FIND("]",CELL("filename",roll!$A$15))+1,31)&"!"&ADDRESS(MATCH(rn_03!$D$9,roll!C:C,0)+1,3,4)),ROW(B6)-1+SUM($B$14:$C$14),0)) ->  | E20: =IF(ROW(B6)-1>=$E$14,"",OFFSET(INDIRECT(MID(CELL("filename",roll!$A$15),FIND("]",CELL("filename",roll!$A$15))+1,31)&"!"&ADDRESS(MATCH(rn_03!$D$9,roll!C:C,0)+1,3,4)),ROW(B6)-1+SUM($B$14:$D$14),0)) ->  | F20: 1
B21: =IF(ROW(B7)-1>=$B$14,"",OFFSET(INDIRECT(MID(CELL("filename",roll!$A$15),FIND("]",CELL("filename",roll!$A$15))+1,31)&"!"&ADDRESS(MATCH(rn_03!$D$9,roll!C:C,0)+1,3,4)),ROW(B7)-1,0)) -> 549 | C21: =IF(ROW(B7)-1>=$C$14,"",OFFSET(INDIRECT(MID(CELL("filename",roll!$A$15),FIND("]",CELL("filename",roll!$A$15))+1,31)&"!"&ADDRESS(MATCH(rn_03!$D$9,roll!C:C,0)+1,3,4)),ROW(B7)-1+SUM($B$14:$B$14),0)) ->  | D21: =IF(ROW(B7)-1>=$D$14,"",OFFSET(INDIRECT(MID(CELL("filename",roll!$A$15),FIND("]",CELL("filename",roll!$A$15))+1,31)&"!"&ADDRESS(MATCH(rn_03!$D$9,roll!C:C,0)+1,3,4)),ROW(B7)-1+SUM($B$14:$C$14),0)) ->  | E21: =IF(ROW(B7)-1>=$E$14,"",OFFSET(INDIRECT(MID(CELL("filename",roll!$A$15),FIND("]",CELL("filename",roll!$A$15))+1,31)&"!"&ADDRESS(MATCH(rn_03!$D$9,roll!C:C,0)+1,3,4)),ROW(B7)-1+SUM($B$14:$D$14),0)) ->  | F21: 1
B22: =IF(ROW(B8)-1>=$B$14,"",OFFSET(INDIRECT(MID(CELL("filename",roll!$A$15),FIND("]",CELL("filename",roll!$A$15))+1,31)&"!"&ADDRESS(MATCH(rn_03!$D$9,roll!C:C,0)+1,3,4)),ROW(B8)-1,0)) -> 10050 | C22: =IF(ROW(B8)-1>=$C$14,"",OFFSET(INDIRECT(MID(CELL("filename",roll!$A$15),FIND("]",CELL("filename",roll!$A$15))+1,31)&"!"&ADDRESS(MATCH(rn_03!$D$9,roll!C:C,0)+1,3,4)),ROW(B8)-1+SUM($B$14:$B$14),0)) ->  | D22: =IF(ROW(B8)-1>=$D$14,"",OFFSET(INDIRECT(MID(CELL("filename",roll!$A$15),FIND("]",CELL("filename",roll!$A$15))+1,31)&"!"&ADDRESS(MATCH(rn_03!$D$9,roll!C:C,0)+1,3,4)),ROW(B8)-1+SUM($B$14:$C$14),0)) ->  | E22: =IF(ROW(B8)-1>=$E$14,"",OFFSET(INDIRECT(MID(CELL("filename",roll!$A$15),FIND("]",CELL("filename",roll!$A$15))+1,31)&"!"&ADDRESS(MATCH(rn_03!$D$9,roll!C:C,0)+1,3,4)),ROW(B8)-1+SUM($B$14:$D$14),0)) ->  | F22: 1
B23: =IF(ROW(B9)-1>=$B$14,"",OFFSET(INDIRECT(MID(CELL("filename",roll!$A$15),FIND("]",CELL("filename",roll!$A$15))+1,31)&"!"&ADDRESS(MATCH(rn_03!$D$9,roll!C:C,0)+1,3,4)),ROW(B9)-1,0)) -> 550 | C23: =IF(ROW(B9)-1>=$C$14,"",OFFSET(INDIRECT(MID(CELL("filename",roll!$A$15),FIND("]",CELL("filename",roll!$A$15))+1,31)&"!"&ADDRESS(MATCH(rn_03!$D$9,roll!C:C,0)+1,3,4)),ROW(B9)-1+SUM($B$14:$B$14),0)) ->  | D23: =IF(ROW(B9)-1>=$D$14,"",OFFSET(INDIRECT(MID(CELL("filename",roll!$A$15),FIND("]",CELL("filename",roll!$A$15))+1,31)&"!"&ADDRESS(MATCH(rn_03!$D$9,roll!C:C,0)+1,3,4)),ROW(B9)-1+SUM($B$14:$C$14),0)) ->  | E23: =IF(ROW(B9)-1>=$E$14,"",OFFSET(INDIRECT(MID(CELL("filename",roll!$A$15),FIND("]",CELL("filename",roll!$A$15))+1,31)&"!"&ADDRESS(MATCH(rn_03!$D$9,roll!C:C,0)+1,3,4)),ROW(B9)-1+SUM($B$14:$D$14),0)) ->  | F23: 1
B24: =IF(ROW(B10)-1>=$B$14,"",OFFSET(INDIRECT(MID(CELL("filename",roll!$A$15),FIND("]",CELL("filename",roll!$A$15))+1,31)&"!"&ADDRESS(MATCH(rn_03!$D$9,roll!C:C,0)+1,3,4)),ROW(B10)-1,0)) -> 10051 | C24: =IF(ROW(B10)-1>=$C$14,"",OFFSET(INDIRECT(MID(CELL("filename",roll!$A$15),FIND("]",CELL("filename",roll!$A$15))+1,31)&"!"&ADDRESS(MATCH(rn_03!$D$9,roll!C:C,0)+1,3,4)),ROW(B10)-1+SUM($B$14:$B$14),0)) ->  | D24: =IF(ROW(B10)-1>=$D$14,"",OFFSET(INDIRECT(MID(CELL("filename",roll!$A$15),FIND("]",CELL("filename",roll!$A$15))+1,31)&"!"&ADDRESS(MATCH(rn_03!$D$9,roll!C:C,0)+1,3,4)),ROW(B10)-1+SUM($B$14:$C$14),0)) ->  | E24: =IF(ROW(B10)-1>=$E$14,"",OFFSET(INDIRECT(MID(CELL("filename",roll!$A$15),FIND("]",CELL("filename",roll!$A$15))+1,31)&"!"&ADDRESS(MATCH(rn_03!$D$9,roll!C:C,0)+1,3,4)),ROW(B10)-1+SUM($B$14:$D$14),0)) ->  | F24: 1
B25: =IF(ROW(B11)-1>=$B$14,"",OFFSET(INDIRECT(MID(CELL("filename",roll!$A$15),FIND("]",CELL("filename",roll!$A$15))+1,31)&"!"&ADDRESS(MATCH(rn_03!$D$9,roll!C:C,0)+1,3,4)),ROW(B11)-1,0)) -> 551 | C25: =IF(ROW(B11)-1>=$C$14,"",OFFSET(INDIRECT(MID(CELL("filename",roll!$A$15),FIND("]",CELL("filename",roll!$A$15))+1,31)&"!"&ADDRESS(MATCH(rn_03!$D$9,roll!C:C,0)+1,3,4)),ROW(B11)-1+SUM($B$14:$B$14),0)) ->  | D25: =IF(ROW(B11)-1>=$D$14,"",OFFSET(INDIRECT(MID(CELL("filename",roll!$A$15),FIND("]",CELL("filename",roll!$A$15))+1,31)&"!"&ADDRESS(MATCH(rn_03!$D$9,roll!C:C,0)+1,3,4)),ROW(B11)-1+SUM($B$14:$C$14),0)) ->  | E25: =IF(ROW(B11)-1>=$E$14,"",OFFSET(INDIRECT(MID(CELL("filename",roll!$A$15),FIND("]",CELL("filename",roll!$A$15))+1,31)&"!"&ADDRESS(MATCH(rn_03!$D$9,roll!C:C,0)+1,3,4)),ROW(B11)-1+SUM($B$14:$D$14),0)) ->  | F25: 1
B26: =IF(ROW(B12)-1>=$B$14,"",OFFSET(INDIRECT(MID(CELL("filename",roll!$A$15),FIND("]",CELL("filename",roll!$A$15))+1,31)&"!"&ADDRESS(MATCH(rn_03!$D$9,roll!C:C,0)+1,3,4)),ROW(B12)-1,0)) -> 10052 | C26: =IF(ROW(B12)-1>=$C$14,"",OFFSET(INDIRECT(MID(CELL("filename",roll!$A$15),FIND("]",CELL("filename",roll!$A$15))+1,31)&"!"&ADDRESS(MATCH(rn_03!$D$9,roll!C:C,0)+1,3,4)),ROW(B12)-1+SUM($B$14:$B$14),0)) ->  | D26: =IF(ROW(B12)-1>=$D$14,"",OFFSET(INDIRECT(MID(CELL("filename",roll!$A$15),FIND("]",CELL("filename",roll!$A$15))+1,31)&"!"&ADDRESS(MATCH(rn_03!$D$9,roll!C:C,0)+1,3,4)),ROW(B12)-1+SUM($B$14:$C$14),0)) ->  | E26: =IF(ROW(B12)-1>=$E$14,"",OFFSET(INDIRECT(MID(CELL("filename",roll!$A$15),FIND("]",CELL("filename",roll!$A$15))+1,31)&"!"&ADDRESS(MATCH(rn_03!$D$9,roll!C:C,0)+1,3,4)),ROW(B12)-1+SUM($B$14:$D$14),0)) ->  | F26: 1
B27: =IF(ROW(B13)-1>=$B$14,"",OFFSET(INDIRECT(MID(CELL("filename",roll!$A$15),FIND("]",CELL("filename",roll!$A$15))+1,31)&"!"&ADDRESS(MATCH(rn_03!$D$9,roll!C:C,0)+1,3,4)),ROW(B13)-1,0)) -> 552 | C27: =IF(ROW(B13)-1>=$C$14,"",OFFSET(INDIRECT(MID(CELL("filename",roll!$A$15),FIND("]",CELL("filename",roll!$A$15))+1,31)&"!"&ADDRESS(MATCH(rn_03!$D$9,roll!C:C,0)+1,3,4)),ROW(B13)-1+SUM($B$14:$B$14),0)) ->  | D27: =IF(ROW(B13)-1>=$D$14,"",OFFSET(INDIRECT(MID(CELL("filename",roll!$A$15),FIND("]",CELL("filename",roll!$A$15))+1,31)&"!"&ADDRESS(MATCH(rn_03!$D$9,roll!C:C,0)+1,3,4)),ROW(B13)-1+SUM($B$14:$C$14),0)) ->  | E27: =IF(ROW(B13)-1>=$E$14,"",OFFSET(INDIRECT(MID(CELL("filename",roll!$A$15),FIND("]",CELL("filename",roll!$A$15))+1,31)&"!"&ADDRESS(MATCH(rn_03!$D$9,roll!C:C,0)+1,3,4)),ROW(B13)-1+SUM($B$14:$D$14),0)) ->  | F27: 1
B28: =IF(ROW(B14)-1>=$B$14,"",OFFSET(INDIRECT(MID(CELL("filename",roll!$A$15),FIND("]",CELL("filename",roll!$A$15))+1,31)&"!"&ADDRESS(MATCH(rn_03!$D$9,roll!C:C,0)+1,3,4)),ROW(B14)-1,0)) -> 10053 | C28: =IF(ROW(B14)-1>=$C$14,"",OFFSET(INDIRECT(MID(CELL("filename",roll!$A$15),FIND("]",CELL("filename",roll!$A$15))+1,31)&"!"&ADDRESS(MATCH(rn_03!$D$9,roll!C:C,0)+1,3,4)),ROW(B14)-1+SUM($B$14:$B$14),0)) ->  | D28: =IF(ROW(B14)-1>=$D$14,"",OFFSET(INDIRECT(MID(CELL("filename",roll!$A$15),FIND("]",CELL("filename",roll!$A$15))+1,31)&"!"&ADDRESS(MATCH(rn_03!$D$9,roll!C:C,0)+1,3,4)),ROW(B14)-1+SUM($B$14:$C$14),0)) ->  | E28: =IF(ROW(B14)-1>=$E$14,"",OFFSET(INDIRECT(MID(CELL("filename",roll!$A$15),FIND("]",CELL("filename",roll!$A$15))+1,31)&"!"&ADDRESS(MATCH(rn_03!$D$9,roll!C:C,0)+1,3,4)),ROW(B14)-1+SUM($B$14:$D$14),0)) ->  | F28: 1
B29: =IF(ROW(B15)-1>=$B$14,"",OFFSET(INDIRECT(MID(CELL("filename",roll!$A$15),FIND("]",CELL("filename",roll!$A$15))+1,31)&"!"&ADDRESS(MATCH(rn_03!$D$9,roll!C:C,0)+1,3,4)),ROW(B15)-1,0)) -> 553 | C29: =IF(ROW(B15)-1>=$C$14,"",OFFSET(INDIRECT(MID(CELL("filename",roll!$A$15),FIND("]",CELL("filename",roll!$A$15))+1,31)&"!"&ADDRESS(MATCH(rn_03!$D$9,roll!C:C,0)+1,3,4)),ROW(B15)-1+SUM($B$14:$B$14),0)) ->  | D29: =IF(ROW(B15)-1>=$D$14,"",OFFSET(INDIRECT(MID(CELL("filename",roll!$A$15),FIND("]",CELL("filename",roll!$A$15))+1,31)&"!"&ADDRESS(MATCH(rn_03!$D$9,roll!C:C,0)+1,3,4)),ROW(B15)-1+SUM($B$14:$C$14),0)) ->  | E29: =IF(ROW(B15)-1>=$E$14,"",OFFSET(INDIRECT(MID(CELL("filename",roll!$A$15),FIND("]",CELL("filename",roll!$A$15))+1,31)&"!"&ADDRESS(MATCH(rn_03!$D$9,roll!C:C,0)+1,3,4)),ROW(B15)-1+SUM($B$14:$D$14),0)) ->  | F29: 1
B30: =IF(ROW(B16)-1>=$B$14,"",OFFSET(INDIRECT(MID(CELL("filename",roll!$A$15),FIND("]",CELL("filename",roll!$A$15))+1,31)&"!"&ADDRESS(MATCH(rn_03!$D$9,roll!C:C,0)+1,3,4)),ROW(B16)-1,0)) ->  | C30: =IF(ROW(B16)-1>=$C$14,"",OFFSET(INDIRECT(MID(CELL("filename",roll!$A$15),FIND("]",CELL("filename",roll!$A$15))+1,31)&"!"&ADDRESS(MATCH(rn_03!$D$9,roll!C:C,0)+1,3,4)),ROW(B16)-1+SUM($B$14:$B$14),0)) ->  | D30: =IF(ROW(B16)-1>=$D$14,"",OFFSET(INDIRECT(MID(CELL("filename",roll!$A$15),FIND("]",CELL("filename",roll!$A$15))+1,31)&"!"&ADDRESS(MATCH(rn_03!$D$9,roll!C:C,0)+1,3,4)),ROW(B16)-1+SUM($B$14:$C$14),0)) ->  | E30: =IF(ROW(B16)-1>=$E$14,"",OFFSET(INDIRECT(MID(CELL("filename",roll!$A$15),FIND("]",CELL("filename",roll!$A$15))+1,31)&"!"&ADDRESS(MATCH(rn_03!$D$9,roll!C:C,0)+1,3,4)),ROW(B16)-1+SUM($B$14:$D$14),0)) -> 
B31: =IF(ROW(B17)-1>=$B$14,"",OFFSET(INDIRECT(MID(CELL("filename",roll!$A$15),FIND("]",CELL("filename",roll!$A$15))+1,31)&"!"&ADDRESS(MATCH(rn_03!$D$9,roll!C:C,0)+1,3,4)),ROW(B17)-1,0)) ->  | C31: =IF(ROW(B17)-1>=$C$14,"",OFFSET(INDIRECT(MID(CELL("filename",roll!$A$15),FIND("]",CELL("filename",roll!$A$15))+1,31)&"!"&ADDRESS(MATCH(rn_03!$D$9,roll!C:C,0)+1,3,4)),ROW(B17)-1+SUM($B$14:$B$14),0)) ->  | D31: =IF(ROW(B17)-1>=$D$14,"",OFFSET(INDIRECT(MID(CELL("filename",roll!$A$15),FIND("]",CELL("filename",roll!$A$15))+1,31)&"!"&ADDRESS(MATCH(rn_03!$D$9,roll!C:C,0)+1,3,4)),ROW(B17)-1+SUM($B$14:$C$14),0)) ->  | E31: =IF(ROW(B17)-1>=$E$14,"",OFFSET(INDIRECT(MID(CELL("filename",roll!$A$15),FIND("]",CELL("filename",roll!$A$15))+1,31)&"!"&ADDRESS(MATCH(rn_03!$D$9,roll!C:C,0)+1,3,4)),ROW(B17)-1+SUM($B$14:$D$14),0)) -> 
B32: =IF(ROW(B18)-1>=$B$14,"",OFFSET(INDIRECT(MID(CELL("filename",roll!$A$15),FIND("]",CELL("filename",roll!$A$15))+1,31)&"!"&ADDRESS(MATCH(rn_03!$D$9,roll!C:C,0)+1,3,4)),ROW(B18)-1,0)) ->  | C32: =IF(ROW(B18)-1>=$C$14,"",OFFSET(INDIRECT(MID(CELL("filename",roll!$A$15),FIND("]",CELL("filename",roll!$A$15))+1,31)&"!"&ADDRESS(MATCH(rn_03!$D$9,roll!C:C,0)+1,3,4)),ROW(B18)-1+SUM($B$14:$B$14),0)) ->  | D32: =IF(ROW(B18)-1>=$D$14,"",OFFSET(INDIRECT(MID(CELL("filename",roll!$A$15),FIND("]",CELL("filename",roll!$A$15))+1,31)&"!"&ADDRESS(MATCH(rn_03!$D$9,roll!C:C,0)+1,3,4)),ROW(B18)-1+SUM($B$14:$C$14),0)) ->  | E32: =IF(ROW(B18)-1>=$E$14,"",OFFSET(INDIRECT(MID(CELL("filename",roll!$A$15),FIND("]",CELL("filename",roll!$A$15))+1,31)&"!"&ADDRESS(MATCH(rn_03!$D$9,roll!C:C,0)+1,3,4)),ROW(B18)-1+SUM($B$14:$D$14),0)) -> 
B33: =IF(ROW(B19)-1>=$B$14,"",OFFSET(INDIRECT(MID(CELL("filename",roll!$A$15),FIND("]",CELL("filename",roll!$A$15))+1,31)&"!"&ADDRESS(MATCH(rn_03!$D$9,roll!C:C,0)+1,3,4)),ROW(B19)-1,0)) ->  | C33: =IF(ROW(B19)-1>=$C$14,"",OFFSET(INDIRECT(MID(CELL("filename",roll!$A$15),FIND("]",CELL("filename",roll!$A$15))+1,31)&"!"&ADDRESS(MATCH(rn_03!$D$9,roll!C:C,0)+1,3,4)),ROW(B19)-1+SUM($B$14:$B$14),0)) ->  | D33: =IF(ROW(B19)-1>=$D$14,"",OFFSET(INDIRECT(MID(CELL("filename",roll!$A$15),FIND("]",CELL("filename",roll!$A$15))+1,31)&"!"&ADDRESS(MATCH(rn_03!$D$9,roll!C:C,0)+1,3,4)),ROW(B19)-1+SUM($B$14:$C$14),0)) ->  | E33: =IF(ROW(B19)-1>=$E$14,"",OFFSET(INDIRECT(MID(CELL("filename",roll!$A$15),FIND("]",CELL("filename",roll!$A$15))+1,31)&"!"&ADDRESS(MATCH(rn_03!$D$9,roll!C:C,0)+1,3,4)),ROW(B19)-1+SUM($B$14:$D$14),0)) -> 
B34: =IF(ROW(B20)-1>=$B$14,"",OFFSET(INDIRECT(MID(CELL("filename",roll!$A$15),FIND("]",CELL("filename",roll!$A$15))+1,31)&"!"&ADDRESS(MATCH(rn_03!$D$9,roll!C:C,0)+1,3,4)),ROW(B20)-1,0)) ->  | C34: =IF(ROW(B20)-1>=$C$14,"",OFFSET(INDIRECT(MID(CELL("filename",roll!$A$15),FIND("]",CELL("filename",roll!$A$15))+1,31)&"!"&ADDRESS(MATCH(rn_03!$D$9,roll!C:C,0)+1,3,4)),ROW(B20)-1+SUM($B$14:$B$14),0)) ->  | D34: =IF(ROW(B20)-1>=$D$14,"",OFFSET(INDIRECT(MID(CELL("filename",roll!$A$15),FIND("]",CELL("filename",roll!$A$15))+1,31)&"!"&ADDRESS(MATCH(rn_03!$D$9,roll!C:C,0)+1,3,4)),ROW(B20)-1+SUM($B$14:$C$14),0)) ->  | E34: =IF(ROW(B20)-1>=$E$14,"",OFFSET(INDIRECT(MID(CELL("filename",roll!$A$15),FIND("]",CELL("filename",roll!$A$15))+1,31)&"!"&ADDRESS(MATCH(rn_03!$D$9,roll!C:C,0)+1,3,4)),ROW(B20)-1+SUM($B$14:$D$14),0)) -> 
B36: परीक्षा प्रभारी | E36: केन्द्राधीक्षक
B37: =rn_01!$B$37 -> ASD (Lecturer) | E37: =rn_01!$E$37 -> XYZ (Principal)

Sheet rn_05
B1: =rn_01!$B$1 -> Class VIIITH Board Examination, 2025
B2: परीक्षा केंद्र नाम एवं परीक्षा केंद्र क्रमांक
B3: =rn_01!$B$3 -> GSSS Malutana (12345)
B4: परीक्षा कक्ष / हॉल क्रमांक
B5: =rn_01!$K$5 -> 5
B6: परीक्षा दिनांक (दिवस) ... से ... तक
B7: =rn_01!$B$7 -> 01-03-2025 | C7: =IF(B7="","",TEXT(B7,"DDDD")) -> Saturday | D7: =rn_01!$D$7 -> 22-05-2025 | E7: =IF(D7="","",TEXT(D7,"DDDD")) -> Thursday
B8: परीक्षार्थी रोल नंबर ... से ... तक
B9: =IF(B14>0,B15,IF(C14>0,C15,IF(D14>0,D15,IF(E14>0,E15,0)))) -> 10059 | D9: =IF(E14>0,LOOKUP(2,1/(E15:E34<>""),E15:E34),IF(D14>0,LOOKUP(2,1/(D15:D34<>""),D15:D34),IF(C14>0,LOOKUP(2,1/(C15:C34<>""),C15:C34),IF(B14>0,LOOKUP(2,1/(B15:B34<>""),B15:B34),0)))) -> 576
B10: कुल सम्मिलित परीक्षार्थी
B11: =COUNTIF($B$15:$E$34,">0") -> 36
B12: परीक्षार्थी बैठक व्यवस्था
B13: पंक्ति 1 | C13: पंक्ति 2 | D13: पंक्ति 3 | E13: पंक्ति 4
B14: =rn_01!L5 -> 17 | C14: =rn_01!M5 -> 5 | D14: =rn_01!N5 -> 5 | E14: =rn_01!O5 -> 9
B15: =IF(ROW(B1)-1>=$B$14,"",OFFSET(INDIRECT(MID(CELL("filename",roll!$A$15),FIND("]",CELL("filename",roll!$A$15))+1,31)&"!"&ADDRESS(MATCH(rn_04!$D$9,roll!C:C,0)+1,3,4)),ROW(B1)-1,0)) -> 10059 | C15: =IF(ROW(B1)-1>=$C$14,"",OFFSET(INDIRECT(MID(CELL("filename",roll!$A$15),FIND("]",CELL("filename",roll!$A$15))+1,31)&"!"&ADDRESS(MATCH(rn_04!$D$9,roll!C:C,0)+1,3,4)),ROW(B1)-1+SUM($B$14:$B$14),0)) -> 567 | D15: =IF(ROW(B1)-1>=$D$14,"",OFFSET(INDIRECT(MID(CELL("filename",roll!$A$15),FIND("]",CELL("filename",roll!$A$15))+1,31)&"!"&ADDRESS(MATCH(rn_04!$D$9,roll!C:C,0)+1,3,4)),ROW(B1)-1+SUM($B$14:$C$14),0)) -> 10070 | E15: =IF(ROW(B1)-1>=$E$14,"",OFFSET(INDIRECT(MID(CELL("filename",roll!$A$15),FIND("]",CELL("filename",roll!$A$15))+1,31)&"!"&ADDRESS(MATCH(rn_04!$D$9,roll!C:C,0)+1,3,4)),ROW(B1)-1+SUM($B$14:$D$14),0)) -> 572 | F15: =IF(SUM(B15:E15)>0,1,"") -> 1
B16: =IF(ROW(B2)-1>=$B$14,"",OFFSET(INDIRECT(MID(CELL("filename",roll!$A$15),FIND("]",CELL("filename",roll!$A$15))+1,31)&"!"&ADDRESS(MATCH(rn_04!$D$9,roll!C:C,0)+1,3,4)),ROW(B2)-1,0)) -> 559 | C16: =IF(ROW(B2)-1>=$C$14,"",OFFSET(INDIRECT(MID(CELL("filename",roll!$A$15),FIND("]",CELL("filename",roll!$A$15))+1,31)&"!"&ADDRESS(MATCH(rn_04!$D$9,roll!C:C,0)+1,3,4)),ROW(B2)-1+SUM($B$14:$B$14),0)) -> 10068 | D16: =IF(ROW(B2)-1>=$D$14,"",OFFSET(INDIRECT(MID(CELL("filename",roll!$A$15),FIND("]",CELL("filename",roll!$A$15))+1,31)&"!"&ADDRESS(MATCH(rn_04!$D$9,roll!C:C,0)+1,3,4)),ROW(B2)-1+SUM($B$14:$C$14),0)) -> 570 | E16: =IF(ROW(B2)-1>=$E$14,"",OFFSET(INDIRECT(MID(CELL("filename",roll!$A$15),FIND("]",CELL("filename",roll!$A$15))+1,31)&"!"&ADDRESS(MATCH(rn_04!$D$9,roll!C:C,0)+1,3,4)),ROW(B2)-1+SUM($B$14:$D$14),0)) -> 10073 | F16: =IF(SUM(B16:E16)>0,1,"") -> 1
B17: =IF(ROW(B3)-1>=$B$14,"",OFFSET(INDIRECT(MID(CELL("filename",roll!$A$15),FIND("]",CELL("filename",roll!$A$15))+1,31)&"!"&ADDRESS(MATCH(rn_04!$D$9,roll!C:C,0)+1,3,4)),ROW(B3)-1,0)) -> 10060 | C17: =IF(ROW(B3)-1>=$C$14,"",OFFSET(INDIRECT(MID(CELL("filename",roll!$A$15),FIND("]",CELL("filename",roll!$A$15))+1,31)&"!"&ADDRESS(MATCH(rn_04!$D$9,roll!C:C,0)+1,3,4)),ROW(B3)-1+SUM($B$14:$B$14),0)) -> 568 | D17: =IF(ROW(B3)-1>=$D$14,"",OFFSET(INDIRECT(MID(CELL("filename",roll!$A$15),FIND("]",CELL("filename",roll!$A$15))+1,31)&"!"&ADDRESS(MATCH(rn_04!$D$9,roll!C:C,0)+1,3,4)),ROW(B3)-1+SUM($B$14:$C$14),0)) -> 10071 | E17: =IF(ROW(B3)-1>=$E$14,"",OFFSET(INDIRECT(MID(CELL("filename",roll!$A$15),FIND("]",CELL("filename",roll!$A$15))+1,31)&"!"&ADDRESS(MATCH(rn_04!$D$9,roll!C:C,0)+1,3,4)),ROW(B3)-1+SUM($B$14:$D$14),0)) -> 573 | F17: 1
B18: =IF(ROW(B4)-1>=$B$14,"",OFFSET(INDIRECT(MID(CELL("filename",roll!$A$15),FIND("]",CELL("filename",roll!$A$15))+1,31)&"!"&ADDRESS(MATCH(rn_04!$D$9,roll!C:C,0)+1,3,4)),ROW(B4)-1,0)) -> 560 | C18: =IF(ROW(B4)-1>=$C$14,"",OFFSET(INDIRECT(MID(CELL("filename",roll!$A$15),FIND("]",CELL("filename",roll!$A$15))+1,31)&"!"&ADDRESS(MATCH(rn_04!$D$9,roll!C:C,0)+1,3,4)),ROW(B4)-1+SUM($B$14:$B$14),0)) -> 10069 | D18: =IF(ROW(B4)-1>=$D$14,"",OFFSET(INDIRECT(MID(CELL("filename",roll!$A$15),FIND("]",CELL("filename",roll!$A$15))+1,31)&"!"&ADDRESS(MATCH(rn_04!$D$9,roll!C:C,0)+1,3,4)),ROW(B4)-1+SUM($B$14:$C$14),0)) -> 571 | E18: =IF(ROW(B4)-1>=$E$14,"",OFFSET(INDIRECT(MID(CELL("filename",roll!$A$15),FIND("]",CELL("filename",roll!$A$15))+1,31)&"!"&ADDRESS(MATCH(rn_04!$D$9,roll!C:C,0)+1,3,4)),ROW(B4)-1+SUM($B$14:$D$14),0)) -> 10074 | F18: 1
B19: =IF(ROW(B5)-1>=$B$14,"",OFFSET(INDIRECT(MID(CELL("filename",roll!$A$15),FIND("]",CELL("filename",roll!$A$15))+1,31)&"!"&ADDRESS(MATCH(rn_04!$D$9,roll!C:C,0)+1,3,4)),ROW(B5)-1,0)) -> 10061 | C19: =IF(ROW(B5)-1>=$C$14,"",OFFSET(INDIRECT(MID(CELL("filename",roll!$A$15),FIND("]",CELL("filename",roll!$A$15))+1,31)&"!"&ADDRESS(MATCH(rn_04!$D$9,roll!C:C,0)+1,3,4)),ROW(B5)-1+SUM($B$14:$B$14),0)) -> 569 | D19: =IF(ROW(B5)-1>=$D$14,"",OFFSET(INDIRECT(MID(CELL("filename",roll!$A$15),FIND("]",CELL("filename",roll!$A$15))+1,31)&"!"&ADDRESS(MATCH(rn_04!$D$9,roll!C:C,0)+1,3,4)),ROW(B5)-1+SUM($B$14:$C$14),0)) -> 10072 | E19: =IF(ROW(B5)-1>=$E$14,"",OFFSET(INDIRECT(MID(CELL("filename",roll!$A$15),FIND("]",CELL("filename",roll!$A$15))+1,31)&"!"&ADDRESS(MATCH(rn_04!$D$9,roll!C:C,0)+1,3,4)),ROW(B5)-1+SUM($B$14:$D$14),0)) -> 574 | F19: 1
B20: =IF(ROW(B6)-1>=$B$14,"",OFFSET(INDIRECT(MID(CELL("filename",roll!$A$15),FIND("]",CELL("filename",roll!$A$15))+1,31)&"!"&ADDRESS(MATCH(rn_04!$D$9,roll!C:C,0)+1,3,4)),ROW(B6)-1,0)) -> 561 | C20: =IF(ROW(B6)-1>=$C$14,"",OFFSET(INDIRECT(MID(CELL("filename",roll!$A$15),FIND("]",CELL("filename",roll!$A$15))+1,31)&"!"&ADDRESS(MATCH(rn_04!$D$9,roll!C:C,0)+1,3,4)),ROW(B6)-1+SUM($B$14:$B$14),0)) ->  | D20: =IF(ROW(B6)-1>=$D$14,"",OFFSET(INDIRECT(MID(CELL("filename",roll!$A$15),FIND("]",CELL("filename",roll!$A$15))+1,31)&"!"&ADDRESS(MATCH(rn_04!$D$9,roll!C:C,0)+1,3,4)),ROW(B6)-1+SUM($B$14:$C$14),0)) ->  | E20: =IF(ROW(B6)-1>=$E$14,"",OFFSET(INDIRECT(MID(CELL("filename",roll!$A$15),FIND("]",CELL("filename",roll!$A$15))+1,31)&"!"&ADDRESS(MATCH(rn_04!$D$9,roll!C:C,0)+1,3,4)),ROW(B6)-1+SUM($B$14:$D$14),0)) -> 10075 | F20: 1
B21: =IF(ROW(B7)-1>=$B$14,"",OFFSET(INDIRECT(MID(CELL("filename",roll!$A$15),FIND("]",CELL("filename",roll!$A$15))+1,31)&"!"&ADDRESS(MATCH(rn_04!$D$9,roll!C:C,0)+1,3,4)),ROW(B7)-1,0)) -> 10062 | C21: =IF(ROW(B7)-1>=$C$14,"",OFFSET(INDIRECT(MID(CELL("filename",roll!$A$15),FIND("]",CELL("filename",roll!$A$15))+1,31)&"!"&ADDRESS(MATCH(rn_04!$D$9,roll!C:C,0)+1,3,4)),ROW(B7)-1+SUM($B$14:$B$14),0)) ->  | D21: =IF(ROW(B7)-1>=$D$14,"",OFFSET(INDIRECT(MID(CELL("filename",roll!$A$15),FIND("]",CELL("filename",roll!$A$15))+1,31)&"!"&ADDRESS(MATCH(rn_04!$D$9,roll!C:C,0)+1,3,4)),ROW(B7)-1+SUM($B$14:$C$14),0)) ->  | E21: =IF(ROW(B7)-1>=$E$14,"",OFFSET(INDIRECT(MID(CELL("filename",roll!$A$15),FIND("]",CELL("filename",roll!$A$15))+1,31)&"!"&ADDRESS(MATCH(rn_04!$D$9,roll!C:C,0)+1,3,4)),ROW(B7)-1+SUM($B$14:$D$14),0)) -> 575 | F21: 1
B22: =IF(ROW(B8)-1>=$B$14,"",OFFSET(INDIRECT(MID(CELL("filename",roll!$A$15),FIND("]",CELL("filename",roll!$A$15))+1,31)&"!"&ADDRESS(MATCH(rn_04!$D$9,roll!C:C,0)+1,3,4)),ROW(B8)-1,0)) -> 562 | C22: =IF(ROW(B8)-1>=$C$14,"",OFFSET(INDIRECT(MID(CELL("filename",roll!$A$15),FIND("]",CELL("filename",roll!$A$15))+1,31)&"!"&ADDRESS(MATCH(rn_04!$D$9,roll!C:C,0)+1,3,4)),ROW(B8)-1+SUM($B$14:$B$14),0)) ->  | D22: =IF(ROW(B8)-1>=$D$14,"",OFFSET(INDIRECT(MID(CELL("filename",roll!$A$15),FIND("]",CELL("filename",roll!$A$15))+1,31)&"!"&ADDRESS(MATCH(rn_04!$D$9,roll!C:C,0)+1,3,4)),ROW(B8)-1+SUM($B$14:$C$14),0)) ->  | E22: =IF(ROW(B8)-1>=$E$14,"",OFFSET(INDIRECT(MID(CELL("filename",roll!$A$15),FIND("]",CELL("filename",roll!$A$15))+1,31)&"!"&ADDRESS(MATCH(rn_04!$D$9,roll!C:C,0)+1,3,4)),ROW(B8)-1+SUM($B$14:$D$14),0)) -> 10076 | F22: 1
B23: =IF(ROW(B9)-1>=$B$14,"",OFFSET(INDIRECT(MID(CELL("filename",roll!$A$15),FIND("]",CELL("filename",roll!$A$15))+1,31)&"!"&ADDRESS(MATCH(rn_04!$D$9,roll!C:C,0)+1,3,4)),ROW(B9)-1,0)) -> 10063 | C23: =IF(ROW(B9)-1>=$C$14,"",OFFSET(INDIRECT(MID(CELL("filename",roll!$A$15),FIND("]",CELL("filename",roll!$A$15))+1,31)&"!"&ADDRESS(MATCH(rn_04!$D$9,roll!C:C,0)+1,3,4)),ROW(B9)-1+SUM($B$14:$B$14),0)) ->  | D23: =IF(ROW(B9)-1>=$D$14,"",OFFSET(INDIRECT(MID(CELL("filename",roll!$A$15),FIND("]",CELL("filename",roll!$A$15))+1,31)&"!"&ADDRESS(MATCH(rn_04!$D$9,roll!C:C,0)+1,3,4)),ROW(B9)-1+SUM($B$14:$C$14),0)) ->  | E23: =IF(ROW(B9)-1>=$E$14,"",OFFSET(INDIRECT(MID(CELL("filename",roll!$A$15),FIND("]",CELL("filename",roll!$A$15))+1,31)&"!"&ADDRESS(MATCH(rn_04!$D$9,roll!C:C,0)+1,3,4)),ROW(B9)-1+SUM($B$14:$D$14),0)) -> 576 | F23: 1
B24: =IF(ROW(B10)-1>=$B$14,"",OFFSET(INDIRECT(MID(CELL("filename",roll!$A$15),FIND("]",CELL("filename",roll!$A$15))+1,31)&"!"&ADDRESS(MATCH(rn_04!$D$9,roll!C:C,0)+1,3,4)),ROW(B10)-1,0)) -> 563 | C24: =IF(ROW(B10)-1>=$C$14,"",OFFSET(INDIRECT(MID(CELL("filename",roll!$A$15),FIND("]",CELL("filename",roll!$A$15))+1,31)&"!"&ADDRESS(MATCH(rn_04!$D$9,roll!C:C,0)+1,3,4)),ROW(B10)-1+SUM($B$14:$B$14),0)) ->  | D24: =IF(ROW(B10)-1>=$D$14,"",OFFSET(INDIRECT(MID(CELL("filename",roll!$A$15),FIND("]",CELL("filename",roll!$A$15))+1,31)&"!"&ADDRESS(MATCH(rn_04!$D$9,roll!C:C,0)+1,3,4)),ROW(B10)-1+SUM($B$14:$C$14),0)) ->  | E24: =IF(ROW(B10)-1>=$E$14,"",OFFSET(INDIRECT(MID(CELL("filename",roll!$A$15),FIND("]",CELL("filename",roll!$A$15))+1,31)&"!"&ADDRESS(MATCH(rn_04!$D$9,roll!C:C,0)+1,3,4)),ROW(B10)-1+SUM($B$14:$D$14),0)) ->  | F24: 1
B25: =IF(ROW(B11)-1>=$B$14,"",OFFSET(INDIRECT(MID(CELL("filename",roll!$A$15),FIND("]",CELL("filename",roll!$A$15))+1,31)&"!"&ADDRESS(MATCH(rn_04!$D$9,roll!C:C,0)+1,3,4)),ROW(B11)-1,0)) -> 10064 | C25: =IF(ROW(B11)-1>=$C$14,"",OFFSET(INDIRECT(MID(CELL("filename",roll!$A$15),FIND("]",CELL("filename",roll!$A$15))+1,31)&"!"&ADDRESS(MATCH(rn_04!$D$9,roll!C:C,0)+1,3,4)),ROW(B11)-1+SUM($B$14:$B$14),0)) ->  | D25: =IF(ROW(B11)-1>=$D$14,"",OFFSET(INDIRECT(MID(CELL("filename",roll!$A$15),FIND("]",CELL("filename",roll!$A$15))+1,31)&"!"&ADDRESS(MATCH(rn_04!$D$9,roll!C:C,0)+1,3,4)),ROW(B11)-1+SUM($B$14:$C$14),0)) ->  | E25: =IF(ROW(B11)-1>=$E$14,"",OFFSET(INDIRECT(MID(CELL("filename",roll!$A$15),FIND("]",CELL("filename",roll!$A$15))+1,31)&"!"&ADDRESS(MATCH(rn_04!$D$9,roll!C:C,0)+1,3,4)),ROW(B11)-1+SUM($B$14:$D$14),0)) ->  | F25: 1
B26: =IF(ROW(B12)-1>=$B$14,"",OFFSET(INDIRECT(MID(CELL("filename",roll!$A$15),FIND("]",CELL("filename",roll!$A$15))+1,31)&"!"&ADDRESS(MATCH(rn_04!$D$9,roll!C:C,0)+1,3,4)),ROW(B12)-1,0)) -> 564 | C26: =IF(ROW(B12)-1>=$C$14,"",OFFSET(INDIRECT(MID(CELL("filename",roll!$A$15),FIND("]",CELL("filename",roll!$A$15))+1,31)&"!"&ADDRESS(MATCH(rn_04!$D$9,roll!C:C,0)+1,3,4)),ROW(B12)-1+SUM($B$14:$B$14),0)) ->  | D26: =IF(ROW(B12)-1>=$D$14,"",OFFSET(INDIRECT(MID(CELL("filename",roll!$A$15),FIND("]",CELL("filename",roll!$A$15))+1,31)&"!"&ADDRESS(MATCH(rn_04!$D$9,roll!C:C,0)+1,3,4)),ROW(B12)-1+SUM($B$14:$C$14),0)) ->  | E26: =IF(ROW(B12)-1>=$E$14,"",OFFSET(INDIRECT(MID(CELL("filename",roll!$A$15),FIND("]",CELL("filename",roll!$A$15))+1,31)&"!"&ADDRESS(MATCH(rn_04!$D$9,roll!C:C,0)+1,3,4)),ROW(B12)-1+SUM($B$14:$D$14),0)) ->  | F26: 1
B27: =IF(ROW(B13)-1>=$B$14,"",OFFSET(INDIRECT(MID(CELL("filename",roll!$A$15),FIND("]",CELL("filename",roll!$A$15))+1,31)&"!"&ADDRESS(MATCH(rn_04!$D$9,roll!C:C,0)+1,3,4)),ROW(B13)-1,0)) -> 10065 | C27: =IF(ROW(B13)-1>=$C$14,"",OFFSET(INDIRECT(MID(CELL("filename",roll!$A$15),FIND("]",CELL("filename",roll!$A$15))+1,31)&"!"&ADDRESS(MATCH(rn_04!$D$9,roll!C:C,0)+1,3,4)),ROW(B13)-1+SUM($B$14:$B$14),0)) ->  | D27: =IF(ROW(B13)-1>=$D$14,"",OFFSET(INDIRECT(MID(CELL("filename",roll!$A$15),FIND("]",CELL("filename",roll!$A$15))+1,31)&"!"&ADDRESS(MATCH(rn_04!$D$9,roll!C:C,0)+1,3,4)),ROW(B13)-1+SUM($B$14:$C$14),0)) ->  | E27: =IF(ROW(B13)-1>=$E$14,"",OFFSET(INDIRECT(MID(CELL("filename",roll!$A$15),FIND("]",CELL("filename",roll!$A$15))+1,31)&"!"&ADDRESS(MATCH(rn_04!$D$9,roll!C:C,0)+1,3,4)),ROW(B13)-1+SUM($B$14:$D$14),0)) ->  | F27: 1
B28: =IF(ROW(B14)-1>=$B$14,"",OFFSET(INDIRECT(MID(CELL("filename",roll!$A$15),FIND("]",CELL("filename",roll!$A$15))+1,31)&"!"&ADDRESS(MATCH(rn_04!$D$9,roll!C:C,0)+1,3,4)),ROW(B14)-1,0)) -> 565 | C28: =IF(ROW(B14)-1>=$C$14,"",OFFSET(INDIRECT(MID(CELL("filename",roll!$A$15),FIND("]",CELL("filename",roll!$A$15))+1,31)&"!"&ADDRESS(MATCH(rn_04!$D$9,roll!C:C,0)+1,3,4)),ROW(B14)-1+SUM($B$14:$B$14),0)) ->  | D28: =IF(ROW(B14)-1>=$D$14,"",OFFSET(INDIRECT(MID(CELL("filename",roll!$A$15),FIND("]",CELL("filename",roll!$A$15))+1,31)&"!"&ADDRESS(MATCH(rn_04!$D$9,roll!C:C,0)+1,3,4)),ROW(B14)-1+SUM($B$14:$C$14),0)) ->  | E28: =IF(ROW(B14)-1>=$E$14,"",OFFSET(INDIRECT(MID(CELL("filename",roll!$A$15),FIND("]",CELL("filename",roll!$A$15))+1,31)&"!"&ADDRESS(MATCH(rn_04!$D$9,roll!C:C,0)+1,3,4)),ROW(B14)-1+SUM($B$14:$D$14),0)) ->  | F28: 1
B29: =IF(ROW(B15)-1>=$B$14,"",OFFSET(INDIRECT(MID(CELL("filename",roll!$A$15),FIND("]",CELL("filename",roll!$A$15))+1,31)&"!"&ADDRESS(MATCH(rn_04!$D$9,roll!C:C,0)+1,3,4)),ROW(B15)-1,0)) -> 10066 | C29: =IF(ROW(B15)-1>=$C$14,"",OFFSET(INDIRECT(MID(CELL("filename",roll!$A$15),FIND("]",CELL("filename",roll!$A$15))+1,31)&"!"&ADDRESS(MATCH(rn_04!$D$9,roll!C:C,0)+1,3,4)),ROW(B15)-1+SUM($B$14:$B$14),0)) ->  | D29: =IF(ROW(B15)-1>=$D$14,"",OFFSET(INDIRECT(MID(CELL("filename",roll!$A$15),FIND("]",CELL("filename",roll!$A$15))+1,31)&"!"&ADDRESS(MATCH(rn_04!$D$9,roll!C:C,0)+1,3,4)),ROW(B15)-1+SUM($B$14:$C$14),0)) ->  | E29: =IF(ROW(B15)-1>=$E$14,"",OFFSET(INDIRECT(MID(CELL("filename",roll!$A$15),FIND("]",CELL("filename",roll!$A$15))+1,31)&"!"&ADDRESS(MATCH(rn_04!$D$9,roll!C:C,0)+1,3,4)),ROW(B15)-1+SUM($B$14:$D$14),0)) ->  | F29: 1
B30: =IF(ROW(B16)-1>=$B$14,"",OFFSET(INDIRECT(MID(CELL("filename",roll!$A$15),FIND("]",CELL("filename",roll!$A$15))+1,31)&"!"&ADDRESS(MATCH(rn_04!$D$9,roll!C:C,0)+1,3,4)),ROW(B16)-1,0)) -> 566 | C30: =IF(ROW(B16)-1>=$C$14,"",OFFSET(INDIRECT(MID(CELL("filename",roll!$A$15),FIND("]",CELL("filename",roll!$A$15))+1,31)&"!"&ADDRESS(MATCH(rn_04!$D$9,roll!C:C,0)+1,3,4)),ROW(B16)-1+SUM($B$14:$B$14),0)) ->  | D30: =IF(ROW(B16)-1>=$D$14,"",OFFSET(INDIRECT(MID(CELL("filename",roll!$A$15),FIND("]",CELL("filename",roll!$A$15))+1,31)&"!"&ADDRESS(MATCH(rn_04!$D$9,roll!C:C,0)+1,3,4)),ROW(B16)-1+SUM($B$14:$C$14),0)) ->  | E30: =IF(ROW(B16)-1>=$E$14,"",OFFSET(INDIRECT(MID(CELL("filename",roll!$A$15),FIND("]",CELL("filename",roll!$A$15))+1,31)&"!"&ADDRESS(MATCH(rn_04!$D$9,roll!C:C,0)+1,3,4)),ROW(B16)-1+SUM($B$14:$D$14),0)) ->  | F30: 1
B31: =IF(ROW(B17)-1>=$B$14,"",OFFSET(INDIRECT(MID(CELL("filename",roll!$A$15),FIND("]",CELL("filename",roll!$A$15))+1,31)&"!"&ADDRESS(MATCH(rn_04!$D$9,roll!C:C,0)+1,3,4)),ROW(B17)-1,0)) -> 10067 | C31: =IF(ROW(B17)-1>=$C$14,"",OFFSET(INDIRECT(MID(CELL("filename",roll!$A$15),FIND("]",CELL("filename",roll!$A$15))+1,31)&"!"&ADDRESS(MATCH(rn_04!$D$9,roll!C:C,0)+1,3,4)),ROW(B17)-1+SUM($B$14:$B$14),0)) ->  | D31: =IF(ROW(B17)-1>=$D$14,"",OFFSET(INDIRECT(MID(CELL("filename",roll!$A$15),FIND("]",CELL("filename",roll!$A$15))+1,31)&"!"&ADDRESS(MATCH(rn_04!$D$9,roll!C:C,0)+1,3,4)),ROW(B17)-1+SUM($B$14:$C$14),0)) ->  | E31: =IF(ROW(B17)-1>=$E$14,"",OFFSET(INDIRECT(MID(CELL("filename",roll!$A$15),FIND("]",CELL("filename",roll!$A$15))+1,31)&"!"&ADDRESS(MATCH(rn_04!$D$9,roll!C:C,0)+1,3,4)),ROW(B17)-1+SUM($B$14:$D$14),0)) ->  | F31: 1
B32: =IF(ROW(B18)-1>=$B$14,"",OFFSET(INDIRECT(MID(CELL("filename",roll!$A$15),FIND("]",CELL("filename",roll!$A$15))+1,31)&"!"&ADDRESS(MATCH(rn_04!$D$9,roll!C:C,0)+1,3,4)),ROW(B18)-1,0)) ->  | C32: =IF(ROW(B18)-1>=$C$14,"",OFFSET(INDIRECT(MID(CELL("filename",roll!$A$15),FIND("]",CELL("filename",roll!$A$15))+1,31)&"!"&ADDRESS(MATCH(rn_04!$D$9,roll!C:C,0)+1,3,4)),ROW(B18)-1+SUM($B$14:$B$14),0)) ->  | D32: =IF(ROW(B18)-1>=$D$14,"",OFFSET(INDIRECT(MID(CELL("filename",roll!$A$15),FIND("]",CELL("filename",roll!$A$15))+1,31)&"!"&ADDRESS(MATCH(rn_04!$D$9,roll!C:C,0)+1,3,4)),ROW(B18)-1+SUM($B$14:$C$14),0)) ->  | E32: =IF(ROW(B18)-1>=$E$14,"",OFFSET(INDIRECT(MID(CELL("filename",roll!$A$15),FIND("]",CELL("filename",roll!$A$15))+1,31)&"!"&ADDRESS(MATCH(rn_04!$D$9,roll!C:C,0)+1,3,4)),ROW(B18)-1+SUM($B$14:$D$14),0)) -> 
B33: =IF(ROW(B19)-1>=$B$14,"",OFFSET(INDIRECT(MID(CELL("filename",roll!$A$15),FIND("]",CELL("filename",roll!$A$15))+1,31)&"!"&ADDRESS(MATCH(rn_04!$D$9,roll!C:C,0)+1,3,4)),ROW(B19)-1,0)) ->  | C33: =IF(ROW(B19)-1>=$C$14,"",OFFSET(INDIRECT(MID(CELL("filename",roll!$A$15),FIND("]",CELL("filename",roll!$A$15))+1,31)&"!"&ADDRESS(MATCH(rn_04!$D$9,roll!C:C,0)+1,3,4)),ROW(B19)-1+SUM($B$14:$B$14),0)) ->  | D33: =IF(ROW(B19)-1>=$D$14,"",OFFSET(INDIRECT(MID(CELL("filename",roll!$A$15),FIND("]",CELL("filename",roll!$A$15))+1,31)&"!"&ADDRESS(MATCH(rn_04!$D$9,roll!C:C,0)+1,3,4)),ROW(B19)-1+SUM($B$14:$C$14),0)) ->  | E33: =IF(ROW(B19)-1>=$E$14,"",OFFSET(INDIRECT(MID(CELL("filename",roll!$A$15),FIND("]",CELL("filename",roll!$A$15))+1,31)&"!"&ADDRESS(MATCH(rn_04!$D$9,roll!C:C,0)+1,3,4)),ROW(B19)-1+SUM($B$14:$D$14),0)) -> 
B34: =IF(ROW(B20)-1>=$B$14,"",OFFSET(INDIRECT(MID(CELL("filename",roll!$A$15),FIND("]",CELL("filename",roll!$A$15))+1,31)&"!"&ADDRESS(MATCH(rn_04!$D$9,roll!C:C,0)+1,3,4)),ROW(B20)-1,0)) ->  | C34: =IF(ROW(B20)-1>=$C$14,"",OFFSET(INDIRECT(MID(CELL("filename",roll!$A$15),FIND("]",CELL("filename",roll!$A$15))+1,31)&"!"&ADDRESS(MATCH(rn_04!$D$9,roll!C:C,0)+1,3,4)),ROW(B20)-1+SUM($B$14:$B$14),0)) ->  | D34: =IF(ROW(B20)-1>=$D$14,"",OFFSET(INDIRECT(MID(CELL("filename",roll!$A$15),FIND("]",CELL("filename",roll!$A$15))+1,31)&"!"&ADDRESS(MATCH(rn_04!$D$9,roll!C:C,0)+1,3,4)),ROW(B20)-1+SUM($B$14:$C$14),0)) ->  | E34: =IF(ROW(B20)-1>=$E$14,"",OFFSET(INDIRECT(MID(CELL("filename",roll!$A$15),FIND("]",CELL("filename",roll!$A$15))+1,31)&"!"&ADDRESS(MATCH(rn_04!$D$9,roll!C:C,0)+1,3,4)),ROW(B20)-1+SUM($B$14:$D$14),0)) -> 
B36: परीक्षा प्रभारी | E36: केन्द्राधीक्षक
B37: =rn_01!$B$37 -> ASD (Lecturer) | E37: =rn_01!$E$37 -> XYZ (Principal)

Sheet rn_06
B1: =rn_01!$B$1 -> Class VIIITH Board Examination, 2025
B2: परीक्षा केंद्र नाम एवं परीक्षा केंद्र क्रमांक
B3: =rn_01!$B$3 -> GSSS Malutana (12345)
B4: परीक्षा कक्ष / हॉल क्रमांक
B5: =rn_01!$K$6 -> 6
B6: परीक्षा दिनांक (दिवस) ... से ... तक
B7: =rn_01!$B$7 -> 01-03-2025 | C7: =IF(B7="","",TEXT(B7,"DDDD")) -> Saturday | D7: =rn_01!$D$7 -> 22-05-2025 | E7: =IF(D7="","",TEXT(D7,"DDDD")) -> Thursday
B8: परीक्षार्थी रोल नंबर ... से ... तक
B9: =IF(B14>0,B15,IF(C14>0,C15,IF(D14>0,D15,IF(E14>0,E15,0)))) -> 10077 | D9: =IF(E14>0,LOOKUP(2,1/(E15:E34<>""),E15:E34),IF(D14>0,LOOKUP(2,1/(D15:D34<>""),D15:D34),IF(C14>0,LOOKUP(2,1/(C15:C34<>""),C15:C34),IF(B14>0,LOOKUP(2,1/(B15:B34<>""),B15:B34),0)))) -> 10086
B10: कुल सम्मिलित परीक्षार्थी
B11: =COUNTIF($B$15:$E$34,">0") -> 19
B12: परीक्षार्थी बैठक व्यवस्था
B13: पंक्ति 1 | C13: पंक्ति 2 | D13: पंक्ति 3 | E13: पंक्ति 4
B14: =rn_01!L6 -> 10 | C14: =rn_01!M6 -> 3 | D14: =rn_01!N6 -> 3 | E14: =rn_01!O6 -> 3
B15: =IF(ROW(B1)-1>=$B$14,"",OFFSET(INDIRECT(MID(CELL("filename",roll!$A$15),FIND("]",CELL("filename",roll!$A$15))+1,31)&"!"&ADDRESS(MATCH(rn_05!$D$9,roll!C:C,0)+1,3,4)),ROW(B1)-1,0)) -> 10077 | C15: =IF(ROW(B1)-1>=$C$14,"",OFFSET(INDIRECT(MID(CELL("filename",roll!$A$15),FIND("]",CELL("filename",roll!$A$15))+1,31)&"!"&ADDRESS(MATCH(rn_05!$D$9,roll!C:C,0)+1,3,4)),ROW(B1)-1+SUM($B$14:$B$14),0)) -> 10082 | D15: =IF(ROW(B1)-1>=$D$14,"",OFFSET(INDIRECT(MID(CELL("filename",roll!$A$15),FIND("]",CELL("filename",roll!$A$15))+1,31)&"!"&ADDRESS(MATCH(rn_05!$D$9,roll!C:C,0)+1,3,4)),ROW(B1)-1+SUM($B$14:$C$14),0)) -> 583 | E15: =IF(ROW(B1)-1>=$E$14,"",OFFSET(INDIRECT(MID(CELL("filename",roll!$A$15),FIND("]",CELL("filename",roll!$A$15))+1,31)&"!"&ADDRESS(MATCH(rn_05!$D$9,roll!C:C,0)+1,3,4)),ROW(B1)-1+SUM($B$14:$D$14),0)) -> 10085 | F15: =IF(SUM(B15:E15)>0,1,"") -> 1
B16: =IF(ROW(B2)-1>=$B$14,"",OFFSET(INDIRECT(MID(CELL("filename",roll!$A$15),FIND("]",CELL("filename",roll!$A$15))+1,31)&"!"&ADDRESS(MATCH(rn_05!$D$9,roll!C:C,0)+1,3,4)),ROW(B2)-1,0)) -> 577 | C16: =IF(ROW(B2)-1>=$C$14,"",OFFSET(INDIRECT(MID(CELL("filename",roll!$A$15),FIND("]",CELL("filename",roll!$A$15))+1,31)&"!"&ADDRESS(MATCH(rn_05!$D$9,roll!C:C,0)+1,3,4)),ROW(B2)-1+SUM($B$14:$B$14),0)) -> 582 | D16: =IF(ROW(B2)-1>=$D$14,"",OFFSET(INDIRECT(MID(CELL("filename",roll!$A$15),FIND("]",CELL("filename",roll!$A$15))+1,31)&"!"&ADDRESS(MATCH(rn_05!$D$9,roll!C:C,0)+1,3,4)),ROW(B2)-1+SUM($B$14:$C$14),0)) -> 10084 | E16: =IF(ROW(B2)-1>=$E$14,"",OFFSET(INDIRECT(MID(CELL("filename",roll!$A$15),FIND("]",CELL("filename",roll!$A$15))+1,31)&"!"&ADDRESS(MATCH(rn_05!$D$9,roll!C:C,0)+1,3,4)),ROW(B2)-1+SUM($B$14:$D$14),0)) -> 585 | F16: =IF(SUM(B16:E16)>0,1,"") -> 1
B17: =IF(ROW(B3)-1>=$B$14,"",OFFSET(INDIRECT(MID(CELL("filename",roll!$A$15),FIND("]",CELL("filename",roll!$A$15))+1,31)&"!"&ADDRESS(MATCH(rn_05!$D$9,roll!C:C,0)+1,3,4)),ROW(B3)-1,0)) -> 10078 | C17: =IF(ROW(B3)-1>=$C$14,"",OFFSET(INDIRECT(MID(CELL("filename",roll!$A$15),FIND("]",CELL("filename",roll!$A$15))+1,31)&"!"&ADDRESS(MATCH(rn_05!$D$9,roll!C:C,0)+1,3,4)),ROW(B3)-1+SUM($B$14:$B$14),0)) -> 10083 | D17: =IF(ROW(B3)-1>=$D$14,"",OFFSET(INDIRECT(MID(CELL("filename",roll!$A$15),FIND("]",CELL("filename",roll!$A$15))+1,31)&"!"&ADDRESS(MATCH(rn_05!$D$9,roll!C:C,0)+1,3,4)),ROW(B3)-1+SUM($B$14:$C$14),0)) -> 584 | E17: =IF(ROW(B3)-1>=$E$14,"",OFFSET(INDIRECT(MID(CELL("filename",roll!$A$15),FIND("]",CELL("filename",roll!$A$15))+1,31)&"!"&ADDRESS(MATCH(rn_05!$D$9,roll!C:C,0)+1,3,4)),ROW(B3)-1+SUM($B$14:$D$14),0)) -> 10086 | F17: 1
B18: =IF(ROW(B4)-1>=$B$14,"",OFFSET(INDIRECT(MID(CELL("filename",roll!$A$15),FIND("]",CELL("filename",roll!$A$15))+1,31)&"!"&ADDRESS(MATCH(rn_05!$D$9,roll!C:C,0)+1,3,4)),ROW(B4)-1,0)) -> 578 | C18: =IF(ROW(B4)-1>=$C$14,"",OFFSET(INDIRECT(MID(CELL("filename",roll!$A$15),FIND("]",CELL("filename",roll!$A$15))+1,31)&"!"&ADDRESS(MATCH(rn_05!$D$9,roll!C:C,0)+1,3,4)),ROW(B4)-1+SUM($B$14:$B$14),0)) ->  | D18: =IF(ROW(B4)-1>=$D$14,"",OFFSET(INDIRECT(MID(CELL("filename",roll!$A$15),FIND("]",CELL("filename",roll!$A$15))+1,31)&"!"&ADDRESS(MATCH(rn_05!$D$9,roll!C:C,0)+1,3,4)),ROW(B4)-1+SUM($B$14:$C$14),0)) ->  | E18: =IF(ROW(B4)-1>=$E$14,"",OFFSET(INDIRECT(MID(CELL("filename",roll!$A$15),FIND("]",CELL("filename",roll!$A$15))+1,31)&"!"&ADDRESS(MATCH(rn_05!$D$9,roll!C:C,0)+1,3,4)),ROW(B4)-1+SUM($B$14:$D$14),0)) ->  | F18: 1
B19: =IF(ROW(B5)-1>=$B$14,"",OFFSET(INDIRECT(MID(CELL("filename",roll!$A$15),FIND("]",CELL("filename",roll!$A$15))+1,31)&"!"&ADDRESS(MATCH(rn_05!$D$9,roll!C:C,0)+1,3,4)),ROW(B5)-1,0)) -> 10079 | C19: =IF(ROW(B5)-1>=$C$14,"",OFFSET(INDIRECT(MID(CELL("filename",roll!$A$15),FIND("]",CELL("filename",roll!$A$15))+1,31)&"!"&ADDRESS(MATCH(rn_05!$D$9,roll!C:C,0)+1,3,4)),ROW(B5)-1+SUM($B$14:$B$14),0)) ->  | D19: =IF(ROW(B5)-1>=$D$14,"",OFFSET(INDIRECT(MID(CELL("filename",roll!$A$15),FIND("]",CELL("filename",roll!$A$15))+1,31)&"!"&ADDRESS(MATCH(rn_05!$D$9,roll!C:C,0)+1,3,4)),ROW(B5)-1+SUM($B$14:$C$14),0)) ->  | E19: =IF(ROW(B5)-1>=$E$14,"",OFFSET(INDIRECT(MID(CELL("filename",roll!$A$15),FIND("]",CELL("filename",roll!$A$15))+1,31)&"!"&ADDRESS(MATCH(rn_05!$D$9,roll!C:C,0)+1,3,4)),ROW(B5)-1+SUM($B$14:$D$14),0)) ->  | F19: 1
B20: =IF(ROW(B6)-1>=$B$14,"",OFFSET(INDIRECT(MID(CELL("filename",roll!$A$15),FIND("]",CELL("filename",roll!$A$15))+1,31)&"!"&ADDRESS(MATCH(rn_05!$D$9,roll!C:C,0)+1,3,4)),ROW(B6)-1,0)) -> 579 | C20: =IF(ROW(B6)-1>=$C$14,"",OFFSET(INDIRECT(MID(CELL("filename",roll!$A$15),FIND("]",CELL("filename",roll!$A$15))+1,31)&"!"&ADDRESS(MATCH(rn_05!$D$9,roll!C:C,0)+1,3,4)),ROW(B6)-1+SUM($B$14:$B$14),0)) ->  | D20: =IF(ROW(B6)-1>=$D$14,"",OFFSET(INDIRECT(MID(CELL("filename",roll!$A$15),FIND("]",CELL("filename",roll!$A$15))+1,31)&"!"&ADDRESS(MATCH(rn_05!$D$9,roll!C:C,0)+1,3,4)),ROW(B6)-1+SUM($B$14:$C$14),0)) ->  | E20: =IF(ROW(B6)-1>=$E$14,"",OFFSET(INDIRECT(MID(CELL("filename",roll!$A$15),FIND("]",CELL("filename",roll!$A$15))+1,31)&"!"&ADDRESS(MATCH(rn_05!$D$9,roll!C:C,0)+1,3,4)),ROW(B6)-1+SUM($B$14:$D$14),0)) ->  | F20: 1
B21: =IF(ROW(B7)-1>=$B$14,"",OFFSET(INDIRECT(MID(CELL("filename",roll!$A$15),FIND("]",CELL("filename",roll!$A$15))+1,31)&"!"&ADDRESS(MATCH(rn_05!$D$9,roll!C:C,0)+1,3,4)),ROW(B7)-1,0)) -> 10080 | C21: =IF(ROW(B7)-1>=$C$14,"",OFFSET(INDIRECT(MID(CELL("filename",roll!$A$15),FIND("]",CELL("filename",roll!$A$15))+1,31)&"!"&ADDRESS(MATCH(rn_05!$D$9,roll!C:C,0)+1,3,4)),ROW(B7)-1+SUM($B$14:$B$14),0)) ->  | D21: =IF(ROW(B7)-1>=$D$14,"",OFFSET(INDIRECT(MID(CELL("filename",roll!$A$15),FIND("]",CELL("filename",roll!$A$15))+1,31)&"!"&ADDRESS(MATCH(rn_05!$D$9,roll!C:C,0)+1,3,4)),ROW(B7)-1+SUM($B$14:$C$14),0)) ->  | E21: =IF(ROW(B7)-1>=$E$14,"",OFFSET(INDIRECT(MID(CELL("filename",roll!$A$15),FIND("]",CELL("filename",roll!$A$15))+1,31)&"!"&ADDRESS(MATCH(rn_05!$D$9,roll!C:C,0)+1,3,4)),ROW(B7)-1+SUM($B$14:$D$14),0)) ->  | F21: 1
B22: =IF(ROW(B8)-1>=$B$14,"",OFFSET(INDIRECT(MID(CELL("filename",roll!$A$15),FIND("]",CELL("filename",roll!$A$15))+1,31)&"!"&ADDRESS(MATCH(rn_05!$D$9,roll!C:C,0)+1,3,4)),ROW(B8)-1,0)) -> 580 | C22: =IF(ROW(B8)-1>=$C$14,"",OFFSET(INDIRECT(MID(CELL("filename",roll!$A$15),FIND("]",CELL("filename",roll!$A$15))+1,31)&"!"&ADDRESS(MATCH(rn_05!$D$9,roll!C:C,0)+1,3,4)),ROW(B8)-1+SUM($B$14:$B$14),0)) ->  | D22: =IF(ROW(B8)-1>=$D$14,"",OFFSET(INDIRECT(MID(CELL("filename",roll!$A$15),FIND("]",CELL("filename",roll!$A$15))+1,31)&"!"&ADDRESS(MATCH(rn_05!$D$9,roll!C:C,0)+1,3,4)),ROW(B8)-1+SUM($B$14:$C$14),0)) ->  | E22: =IF(ROW(B8)-1>=$E$14,"",OFFSET(INDIRECT(MID(CELL("filename",roll!$A$15),FIND("]",CELL("filename",roll!$A$15))+1,31)&"!"&ADDRESS(MATCH(rn_05!$D$9,roll!C:C,0)+1,3,4)),ROW(B8)-1+SUM($B$14:$D$14),0)) ->  | F22: 1
B23: =IF(ROW(B9)-1>=$B$14,"",OFFSET(INDIRECT(MID(CELL("filename",roll!$A$15),FIND("]",CELL("filename",roll!$A$15))+1,31)&"!"&ADDRESS(MATCH(rn_05!$D$9,roll!C:C,0)+1,3,4)),ROW(B9)-1,0)) -> 10081 | C23: =IF(ROW(B9)-1>=$C$14,"",OFFSET(INDIRECT(MID(CELL("filename",roll!$A$15),FIND("]",CELL("filename",roll!$A$15))+1,31)&"!"&ADDRESS(MATCH(rn_05!$D$9,roll!C:C,0)+1,3,4)),ROW(B9)-1+SUM($B$14:$B$14),0)) ->  | D23: =IF(ROW(B9)-1>=$D$14,"",OFFSET(INDIRECT(MID(CELL("filename",roll!$A$15),FIND("]",CELL("filename",roll!$A$15))+1,31)&"!"&ADDRESS(MATCH(rn_05!$D$9,roll!C:C,0)+1,3,4)),ROW(B9)-1+SUM($B$14:$C$14),0)) ->  | E23: =IF(ROW(B9)-1>=$E$14,"",OFFSET(INDIRECT(MID(CELL("filename",roll!$A$15),FIND("]",CELL("filename",roll!$A$15))+1,31)&"!"&ADDRESS(MATCH(rn_05!$D$9,roll!C:C,0)+1,3,4)),ROW(B9)-1+SUM($B$14:$D$14),0)) ->  | F23: 1
B24: =IF(ROW(B10)-1>=$B$14,"",OFFSET(INDIRECT(MID(CELL("filename",roll!$A$15),FIND("]",CELL("filename",roll!$A$15))+1,31)&"!"&ADDRESS(MATCH(rn_05!$D$9,roll!C:C,0)+1,3,4)),ROW(B10)-1,0)) -> 581 | C24: =IF(ROW(B10)-1>=$C$14,"",OFFSET(INDIRECT(MID(CELL("filename",roll!$A$15),FIND("]",CELL("filename",roll!$A$15))+1,31)&"!"&ADDRESS(MATCH(rn_05!$D$9,roll!C:C,0)+1,3,4)),ROW(B10)-1+SUM($B$14:$B$14),0)) ->  | D24: =IF(ROW(B10)-1>=$D$14,"",OFFSET(INDIRECT(MID(CELL("filename",roll!$A$15),FIND("]",CELL("filename",roll!$A$15))+1,31)&"!"&ADDRESS(MATCH(rn_05!$D$9,roll!C:C,0)+1,3,4)),ROW(B10)-1+SUM($B$14:$C$14),0)) ->  | E24: =IF(ROW(B10)-1>=$E$14,"",OFFSET(INDIRECT(MID(CELL("filename",roll!$A$15),FIND("]",CELL("filename",roll!$A$15))+1,31)&"!"&ADDRESS(MATCH(rn_05!$D$9,roll!C:C,0)+1,3,4)),ROW(B10)-1+SUM($B$14:$D$14),0)) ->  | F24: 1
B25: =IF(ROW(B11)-1>=$B$14,"",OFFSET(INDIRECT(MID(CELL("filename",roll!$A$15),FIND("]",CELL("filename",roll!$A$15))+1,31)&"!"&ADDRESS(MATCH(rn_05!$D$9,roll!C:C,0)+1,3,4)),ROW(B11)-1,0)) ->  | C25: =IF(ROW(B11)-1>=$C$14,"",OFFSET(INDIRECT(MID(CELL("filename",roll!$A$15),FIND("]",CELL("filename",roll!$A$15))+1,31)&"!"&ADDRESS(MATCH(rn_05!$D$9,roll!C:C,0)+1,3,4)),ROW(B11)-1+SUM($B$14:$B$14),0)) ->  | D25: =IF(ROW(B11)-1>=$D$14,"",OFFSET(INDIRECT(MID(CELL("filename",roll!$A$15),FIND("]",CELL("filename",roll!$A$15))+1,31)&"!"&ADDRESS(MATCH(rn_05!$D$9,roll!C:C,0)+1,3,4)),ROW(B11)-1+SUM($B$14:$C$14),0)) ->  | E25: =IF(ROW(B11)-1>=$E$14,"",OFFSET(INDIRECT(MID(CELL("filename",roll!$A$15),FIND("]",CELL("filename",roll!$A$15))+1,31)&"!"&ADDRESS(MATCH(rn_05!$D$9,roll!C:C,0)+1,3,4)),ROW(B11)-1+SUM($B$14:$D$14),0)) -> 
B26: =IF(ROW(B12)-1>=$B$14,"",OFFSET(INDIRECT(MID(CELL("filename",roll!$A$15),FIND("]",CELL("filename",roll!$A$15))+1,31)&"!"&ADDRESS(MATCH(rn_05!$D$9,roll!C:C,0)+1,3,4)),ROW(B12)-1,0)) ->  | C26: =IF(ROW(B12)-1>=$C$14,"",OFFSET(INDIRECT(MID(CELL("filename",roll!$A$15),FIND("]",CELL("filename",roll!$A$15))+1,31)&"!"&ADDRESS(MATCH(rn_05!$D$9,roll!C:C,0)+1,3,4)),ROW(B12)-1+SUM($B$14:$B$14),0)) ->  | D26: =IF(ROW(B12)-1>=$D$14,"",OFFSET(INDIRECT(MID(CELL("filename",roll!$A$15),FIND("]",CELL("filename",roll!$A$15))+1,31)&"!"&ADDRESS(MATCH(rn_05!$D$9,roll!C:C,0)+1,3,4)),ROW(B12)-1+SUM($B$14:$C$14),0)) ->  | E26: =IF(ROW(B12)-1>=$E$14,"",OFFSET(INDIRECT(MID(CELL("filename",roll!$A$15),FIND("]",CELL("filename",roll!$A$15))+1,31)&"!"&ADDRESS(MATCH(rn_05!$D$9,roll!C:C,0)+1,3,4)),ROW(B12)-1+SUM($B$14:$D$14),0)) -> 
B27: =IF(ROW(B13)-1>=$B$14,"",OFFSET(INDIRECT(MID(CELL("filename",roll!$A$15),FIND("]",CELL("filename",roll!$A$15))+1,31)&"!"&ADDRESS(MATCH(rn_05!$D$9,roll!C:C,0)+1,3,4)),ROW(B13)-1,0)) ->  | C27: =IF(ROW(B13)-1>=$C$14,"",OFFSET(INDIRECT(MID(CELL("filename",roll!$A$15),FIND("]",CELL("filename",roll!$A$15))+1,31)&"!"&ADDRESS(MATCH(rn_05!$D$9,roll!C:C,0)+1,3,4)),ROW(B13)-1+SUM($B$14:$B$14),0)) ->  | D27: =IF(ROW(B13)-1>=$D$14,"",OFFSET(INDIRECT(MID(CELL("filename",roll!$A$15),FIND("]",CELL("filename",roll!$A$15))+1,31)&"!"&ADDRESS(MATCH(rn_05!$D$9,roll!C:C,0)+1,3,4)),ROW(B13)-1+SUM($B$14:$C$14),0)) ->  | E27: =IF(ROW(B13)-1>=$E$14,"",OFFSET(INDIRECT(MID(CELL("filename",roll!$A$15),FIND("]",CELL("filename",roll!$A$15))+1,31)&"!"&ADDRESS(MATCH(rn_05!$D$9,roll!C:C,0)+1,3,4)),ROW(B13)-1+SUM($B$14:$D$14),0)) -> 
B28: =IF(ROW(B14)-1>=$B$14,"",OFFSET(INDIRECT(MID(CELL("filename",roll!$A$15),FIND("]",CELL("filename",roll!$A$15))+1,31)&"!"&ADDRESS(MATCH(rn_05!$D$9,roll!C:C,0)+1,3,4)),ROW(B14)-1,0)) ->  | C28: =IF(ROW(B14)-1>=$C$14,"",OFFSET(INDIRECT(MID(CELL("filename",roll!$A$15),FIND("]",CELL("filename",roll!$A$15))+1,31)&"!"&ADDRESS(MATCH(rn_05!$D$9,roll!C:C,0)+1,3,4)),ROW(B14)-1+SUM($B$14:$B$14),0)) ->  | D28: =IF(ROW(B14)-1>=$D$14,"",OFFSET(INDIRECT(MID(CELL("filename",roll!$A$15),FIND("]",CELL("filename",roll!$A$15))+1,31)&"!"&ADDRESS(MATCH(rn_05!$D$9,roll!C:C,0)+1,3,4)),ROW(B14)-1+SUM($B$14:$C$14),0)) ->  | E28: =IF(ROW(B14)-1>=$E$14,"",OFFSET(INDIRECT(MID(CELL("filename",roll!$A$15),FIND("]",CELL("filename",roll!$A$15))+1,31)&"!"&ADDRESS(MATCH(rn_05!$D$9,roll!C:C,0)+1,3,4)),ROW(B14)-1+SUM($B$14:$D$14),0)) -> 
B29: =IF(ROW(B15)-1>=$B$14,"",OFFSET(INDIRECT(MID(CELL("filename",roll!$A$15),FIND("]",CELL("filename",roll!$A$15))+1,31)&"!"&ADDRESS(MATCH(rn_05!$D$9,roll!C:C,0)+1,3,4)),ROW(B15)-1,0)) ->  | C29: =IF(ROW(B15)-1>=$C$14,"",OFFSET(INDIRECT(MID(CELL("filename",roll!$A$15),FIND("]",CELL("filename",roll!$A$15))+1,31)&"!"&ADDRESS(MATCH(rn_05!$D$9,roll!C:C,0)+1,3,4)),ROW(B15)-1+SUM($B$14:$B$14),0)) ->  | D29: =IF(ROW(B15)-1>=$D$14,"",OFFSET(INDIRECT(MID(CELL("filename",roll!$A$15),FIND("]",CELL("filename",roll!$A$15))+1,31)&"!"&ADDRESS(MATCH(rn_05!$D$9,roll!C:C,0)+1,3,4)),ROW(B15)-1+SUM($B$14:$C$14),0)) ->  | E29: =IF(ROW(B15)-1>=$E$14,"",OFFSET(INDIRECT(MID(CELL("filename",roll!$A$15),FIND("]",CELL("filename",roll!$A$15))+1,31)&"!"&ADDRESS(MATCH(rn_05!$D$9,roll!C:C,0)+1,3,4)),ROW(B15)-1+SUM($B$14:$D$14),0)) -> 
B30: =IF(ROW(B16)-1>=$B$14,"",OFFSET(INDIRECT(MID(CELL("filename",roll!$A$15),FIND("]",CELL("filename",roll!$A$15))+1,31)&"!"&ADDRESS(MATCH(rn_05!$D$9,roll!C:C,0)+1,3,4)),ROW(B16)-1,0)) ->  | C30: =IF(ROW(B16)-1>=$C$14,"",OFFSET(INDIRECT(MID(CELL("filename",roll!$A$15),FIND("]",CELL("filename",roll!$A$15))+1,31)&"!"&ADDRESS(MATCH(rn_05!$D$9,roll!C:C,0)+1,3,4)),ROW(B16)-1+SUM($B$14:$B$14),0)) ->  | D30: =IF(ROW(B16)-1>=$D$14,"",OFFSET(INDIRECT(MID(CELL("filename",roll!$A$15),FIND("]",CELL("filename",roll!$A$15))+1,31)&"!"&ADDRESS(MATCH(rn_05!$D$9,roll!C:C,0)+1,3,4)),ROW(B16)-1+SUM($B$14:$C$14),0)) ->  | E30: =IF(ROW(B16)-1>=$E$14,"",OFFSET(INDIRECT(MID(CELL("filename",roll!$A$15),FIND("]",CELL("filename",roll!$A$15))+1,31)&"!"&ADDRESS(MATCH(rn_05!$D$9,roll!C:C,0)+1,3,4)),ROW(B16)-1+SUM($B$14:$D$14),0)) -> 
B31: =IF(ROW(B17)-1>=$B$14,"",OFFSET(INDIRECT(MID(CELL("filename",roll!$A$15),FIND("]",CELL("filename",roll!$A$15))+1,31)&"!"&ADDRESS(MATCH(rn_05!$D$9,roll!C:C,0)+1,3,4)),ROW(B17)-1,0)) ->  | C31: =IF(ROW(B17)-1>=$C$14,"",OFFSET(INDIRECT(MID(CELL("filename",roll!$A$15),FIND("]",CELL("filename",roll!$A$15))+1,31)&"!"&ADDRESS(MATCH(rn_05!$D$9,roll!C:C,0)+1,3,4)),ROW(B17)-1+SUM($B$14:$B$14),0)) ->  | D31: =IF(ROW(B17)-1>=$D$14,"",OFFSET(INDIRECT(MID(CELL("filename",roll!$A$15),FIND("]",CELL("filename",roll!$A$15))+1,31)&"!"&ADDRESS(MATCH(rn_05!$D$9,roll!C:C,0)+1,3,4)),ROW(B17)-1+SUM($B$14:$C$14),0)) ->  | E31: =IF(ROW(B17)-1>=$E$14,"",OFFSET(INDIRECT(MID(CELL("filename",roll!$A$15),FIND("]",CELL("filename",roll!$A$15))+1,31)&"!"&ADDRESS(MATCH(rn_05!$D$9,roll!C:C,0)+1,3,4)),ROW(B17)-1+SUM($B$14:$D$14),0)) -> 
B32: =IF(ROW(B18)-1>=$B$14,"",OFFSET(INDIRECT(MID(CELL("filename",roll!$A$15),FIND("]",CELL("filename",roll!$A$15))+1,31)&"!"&ADDRESS(MATCH(rn_05!$D$9,roll!C:C,0)+1,3,4)),ROW(B18)-1,0)) ->  | C32: =IF(ROW(B18)-1>=$C$14,"",OFFSET(INDIRECT(MID(CELL("filename",roll!$A$15),FIND("]",CELL("filename",roll!$A$15))+1,31)&"!"&ADDRESS(MATCH(rn_05!$D$9,roll!C:C,0)+1,3,4)),ROW(B18)-1+SUM($B$14:$B$14),0)) ->  | D32: =IF(ROW(B18)-1>=$D$14,"",OFFSET(INDIRECT(MID(CELL("filename",roll!$A$15),FIND("]",CELL("filename",roll!$A$15))+1,31)&"!"&ADDRESS(MATCH(rn_05!$D$9,roll!C:C,0)+1,3,4)),ROW(B18)-1+SUM($B$14:$C$14),0)) ->  | E32: =IF(ROW(B18)-1>=$E$14,"",OFFSET(INDIRECT(MID(CELL("filename",roll!$A$15),FIND("]",CELL("filename",roll!$A$15))+1,31)&"!"&ADDRESS(MATCH(rn_05!$D$9,roll!C:C,0)+1,3,4)),ROW(B18)-1+SUM($B$14:$D$14),0)) -> 
B33: =IF(ROW(B19)-1>=$B$14,"",OFFSET(INDIRECT(MID(CELL("filename",roll!$A$15),FIND("]",CELL("filename",roll!$A$15))+1,31)&"!"&ADDRESS(MATCH(rn_05!$D$9,roll!C:C,0)+1,3,4)),ROW(B19)-1,0)) ->  | C33: =IF(ROW(B19)-1>=$C$14,"",OFFSET(INDIRECT(MID(CELL("filename",roll!$A$15),FIND("]",CELL("filename",roll!$A$15))+1,31)&"!"&ADDRESS(MATCH(rn_05!$D$9,roll!C:C,0)+1,3,4)),ROW(B19)-1+SUM($B$14:$B$14),0)) ->  | D33: =IF(ROW(B19)-1>=$D$14,"",OFFSET(INDIRECT(MID(CELL("filename",roll!$A$15),FIND("]",CELL("filename",roll!$A$15))+1,31)&"!"&ADDRESS(MATCH(rn_05!$D$9,roll!C:C,0)+1,3,4)),ROW(B19)-1+SUM($B$14:$C$14),0)) ->  | E33: =IF(ROW(B19)-1>=$E$14,"",OFFSET(INDIRECT(MID(CELL("filename",roll!$A$15),FIND("]",CELL("filename",roll!$A$15))+1,31)&"!"&ADDRESS(MATCH(rn_05!$D$9,roll!C:C,0)+1,3,4)),ROW(B19)-1+SUM($B$14:$D$14),0)) -> 
B34: =IF(ROW(B20)-1>=$B$14,"",OFFSET(INDIRECT(MID(CELL("filename",roll!$A$15),FIND("]",CELL("filename",roll!$A$15))+1,31)&"!"&ADDRESS(MATCH(rn_05!$D$9,roll!C:C,0)+1,3,4)),ROW(B20)-1,0)) ->  | C34: =IF(ROW(B20)-1>=$C$14,"",OFFSET(INDIRECT(MID(CELL("filename",roll!$A$15),FIND("]",CELL("filename",roll!$A$15))+1,31)&"!"&ADDRESS(MATCH(rn_05!$D$9,roll!C:C,0)+1,3,4)),ROW(B20)-1+SUM($B$14:$B$14),0)) ->  | D34: =IF(ROW(B20)-1>=$D$14,"",OFFSET(INDIRECT(MID(CELL("filename",roll!$A$15),FIND("]",CELL("filename",roll!$A$15))+1,31)&"!"&ADDRESS(MATCH(rn_05!$D$9,roll!C:C,0)+1,3,4)),ROW(B20)-1+SUM($B$14:$C$14),0)) ->  | E34: =IF(ROW(B20)-1>=$E$14,"",OFFSET(INDIRECT(MID(CELL("filename",roll!$A$15),FIND("]",CELL("filename",roll!$A$15))+1,31)&"!"&ADDRESS(MATCH(rn_05!$D$9,roll!C:C,0)+1,3,4)),ROW(B20)-1+SUM($B$14:$D$14),0)) -> 
B36: परीक्षा प्रभारी | E36: केन्द्राधीक्षक
B37: =rn_01!$B$37 -> ASD (Lecturer) | E37: =rn_01!$E$37 -> XYZ (Principal)

Sheet rn_07
B1: =rn_01!$B$1 -> Class VIIITH Board Examination, 2025
B2: परीक्षा केंद्र नाम एवं परीक्षा केंद्र क्रमांक
B3: =rn_01!$B$3 -> GSSS Malutana (12345)
B4: परीक्षा कक्ष / हॉल क्रमांक
B5: =rn_01!$K$7 -> 7
B6: परीक्षा दिनांक (दिवस) ... से ... तक
B7: =rn_01!$B$7 -> 01-03-2025 | C7: =IF(B7="","",TEXT(B7,"DDDD")) -> Saturday | D7: =rn_01!$D$7 -> 22-05-2025 | E7: =IF(D7="","",TEXT(D7,"DDDD")) -> Thursday
B8: परीक्षार्थी रोल नंबर ... से ... तक
B9: =IF(B14>0,B15,IF(C14>0,C15,IF(D14>0,D15,IF(E14>0,E15,0)))) -> 586 | D9: =IF(E14>0,LOOKUP(2,1/(E15:E34<>""),E15:E34),IF(D14>0,LOOKUP(2,1/(D15:D34<>""),D15:D34),IF(C14>0,LOOKUP(2,1/(C15:C34<>""),C15:C34),IF(B14>0,LOOKUP(2,1/(B15:B34<>""),B15:B34),0)))) -> 10104
B10: कुल सम्मिलित परीक्षार्थी
B11: =COUNTIF($B$15:$E$34,">0") -> 36
B12: परीक्षार्थी बैठक व्यवस्था
B13: पंक्ति 1 | C13: पंक्ति 2 | D13: पंक्ति 3 | E13: पंक्ति 4
B14: =rn_01!L7 -> 19 | C14: =rn_01!M7 -> 5 | D14: =rn_01!N7 -> 5 | E14: =rn_01!O7 -> 7
B15: =IF(ROW(B1)-1>=$B$14,"",OFFSET(INDIRECT(MID(CELL("filename",roll!$A$15),FIND("]",CELL("filename",roll!$A$15))+1,31)&"!"&ADDRESS(MATCH(rn_06!$D$9,roll!C:C,0)+1,3,4)),ROW(B1)-1,0)) -> 586 | C15: =IF(ROW(B1)-1>=$C$14,"",OFFSET(INDIRECT(MID(CELL("filename",roll!$A$15),FIND("]",CELL("filename",roll!$A$15))+1,31)&"!"&ADDRESS(MATCH(rn_06!$D$9,roll!C:C,0)+1,3,4)),ROW(B1)-1+SUM($B$14:$B$14),0)) -> 10096 | D15: =IF(ROW(B1)-1>=$D$14,"",OFFSET(INDIRECT(MID(CELL("filename",roll!$A$15),FIND("]",CELL("filename",roll!$A$15))+1,31)&"!"&ADDRESS(MATCH(rn_06!$D$9,roll!C:C,0)+1,3,4)),ROW(B1)-1+SUM($B$14:$C$14),0)) -> 598 | E15: =IF(ROW(B1)-1>=$E$14,"",OFFSET(INDIRECT(MID(CELL("filename",roll!$A$15),FIND("]",CELL("filename",roll!$A$15))+1,31)&"!"&ADDRESS(MATCH(rn_06!$D$9,roll!C:C,0)+1,3,4)),ROW(B1)-1+SUM($B$14:$D$14),0)) -> 10101 | F15: =IF(SUM(B15:E15)>0,1,"") -> 1
B16: =IF(ROW(B2)-1>=$B$14,"",OFFSET(INDIRECT(MID(CELL("filename",roll!$A$15),FIND("]",CELL("filename",roll!$A$15))+1,31)&"!"&ADDRESS(MATCH(rn_06!$D$9,roll!C:C,0)+1,3,4)),ROW(B2)-1,0)) -> 10087 | C16: =IF(ROW(B2)-1>=$C$14,"",OFFSET(INDIRECT(MID(CELL("filename",roll!$A$15),FIND("]",CELL("filename",roll!$A$15))+1,31)&"!"&ADDRESS(MATCH(rn_06!$D$9,roll!C:C,0)+1,3,4)),ROW(B2)-1+SUM($B$14:$B$14),0)) -> 596 | D16: =IF(ROW(B2)-1>=$D$14,"",OFFSET(INDIRECT(MID(CELL("filename",roll!$A$15),FIND("]",CELL("filename",roll!$A$15))+1,31)&"!"&ADDRESS(MATCH(rn_06!$D$9,roll!C:C,0)+1,3,4)),ROW(B2)-1+SUM($B$14:$C$14),0)) -> 10099 | E16: =IF(ROW(B2)-1>=$E$14,"",OFFSET(INDIRECT(MID(CELL("filename",roll!$A$15),FIND("]",CELL("filename",roll!$A$15))+1,31)&"!"&ADDRESS(MATCH(rn_06!$D$9,roll!C:C,0)+1,3,4)),ROW(B2)-1+SUM($B$14:$D$14),0)) -> 601 | F16: =IF(SUM(B16:E16)>0,1,"") -> 1
B17: =IF(ROW(B3)-1>=$B$14,"",OFFSET(INDIRECT(MID(CELL("filename",roll!$A$15),FIND("]",CELL("filename",roll!$A$15))+1,31)&"!"&ADDRESS(MATCH(rn_06!$D$9,roll!C:C,0)+1,3,4)),ROW(B3)-1,0)) -> 587 | C17: =IF(ROW(B3)-1>=$C$14,"",OFFSET(INDIRECT(MID(CELL("filename",roll!$A$15),FIND("]",CELL("filename",roll!$A$15))+1,31)&"!"&ADDRESS(MATCH(rn_06!$D$9,roll!C:C,0)+1,3,4)),ROW(B3)-1+SUM($B$14:$B$14),0)) -> 10097 | D17: =IF(ROW(B3)-1>=$D$14,"",OFFSET(INDIRECT(MID(CELL("filename",roll!$A$15),FIND("]",CELL("filename",roll!$A$15))+1,31)&"!"&ADDRESS(MATCH(rn_06!$D$9,roll!C:C,0)+1,3,4)),ROW(B3)-1+SUM($B$14:$C$14),0)) -> 599 | E17: =IF(ROW(B3)-1>=$E$14,"",OFFSET(INDIRECT(MID(CELL("filename",roll!$A$15),FIND("]",CELL("filename",roll!$A$15))+1,31)&"!"&ADDRESS(MATCH(rn_06!$D$9,roll!C:C,0)+1,3,4)),ROW(B3)-1+SUM($B$14:$D$14),0)) -> 10102 | F17: 1
B18: =IF(ROW(B4)-1>=$B$14,"",OFFSET(INDIRECT(MID(CELL("filename",roll!$A$15),FIND("]",CELL("filename",roll!$A$15))+1,31)&"!"&ADDRESS(MATCH(rn_06!$D$9,roll!C:C,0)+1,3,4)),ROW(B4)-1,0)) -> 10088 | C18: =IF(ROW(B4)-1>=$C$14,"",OFFSET(INDIRECT(MID(CELL("filename",roll!$A$15),FIND("]",CELL("filename",roll!$A$15))+1,31)&"!"&ADDRESS(MATCH(rn_06!$D$9,roll!C:C,0)+1,3,4)),ROW(B4)-1+SUM($B$14:$B$14),0)) -> 597 | D18: =IF(ROW(B4)-1>=$D$14,"",OFFSET(INDIRECT(MID(CELL("filename",roll!$A$15),FIND("]",CELL("filename",roll!$A$15))+1,31)&"!"&ADDRESS(MATCH(rn_06!$D$9,roll!C:C,0)+1,3,4)),ROW(B4)-1+SUM($B$14:$C$14),0)) -> 10100 | E18: =IF(ROW(B4)-1>=$E$14,"",OFFSET(INDIRECT(MID(CELL("filename",roll!$A$15),FIND("]",CELL("filename",roll!$A$15))+1,31)&"!"&ADDRESS(MATCH(rn_06!$D$9,roll!C:C,0)+1,3,4)),ROW(B4)-1+SUM($B$14:$D$14),0)) -> 602 | F18: 1
B19: =IF(ROW(B5)-1>=$B$14,"",OFFSET(INDIRECT(MID(CELL("filename",roll!$A$15),FIND("]",CELL("filename",roll!$A$15))+1,31)&"!"&ADDRESS(MATCH(rn_06!$D$9,roll!C:C,0)+1,3,4)),ROW(B5)-1,0)) -> 588 | C19: =IF(ROW(B5)-1>=$C$14,"",OFFSET(INDIRECT(MID(CELL("filename",roll!$A$15),FIND("]",CELL("filename",roll!$A$15))+1,31)&"!"&ADDRESS(MATCH(rn_06!$D$9,roll!C:C,0)+1,3,4)),ROW(B5)-1+SUM($B$14:$B$14),0)) -> 10098 | D19: =IF(ROW(B5)-1>=$D$14,"",OFFSET(INDIRECT(MID(CELL("filename",roll!$A$15),FIND("]",CELL("filename",roll!$A$15))+1,31)&"!"&ADDRESS(MATCH(rn_06!$D$9,roll!C:C,0)+1,3,4)),ROW(B5)-1+SUM($B$14:$C$14),0)) -> 600 | E19: =IF(ROW(B5)-1>=$E$14,"",OFFSET(INDIRECT(MID(CELL("filename",roll!$A$15),FIND("]",CELL("filename",roll!$A$15))+1,31)&"!"&ADDRESS(MATCH(rn_06!$D$9,roll!C:C,0)+1,3,4)),ROW(B5)-1+SUM($B$14:$D$14),0)) -> 10103 | F19: 1
B20: =IF(ROW(B6)-1>=$B$14,"",OFFSET(INDIRECT(MID(CELL("filename",roll!$A$15),FIND("]",CELL("filename",roll!$A$15))+1,31)&"!"&ADDRESS(MATCH(rn_06!$D$9,roll!C:C,0)+1,3,4)),ROW(B6)-1,0)) -> 10089 | C20: =IF(ROW(B6)-1>=$C$14,"",OFFSET(INDIRECT(MID(CELL("filename",roll!$A$15),FIND("]",CELL("filename",roll!$A$15))+1,31)&"!"&ADDRESS(MATCH(rn_06!$D$9,roll!C:C,0)+1,3,4)),ROW(B6)-1+SUM($B$14:$B$14),0)) ->  | D20: =IF(ROW(B6)-1>=$D$14,"",OFFSET(INDIRECT(MID(CELL("filename",roll!$A$15),FIND("]",CELL("filename",roll!$A$15))+1,31)&"!"&ADDRESS(MATCH(rn_06!$D$9,roll!C:C,0)+1,3,4)),ROW(B6)-1+SUM($B$14:$C$14),0)) ->  | E20: =IF(ROW(B6)-1>=$E$14,"",OFFSET(INDIRECT(MID(CELL("filename",roll!$A$15),FIND("]",CELL("filename",roll!$A$15))+1,31)&"!"&ADDRESS(MATCH(rn_06!$D$9,roll!C:C,0)+1,3,4)),ROW(B6)-1+SUM($B$14:$D$14),0)) -> 603 | F20: 1
B21: =IF(ROW(B7)-1>=$B$14,"",OFFSET(INDIRECT(MID(CELL("filename",roll!$A$15),FIND("]",CELL("filename",roll!$A$15))+1,31)&"!"&ADDRESS(MATCH(rn_06!$D$9,roll!C:C,0)+1,3,4)),ROW(B7)-1,0)) -> 589 | C21: =IF(ROW(B7)-1>=$C$14,"",OFFSET(INDIRECT(MID(CELL("filename",roll!$A$15),FIND("]",CELL("filename",roll!$A$15))+1,31)&"!"&ADDRESS(MATCH(rn_06!$D$9,roll!C:C,0)+1,3,4)),ROW(B7)-1+SUM($B$14:$B$14),0)) ->  | D21: =IF(ROW(B7)-1>=$D$14,"",OFFSET(INDIRECT(MID(CELL("filename",roll!$A$15),FIND("]",CELL("filename",roll!$A$15))+1,31)&"!"&ADDRESS(MATCH(rn_06!$D$9,roll!C:C,0)+1,3,4)),ROW(B7)-1+SUM($B$14:$C$14),0)) ->  | E21: =IF(ROW(B7)-1>=$E$14,"",OFFSET(INDIRECT(MID(CELL("filename",roll!$A$15),FIND("]",CELL("filename",roll!$A$15))+1,31)&"!"&ADDRESS(MATCH(rn_06!$D$9,roll!C:C,0)+1,3,4)),ROW(B7)-1+SUM($B$14:$D$14),0)) -> 10104 | F21: 1
B22: =IF(ROW(B8)-1>=$B$14,"",OFFSET(INDIRECT(MID(CELL("filename",roll!$A$15),FIND("]",CELL("filename",roll!$A$15))+1,31)&"!"&ADDRESS(MATCH(rn_06!$D$9,roll!C:C,0)+1,3,4)),ROW(B8)-1,0)) -> 10090 | C22: =IF(ROW(B8)-1>=$C$14,"",OFFSET(INDIRECT(MID(CELL("filename",roll!$A$15),FIND("]",CELL("filename",roll!$A$15))+1,31)&"!"&ADDRESS(MATCH(rn_06!$D$9,roll!C:C,0)+1,3,4)),ROW(B8)-1+SUM($B$14:$B$14),0)) ->  | D22: =IF(ROW(B8)-1>=$D$14,"",OFFSET(INDIRECT(MID(CELL("filename",roll!$A$15),FIND("]",CELL("filename",roll!$A$15))+1,31)&"!"&ADDRESS(MATCH(rn_06!$D$9,roll!C:C,0)+1,3,4)),ROW(B8)-1+SUM($B$14:$C$14),0)) ->  | E22: =IF(ROW(B8)-1>=$E$14,"",OFFSET(INDIRECT(MID(CELL("filename",roll!$A$15),FIND("]",CELL("filename",roll!$A$15))+1,31)&"!"&ADDRESS(MATCH(rn_06!$D$9,roll!C:C,0)+1,3,4)),ROW(B8)-1+SUM($B$14:$D$14),0)) ->  | F22: 1
B23: =IF(ROW(B9)-1>=$B$14,"",OFFSET(INDIRECT(MID(CELL("filename",roll!$A$15),FIND("]",CELL("filename",roll!$A$15))+1,31)&"!"&ADDRESS(MATCH(rn_06!$D$9,roll!C:C,0)+1,3,4)),ROW(B9)-1,0)) -> 590 | C23: =IF(ROW(B9)-1>=$C$14,"",OFFSET(INDIRECT(MID(CELL("filename",roll!$A$15),FIND("]",CELL("filename",roll!$A$15))+1,31)&"!"&ADDRESS(MATCH(rn_06!$D$9,roll!C:C,0)+1,3,4)),ROW(B9)-1+SUM($B$14:$B$14),0)) ->  | D23: =IF(ROW(B9)-1>=$D$14,"",OFFSET(INDIRECT(MID(CELL("filename",roll!$A$15),FIND("]",CELL("filename",roll!$A$15))+1,31)&"!"&ADDRESS(MATCH(rn_06!$D$9,roll!C:C,0)+1,3,4)),ROW(B9)-1+SUM($B$14:$C$14),0)) ->  | E23: =IF(ROW(B9)-1>=$E$14,"",OFFSET(INDIRECT(MID(CELL("filename",roll!$A$15),FIND("]",CELL("filename",roll!$A$15))+1,31)&"!"&ADDRESS(MATCH(rn_06!$D$9,roll!C:C,0)+1,3,4)),ROW(B9)-1+SUM($B$14:$D$14),0)) ->  | F23: 1
B24: =IF(ROW(B10)-1>=$B$14,"",OFFSET(INDIRECT(MID(CELL("filename",roll!$A$15),FIND("]",CELL("filename",roll!$A$15))+1,31)&"!"&ADDRESS(MATCH(rn_06!$D$9,roll!C:C,0)+1,3,4)),ROW(B10)-1,0)) -> 10091 | C24: =IF(ROW(B10)-1>=$C$14,"",OFFSET(INDIRECT(MID(CELL("filename",roll!$A$15),FIND("]",CELL("filename",roll!$A$15))+1,31)&"!"&ADDRESS(MATCH(rn_06!$D$9,roll!C:C,0)+1,3,4)),ROW(B10)-1+SUM($B$14:$B$14),0)) ->  | D24: =IF(ROW(B10)-1>=$D$14,"",OFFSET(INDIRECT(MID(CELL("filename",roll!$A$15),FIND("]",CELL("filename",roll!$A$15))+1,31)&"!"&ADDRESS(MATCH(rn_06!$D$9,roll!C:C,0)+1,3,4)),ROW(B10)-1+SUM($B$14:$C$14),0)) ->  | E24: =IF(ROW(B10)-1>=$E$14,"",OFFSET(INDIRECT(MID(CELL("filename",roll!$A$15),FIND("]",CELL("filename",roll!$A$15))+1,31)&"!"&ADDRESS(MATCH(rn_06!$D$9,roll!C:C,0)+1,3,4)),ROW(B10)-1+SUM($B$14:$D$14),0)) ->  | F24: 1
B25: =IF(ROW(B11)-1>=$B$14,"",OFFSET(INDIRECT(MID(CELL("filename",roll!$A$15),FIND("]",CELL("filename",roll!$A$15))+1,31)&"!"&ADDRESS(MATCH(rn_06!$D$9,roll!C:C,0)+1,3,4)),ROW(B11)-1,0)) -> 591 | C25: =IF(ROW(B11)-1>=$C$14,"",OFFSET(INDIRECT(MID(CELL("filename",roll!$A$15),FIND("]",CELL("filename",roll!$A$15))+1,31)&"!"&ADDRESS(MATCH(rn_06!$D$9,roll!C:C,0)+1,3,4)),ROW(B11)-1+SUM($B$14:$B$14),0)) ->  | D25: =IF(ROW(B11)-1>=$D$14,"",OFFSET(INDIRECT(MID(CELL("filename",roll!$A$15),FIND("]",CELL("filename",roll!$A$15))+1,31)&"!"&ADDRESS(MATCH(rn_06!$D$9,roll!C:C,0)+1,3,4)),ROW(B11)-1+SUM($B$14:$C$14),0)) ->  | E25: =IF(ROW(B11)-1>=$E$14,"",OFFSET(INDIRECT(MID(CELL("filename",roll!$A$15),FIND("]",CELL("filename",roll!$A$15))+1,31)&"!"&ADDRESS(MATCH(rn_06!$D$9,roll!C:C,0)+1,3,4)),ROW(B11)-1+SUM($B$14:$D$14),0)) ->  | F25: 1
B26: =IF(ROW(B12)-1>=$B$14,"",OFFSET(INDIRECT(MID(CELL("filename",roll!$A$15),FIND("]",CELL("filename",roll!$A$15))+1,31)&"!"&ADDRESS(MATCH(rn_06!$D$9,roll!C:C,0)+1,3,4)),ROW(B12)-1,0)) -> 10092 | C26: =IF(ROW(B12)-1>=$C$14,"",OFFSET(INDIRECT(MID(CELL("filename",roll!$A$15),FIND("]",CELL("filename",roll!$A$15))+1,31)&"!"&ADDRESS(MATCH(rn_06!$D$9,roll!C:C,0)+1,3,4)),ROW(B12)-1+SUM($B$14:$B$14),0)) ->  | D26: =IF(ROW(B12)-1>=$D$14,"",OFFSET(INDIRECT(MID(CELL("filename",roll!$A$15),FIND("]",CELL("filename",roll!$A$15))+1,31)&"!"&ADDRESS(MATCH(rn_06!$D$9,roll!C:C,0)+1,3,4)),ROW(B12)-1+SUM($B$14:$C$14),0)) ->  | E26: =IF(ROW(B12)-1>=$E$14,"",OFFSET(INDIRECT(MID(CELL("filename",roll!$A$15),FIND("]",CELL("filename",roll!$A$15))+1,31)&"!"&ADDRESS(MATCH(rn_06!$D$9,roll!C:C,0)+1,3,4)),ROW(B12)-1+SUM($B$14:$D$14),0)) ->  | F26: 1
B27: =IF(ROW(B13)-1>=$B$14,"",OFFSET(INDIRECT(MID(CELL("filename",roll!$A$15),FIND("]",CELL("filename",roll!$A$15))+1,31)&"!"&ADDRESS(MATCH(rn_06!$D$9,roll!C:C,0)+1,3,4)),ROW(B13)-1,0)) -> 592 | C27: =IF(ROW(B13)-1>=$C$14,"",OFFSET(INDIRECT(MID(CELL("filename",roll!$A$15),FIND("]",CELL("filename",roll!$A$15))+1,31)&"!"&ADDRESS(MATCH(rn_06!$D$9,roll!C:C,0)+1,3,4)),ROW(B13)-1+SUM($B$14:$B$14),0)) ->  | D27: =IF(ROW(B13)-1>=$D$14,"",OFFSET(INDIRECT(MID(CELL("filename",roll!$A$15),FIND("]",CELL("filename",roll!$A$15))+1,31)&"!"&ADDRESS(MATCH(rn_06!$D$9,roll!C:C,0)+1,3,4)),ROW(B13)-1+SUM($B$14:$C$14),0)) ->  | E27: =IF(ROW(B13)-1>=$E$14,"",OFFSET(INDIRECT(MID(CELL("filename",roll!$A$15),FIND("]",CELL("filename",roll!$A$15))+1,31)&"!"&ADDRESS(MATCH(rn_06!$D$9,roll!C:C,0)+1,3,4)),ROW(B13)-1+SUM($B$14:$D$14),0)) ->  | F27: 1
B28: =IF(ROW(B14)-1>=$B$14,"",OFFSET(INDIRECT(MID(CELL("filename",roll!$A$15),FIND("]",CELL("filename",roll!$A$15))+1,31)&"!"&ADDRESS(MATCH(rn_06!$D$9,roll!C:C,0)+1,3,4)),ROW(B14)-1,0)) -> 10093 | C28: =IF(ROW(B14)-1>=$C$14,"",OFFSET(INDIRECT(MID(CELL("filename",roll!$A$15),FIND("]",CELL("filename",roll!$A$15))+1,31)&"!"&ADDRESS(MATCH(rn_06!$D$9,roll!C:C,0)+1,3,4)),ROW(B14)-1+SUM($B$14:$B$14),0)) ->  | D28: =IF(ROW(B14)-1>=$D$14,"",OFFSET(INDIRECT(MID(CELL("filename",roll!$A$15),FIND("]",CELL("filename",roll!$A$15))+1,31)&"!"&ADDRESS(MATCH(rn_06!$D$9,roll!C:C,0)+1,3,4)),ROW(B14)-1+SUM($B$14:$C$14),0)) ->  | E28: =IF(ROW(B14)-1>=$E$14,"",OFFSET(INDIRECT(MID(CELL("filename",roll!$A$15),FIND("]",CELL("filename",roll!$A$15))+1,31)&"!"&ADDRESS(MATCH(rn_06!$D$9,roll!C:C,0)+1,3,4)),ROW(B14)-1+SUM($B$14:$D$14),0)) ->  | F28: 1
B29: =IF(ROW(B15)-1>=$B$14,"",OFFSET(INDIRECT(MID(CELL("filename",roll!$A$15),FIND("]",CELL("filename",roll!$A$15))+1,31)&"!"&ADDRESS(MATCH(rn_06!$D$9,roll!C:C,0)+1,3,4)),ROW(B15)-1,0)) -> 593 | C29: =IF(ROW(B15)-1>=$C$14,"",OFFSET(INDIRECT(MID(CELL("filename",roll!$A$15),FIND("]",CELL("filename",roll!$A$15))+1,31)&"!"&ADDRESS(MATCH(rn_06!$D$9,roll!C:C,0)+1,3,4)),ROW(B15)-1+SUM($B$14:$B$14),0)) ->  | D29: =IF(ROW(B15)-1>=$D$14,"",OFFSET(INDIRECT(MID(CELL("filename",roll!$A$15),FIND("]",CELL("filename",roll!$A$15))+1,31)&"!"&ADDRESS(MATCH(rn_06!$D$9,roll!C:C,0)+1,3,4)),ROW(B15)-1+SUM($B$14:$C$14),0)) ->  | E29: =IF(ROW(B15)-1>=$E$14,"",OFFSET(INDIRECT(MID(CELL("filename",roll!$A$15),FIND("]",CELL("filename",roll!$A$15))+1,31)&"!"&ADDRESS(MATCH(rn_06!$D$9,roll!C:C,0)+1,3,4)),ROW(B15)-1+SUM($B$14:$D$14),0)) ->  | F29: 1
B30: =IF(ROW(B16)-1>=$B$14,"",OFFSET(INDIRECT(MID(CELL("filename",roll!$A$15),FIND("]",CELL("filename",roll!$A$15))+1,31)&"!"&ADDRESS(MATCH(rn_06!$D$9,roll!C:C,0)+1,3,4)),ROW(B16)-1,0)) -> 10094 | C30: =IF(ROW(B16)-1>=$C$14,"",OFFSET(INDIRECT(MID(CELL("filename",roll!$A$15),FIND("]",CELL("filename",roll!$A$15))+1,31)&"!"&ADDRESS(MATCH(rn_06!$D$9,roll!C:C,0)+1,3,4)),ROW(B16)-1+SUM($B$14:$B$14),0)) ->  | D30: =IF(ROW(B16)-1>=$D$14,"",OFFSET(INDIRECT(MID(CELL("filename",roll!$A$15),FIND("]",CELL("filename",roll!$A$15))+1,31)&"!"&ADDRESS(MATCH(rn_06!$D$9,roll!C:C,0)+1,3,4)),ROW(B16)-1+SUM($B$14:$C$14),0)) ->  | E30: =IF(ROW(B16)-1>=$E$14,"",OFFSET(INDIRECT(MID(CELL("filename",roll!$A$15),FIND("]",CELL("filename",roll!$A$15))+1,31)&"!"&ADDRESS(MATCH(rn_06!$D$9,roll!C:C,0)+1,3,4)),ROW(B16)-1+SUM($B$14:$D$14),0)) ->  | F30: 1
B31: =IF(ROW(B17)-1>=$B$14,"",OFFSET(INDIRECT(MID(CELL("filename",roll!$A$15),FIND("]",CELL("filename",roll!$A$15))+1,31)&"!"&ADDRESS(MATCH(rn_06!$D$9,roll!C:C,0)+1,3,4)),ROW(B17)-1,0)) -> 594 | C31: =IF(ROW(B17)-1>=$C$14,"",OFFSET(INDIRECT(MID(CELL("filename",roll!$A$15),FIND("]",CELL("filename",roll!$A$15))+1,31)&"!"&ADDRESS(MATCH(rn_06!$D$9,roll!C:C,0)+1,3,4)),ROW(B17)-1+SUM($B$14:$B$14),0)) ->  | D31: =IF(ROW(B17)-1>=$D$14,"",OFFSET(INDIRECT(MID(CELL("filename",roll!$A$15),FIND("]",CELL("filename",roll!$A$15))+1,31)&"!"&ADDRESS(MATCH(rn_06!$D$9,roll!C:C,0)+1,3,4)),ROW(B17)-1+SUM($B$14:$C$14),0)) ->  | E31: =IF(ROW(B17)-1>=$E$14,"",OFFSET(INDIRECT(MID(CELL("filename",roll!$A$15),FIND("]",CELL("filename",roll!$A$15))+1,31)&"!"&ADDRESS(MATCH(rn_06!$D$9,roll!C:C,0)+1,3,4)),ROW(B17)-1+SUM($B$14:$D$14),0)) ->  | F31: 1
B32: =IF(ROW(B18)-1>=$B$14,"",OFFSET(INDIRECT(MID(CELL("filename",roll!$A$15),FIND("]",CELL("filename",roll!$A$15))+1,31)&"!"&ADDRESS(MATCH(rn_06!$D$9,roll!C:C,0)+1,3,4)),ROW(B18)-1,0)) -> 10095 | C32: =IF(ROW(B18)-1>=$C$14,"",OFFSET(INDIRECT(MID(CELL("filename",roll!$A$15),FIND("]",CELL("filename",roll!$A$15))+1,31)&"!"&ADDRESS(MATCH(rn_06!$D$9,roll!C:C,0)+1,3,4)),ROW(B18)-1+SUM($B$14:$B$14),0)) ->  | D32: =IF(ROW(B18)-1>=$D$14,"",OFFSET(INDIRECT(MID(CELL("filename",roll!$A$15),FIND("]",CELL("filename",roll!$A$15))+1,31)&"!"&ADDRESS(MATCH(rn_06!$D$9,roll!C:C,0)+1,3,4)),ROW(B18)-1+SUM($B$14:$C$14),0)) ->  | E32: =IF(ROW(B18)-1>=$E$14,"",OFFSET(INDIRECT(MID(CELL("filename",roll!$A$15),FIND("]",CELL("filename",roll!$A$15))+1,31)&"!"&ADDRESS(MATCH(rn_06!$D$9,roll!C:C,0)+1,3,4)),ROW(B18)-1+SUM($B$14:$D$14),0)) ->  | F32: 1
B33: =IF(ROW(B19)-1>=$B$14,"",OFFSET(INDIRECT(MID(CELL("filename",roll!$A$15),FIND("]",CELL("filename",roll!$A$15))+1,31)&"!"&ADDRESS(MATCH(rn_06!$D$9,roll!C:C,0)+1,3,4)),ROW(B19)-1,0)) -> 595 | C33: =IF(ROW(B19)-1>=$C$14,"",OFFSET(INDIRECT(MID(CELL("filename",roll!$A$15),FIND("]",CELL("filename",roll!$A$15))+1,31)&"!"&ADDRESS(MATCH(rn_06!$D$9,roll!C:C,0)+1,3,4)),ROW(B19)-1+SUM($B$14:$B$14),0)) ->  | D33: =IF(ROW(B19)-1>=$D$14,"",OFFSET(INDIRECT(MID(CELL("filename",roll!$A$15),FIND("]",CELL("filename",roll!$A$15))+1,31)&"!"&ADDRESS(MATCH(rn_06!$D$9,roll!C:C,0)+1,3,4)),ROW(B19)-1+SUM($B$14:$C$14),0)) ->  | E33: =IF(ROW(B19)-1>=$E$14,"",OFFSET(INDIRECT(MID(CELL("filename",roll!$A$15),FIND("]",CELL("filename",roll!$A$15))+1,31)&"!"&ADDRESS(MATCH(rn_06!$D$9,roll!C:C,0)+1,3,4)),ROW(B19)-1+SUM($B$14:$D$14),0)) ->  | F33: 1
B34: =IF(ROW(B20)-1>=$B$14,"",OFFSET(INDIRECT(MID(CELL("filename",roll!$A$15),FIND("]",CELL("filename",roll!$A$15))+1,31)&"!"&ADDRESS(MATCH(rn_06!$D$9,roll!C:C,0)+1,3,4)),ROW(B20)-1,0)) ->  | C34: =IF(ROW(B20)-1>=$C$14,"",OFFSET(INDIRECT(MID(CELL("filename",roll!$A$15),FIND("]",CELL("filename",roll!$A$15))+1,31)&"!"&ADDRESS(MATCH(rn_06!$D$9,roll!C:C,0)+1,3,4)),ROW(B20)-1+SUM($B$14:$B$14),0)) ->  | D34: =IF(ROW(B20)-1>=$D$14,"",OFFSET(INDIRECT(MID(CELL("filename",roll!$A$15),FIND("]",CELL("filename",roll!$A$15))+1,31)&"!"&ADDRESS(MATCH(rn_06!$D$9,roll!C:C,0)+1,3,4)),ROW(B20)-1+SUM($B$14:$C$14),0)) ->  | E34: =IF(ROW(B20)-1>=$E$14,"",OFFSET(INDIRECT(MID(CELL("filename",roll!$A$15),FIND("]",CELL("filename",roll!$A$15))+1,31)&"!"&ADDRESS(MATCH(rn_06!$D$9,roll!C:C,0)+1,3,4)),ROW(B20)-1+SUM($B$14:$D$14),0)) -> 
B36: परीक्षा प्रभारी | E36: केन्द्राधीक्षक
B37: =rn_01!$B$37 -> ASD (Lecturer) | E37: =rn_01!$E$37 -> XYZ (Principal)

Sheet rn_08
B1: =rn_01!$B$1 -> Class VIIITH Board Examination, 2025
B2: परीक्षा केंद्र नाम एवं परीक्षा केंद्र क्रमांक
B3: =rn_01!$B$3 -> GSSS Malutana (12345)
B4: परीक्षा कक्ष / हॉल क्रमांक
B5: =rn_01!$K$8 -> 8
B6: परीक्षा दिनांक (दिवस) ... से ... तक
B7: =rn_01!$B$7 -> 01-03-2025 | C7: =IF(B7="","",TEXT(B7,"DDDD")) -> Saturday | D7: =rn_01!$D$7 -> 22-05-2025 | E7: =IF(D7="","",TEXT(D7,"DDDD")) -> Thursday
B8: परीक्षार्थी रोल नंबर ... से ... तक
B9: =IF(B14>0,B15,IF(C14>0,C15,IF(D14>0,D15,IF(E14>0,E15,0)))) -> 604 | D9: =IF(E14>0,LOOKUP(2,1/(E15:E34<>""),E15:E34),IF(D14>0,LOOKUP(2,1/(D15:D34<>""),D15:D34),IF(C14>0,LOOKUP(2,1/(C15:C34<>""),C15:C34),IF(B14>0,LOOKUP(2,1/(B15:B34<>""),B15:B34),0)))) -> 10127
B10: कुल सम्मिलित परीक्षार्थी
B11: =COUNTIF($B$15:$E$34,">0") -> 46
B12: परीक्षार्थी बैठक व्यवस्था
B13: पंक्ति 1 | C13: पंक्ति 2 | D13: पंक्ति 3 | E13: पंक्ति 4
B14: =rn_01!L8 -> 20 | C14: =rn_01!M8 -> 3 | D14: =rn_01!N8 -> 3 | E14: =rn_01!O8 -> 20
B15: =IF(ROW(B1)-1>=$B$14,"",OFFSET(INDIRECT(MID(CELL("filename",roll!$A$15),FIND("]",CELL("filename",roll!$A$15))+1,31)&"!"&ADDRESS(MATCH(rn_07!$D$9,roll!C:C,0)+1,3,4)),ROW(B1)-1,0)) -> 604 | C15: =IF(ROW(B1)-1>=$C$14,"",OFFSET(INDIRECT(MID(CELL("filename",roll!$A$15),FIND("]",CELL("filename",roll!$A$15))+1,31)&"!"&ADDRESS(MATCH(rn_07!$D$9,roll!C:C,0)+1,3,4)),ROW(B1)-1+SUM($B$14:$B$14),0)) -> 614 | D15: =IF(ROW(B1)-1>=$D$14,"",OFFSET(INDIRECT(MID(CELL("filename",roll!$A$15),FIND("]",CELL("filename",roll!$A$15))+1,31)&"!"&ADDRESS(MATCH(rn_07!$D$9,roll!C:C,0)+1,3,4)),ROW(B1)-1+SUM($B$14:$C$14),0)) -> 10116 | E15: =IF(ROW(B1)-1>=$E$14,"",OFFSET(INDIRECT(MID(CELL("filename",roll!$A$15),FIND("]",CELL("filename",roll!$A$15))+1,31)&"!"&ADDRESS(MATCH(rn_07!$D$9,roll!C:C,0)+1,3,4)),ROW(B1)-1+SUM($B$14:$D$14),0)) -> 617 | F15: =IF(SUM(B15:E15)>0,1,"") -> 1
B16: =IF(ROW(B2)-1>=$B$14,"",OFFSET(INDIRECT(MID(CELL("filename",roll!$A$15),FIND("]",CELL("filename",roll!$A$15))+1,31)&"!"&ADDRESS(MATCH(rn_07!$D$9,roll!C:C,0)+1,3,4)),ROW(B2)-1,0)) -> 10105 | C16: =IF(ROW(B2)-1>=$C$14,"",OFFSET(INDIRECT(MID(CELL("filename",roll!$A$15),FIND("]",CELL("filename",roll!$A$15))+1,31)&"!"&ADDRESS(MATCH(rn_07!$D$9,roll!C:C,0)+1,3,4)),ROW(B2)-1+SUM($B$14:$B$14),0)) -> 10115 | D16: =IF(ROW(B2)-1>=$D$14,"",OFFSET(INDIRECT(MID(CELL("filename",roll!$A$15),FIND("]",CELL("filename",roll!$A$15))+1,31)&"!"&ADDRESS(MATCH(rn_07!$D$9,roll!C:C,0)+1,3,4)),ROW(B2)-1+SUM($B$14:$C$14),0)) -> 616 | E16: =IF(ROW(B2)-1>=$E$14,"",OFFSET(INDIRECT(MID(CELL("filename",roll!$A$15),FIND("]",CELL("filename",roll!$A$15))+1,31)&"!"&ADDRESS(MATCH(rn_07!$D$9,roll!C:C,0)+1,3,4)),ROW(B2)-1+SUM($B$14:$D$14),0)) -> 10118 | F16: =IF(SUM(B16:E16)>0,1,"") -> 1
B17: =IF(ROW(B3)-1>=$B$14,"",OFFSET(INDIRECT(MID(CELL("filename",roll!$A$15),FIND("]",CELL("filename",roll!$A$15))+1,31)&"!"&ADDRESS(MATCH(rn_07!$D$9,roll!C:C,0)+1,3,4)),ROW(B3)-1,0)) -> 605 | C17: =IF(ROW(B3)-1>=$C$14,"",OFFSET(INDIRECT(MID(CELL("filename",roll!$A$15),FIND("]",CELL("filename",roll!$A$15))+1,31)&"!"&ADDRESS(MATCH(rn_07!$D$9,roll!C:C,0)+1,3,4)),ROW(B3)-1+SUM($B$14:$B$14),0)) -> 615 | D17: =IF(ROW(B3)-1>=$D$14,"",OFFSET(INDIRECT(MID(CELL("filename",roll!$A$15),FIND("]",CELL("filename",roll!$A$15))+1,31)&"!"&ADDRESS(MATCH(rn_07!$D$9,roll!C:C,0)+1,3,4)),ROW(B3)-1+SUM($B$14:$C$14),0)) -> 10117 | E17: =IF(ROW(B3)-1>=$E$14,"",OFFSET(INDIRECT(MID(CELL("filename",roll!$A$15),FIND("]",CELL("filename",roll!$A$15))+1,31)&"!"&ADDRESS(MATCH(rn_07!$D$9,roll!C:C,0)+1,3,4)),ROW(B3)-1+SUM($B$14:$D$14),0)) -> 618 | F17: 1
B18: =IF(ROW(B4)-1>=$B$14,"",OFFSET(INDIRECT(MID(CELL("filename",roll!$A$15),FIND("]",CELL("filename",roll!$A$15))+1,31)&"!"&ADDRESS(MATCH(rn_07!$D$9,roll!C:C,0)+1,3,4)),ROW(B4)-1,0)) -> 10106 | C18: =IF(ROW(B4)-1>=$C$14,"",OFFSET(INDIRECT(MID(CELL("filename",roll!$A$15),FIND("]",CELL("filename",roll!$A$15))+1,31)&"!"&ADDRESS(MATCH(rn_07!$D$9,roll!C:C,0)+1,3,4)),ROW(B4)-1+SUM($B$14:$B$14),0)) ->  | D18: =IF(ROW(B4)-1>=$D$14,"",OFFSET(INDIRECT(MID(CELL("filename",roll!$A$15),FIND("]",CELL("filename",roll!$A$15))+1,31)&"!"&ADDRESS(MATCH(rn_07!$D$9,roll!C:C,0)+1,3,4)),ROW(B4)-1+SUM($B$14:$C$14),0)) ->  | E18: =IF(ROW(B4)-1>=$E$14,"",OFFSET(INDIRECT(MID(CELL("filename",roll!$A$15),FIND("]",CELL("filename",roll!$A$15))+1,31)&"!"&ADDRESS(MATCH(rn_07!$D$9,roll!C:C,0)+1,3,4)),ROW(B4)-1+SUM($B$14:$D$14),0)) -> 10119 | F18: 1
B19: =IF(ROW(B5)-1>=$B$14,"",OFFSET(INDIRECT(MID(CELL("filename",roll!$A$15),FIND("]",CELL("filename",roll!$A$15))+1,31)&"!"&ADDRESS(MATCH(rn_07!$D$9,roll!C:C,0)+1,3,4)),ROW(B5)-1,0)) -> 606 | C19: =IF(ROW(B5)-1>=$C$14,"",OFFSET(INDIRECT(MID(CELL("filename",roll!$A$15),FIND("]",CELL("filename",roll!$A$15))+1,31)&"!"&ADDRESS(MATCH(rn_07!$D$9,roll!C:C,0)+1,3,4)),ROW(B5)-1+SUM($B$14:$B$14),0)) ->  | D19: =IF(ROW(B5)-1>=$D$14,"",OFFSET(INDIRECT(MID(CELL("filename",roll!$A$15),FIND("]",CELL("filename",roll!$A$15))+1,31)&"!"&ADDRESS(MATCH(rn_07!$D$9,roll!C:C,0)+1,3,4)),ROW(B5)-1+SUM($B$14:$C$14),0)) ->  | E19: =IF(ROW(B5)-1>=$E$14,"",OFFSET(INDIRECT(MID(CELL("filename",roll!$A$15),FIND("]",CELL("filename",roll!$A$15))+1,31)&"!"&ADDRESS(MATCH(rn_07!$D$9,roll!C:C,0)+1,3,4)),ROW(B5)-1+SUM($B$14:$D$14),0)) -> 619 | F19: 1
B20: =IF(ROW(B6)-1>=$B$14,"",OFFSET(INDIRECT(MID(CELL("filename",roll!$A$15),FIND("]",CELL("filename",roll!$A$15))+1,31)&"!"&ADDRESS(MATCH(rn_07!$D$9,roll!C:C,0)+1,3,4)),ROW(B6)-1,0)) -> 10107 | C20: =IF(ROW(B6)-1>=$C$14,"",OFFSET(INDIRECT(MID(CELL("filename",roll!$A$15),FIND("]",CELL("filename",roll!$A$15))+1,31)&"!"&ADDRESS(MATCH(rn_07!$D$9,roll!C:C,0)+1,3,4)),ROW(B6)-1+SUM($B$14:$B$14),0)) ->  | D20: =IF(ROW(B6)-1>=$D$14,"",OFFSET(INDIRECT(MID(CELL("filename",roll!$A$15),FIND("]",CELL("filename",roll!$A$15))+1,31)&"!"&ADDRESS(MATCH(rn_07!$D$9,roll!C:C,0)+1,3,4)),ROW(B6)-1+SUM($B$14:$C$14),0)) ->  | E20: =IF(ROW(B6)-1>=$E$14,"",OFFSET(INDIRECT(MID(CELL("filename",roll!$A$15),FIND("]",CELL("filename",roll!$A$15))+1,31)&"!"&ADDRESS(MATCH(rn_07!$D$9,roll!C:C,0)+1,3,4)),ROW(B6)-1+SUM($B$14:$D$14),0)) -> 10120 | F20: 1
B21: =IF(ROW(B7)-1>=$B$14,"",OFFSET(INDIRECT(MID(CELL("filename",roll!$A$15),FIND("]",CELL("filename",roll!$A$15))+1,31)&"!"&ADDRESS(MATCH(rn_07!$D$9,roll!C:C,0)+1,3,4)),ROW(B7)-1,0)) -> 607 | C21: =IF(ROW(B7)-1>=$C$14,"",OFFSET(INDIRECT(MID(CELL("filename",roll!$A$15),FIND("]",CELL("filename",roll!$A$15))+1,31)&"!"&ADDRESS(MATCH(rn_07!$D$9,roll!C:C,0)+1,3,4)),ROW(B7)-1+SUM($B$14:$B$14),0)) ->  | D21: =IF(ROW(B7)-1>=$D$14,"",OFFSET(INDIRECT(MID(CELL("filename",roll!$A$15),FIND("]",CELL("filename",roll!$A$15))+1,31)&"!"&ADDRESS(MATCH(rn_07!$D$9,roll!C:C,0)+1,3,4)),ROW(B7)-1+SUM($B$14:$C$14),0)) ->  | E21: =IF(ROW(B7)-1>=$E$14,"",OFFSET(INDIRECT(MID(CELL("filename",roll!$A$15),FIND("]",CELL("filename",roll!$A$15))+1,31)&"!"&ADDRESS(MATCH(rn_07!$D$9,roll!C:C,0)+1,3,4)),ROW(B7)-1+SUM($B$14:$D$14),0)) -> 620 | F21: 1
B22: =IF(ROW(B8)-1>=$B$14,"",OFFSET(INDIRECT(MID(CELL("filename",roll!$A$15),FIND("]",CELL("filename",roll!$A$15))+1,31)&"!"&ADDRESS(MATCH(rn_07!$D$9,roll!C:C,0)+1,3,4)),ROW(B8)-1,0)) -> 10108 | C22: =IF(ROW(B8)-1>=$C$14,"",OFFSET(INDIRECT(MID(CELL("filename",roll!$A$15),FIND("]",CELL("filename",roll!$A$15))+1,31)&"!"&ADDRESS(MATCH(rn_07!$D$9,roll!C:C,0)+1,3,4)),ROW(B8)-1+SUM($B$14:$B$14),0)) ->  | D22: =IF(ROW(B8)-1>=$D$14,"",OFFSET(INDIRECT(MID(CELL("filename",roll!$A$15),FIND("]",CELL("filename",roll!$A$15))+1,31)&"!"&ADDRESS(MATCH(rn_07!$D$9,roll!C:C,0)+1,3,4)),ROW(B8)-1+SUM($B$14:$C$14),0)) ->  | E22: =IF(ROW(B8)-1>=$E$14,"",OFFSET(INDIRECT(MID(CELL("filename",roll!$A$15),FIND("]",CELL("filename",roll!$A$15))+1,31)&"!"&ADDRESS(MATCH(rn_07!$D$9,roll!C:C,0)+1,3,4)),ROW(B8)-1+SUM($B$14:$D$14),0)) -> 10121 | F22: 1
B23: =IF(ROW(B9)-1>=$B$14,"",OFFSET(INDIRECT(MID(CELL("filename",roll!$A$15),FIND("]",CELL("filename",roll!$A$15))+1,31)&"!"&ADDRESS(MATCH(rn_07!$D$9,roll!C:C,0)+1,3,4)),ROW(B9)-1,0)) -> 608 | C23: =IF(ROW(B9)-1>=$C$14,"",OFFSET(INDIRECT(MID(CELL("filename",roll!$A$15),FIND("]",CELL("filename",roll!$A$15))+1,31)&"!"&ADDRESS(MATCH(rn_07!$D$9,roll!C:C,0)+1,3,4)),ROW(B9)-1+SUM($B$14:$B$14),0)) ->  | D23: =IF(ROW(B9)-1>=$D$14,"",OFFSET(INDIRECT(MID(CELL("filename",roll!$A$15),FIND("]",CELL("filename",roll!$A$15))+1,31)&"!"&ADDRESS(MATCH(rn_07!$D$9,roll!C:C,0)+1,3,4)),ROW(B9)-1+SUM($B$14:$C$14),0)) ->  | E23: =IF(ROW(B9)-1>=$E$14,"",OFFSET(INDIRECT(MID(CELL("filename",roll!$A$15),FIND("]",CELL("filename",roll!$A$15))+1,31)&"!"&ADDRESS(MATCH(rn_07!$D$9,roll!C:C,0)+1,3,4)),ROW(B9)-1+SUM($B$14:$D$14),0)) -> 621 | F23: 1
B24: =IF(ROW(B10)-1>=$B$14,"",OFFSET(INDIRECT(MID(CELL("filename",roll!$A$15),FIND("]",CELL("filename",roll!$A$15))+1,31)&"!"&ADDRESS(MATCH(rn_07!$D$9,roll!C:C,0)+1,3,4)),ROW(B10)-1,0)) -> 10109 | C24: =IF(ROW(B10)-1>=$C$14,"",OFFSET(INDIRECT(MID(CELL("filename",roll!$A$15),FIND("]",CELL("filename",roll!$A$15))+1,31)&"!"&ADDRESS(MATCH(rn_07!$D$9,roll!C:C,0)+1,3,4)),ROW(B10)-1+SUM($B$14:$B$14),0)) ->  | D24: =IF(ROW(B10)-1>=$D$14,"",OFFSET(INDIRECT(MID(CELL("filename",roll!$A$15),FIND("]",CELL("filename",roll!$A$15))+1,31)&"!"&ADDRESS(MATCH(rn_07!$D$9,roll!C:C,0)+1,3,4)),ROW(B10)-1+SUM($B$14:$C$14),0)) ->  | E24: =IF(ROW(B10)-1>=$E$14,"",OFFSET(INDIRECT(MID(CELL("filename",roll!$A$15),FIND("]",CELL("filename",roll!$A$15))+1,31)&"!"&ADDRESS(MATCH(rn_07!$D$9,roll!C:C,0)+1,3,4)),ROW(B10)-1+SUM($B$14:$D$14),0)) -> 10122 | F24: 1
B25: =IF(ROW(B11)-1>=$B$14,"",OFFSET(INDIRECT(MID(CELL("filename",roll!$A$15),FIND("]",CELL("filename",roll!$A$15))+1,31)&"!"&ADDRESS(MATCH(rn_07!$D$9,roll!C:C,0)+1,3,4)),ROW(B11)-1,0)) -> 609 | C25: =IF(ROW(B11)-1>=$C$14,"",OFFSET(INDIRECT(MID(CELL("filename",roll!$A$15),FIND("]",CELL("filename",roll!$A$15))+1,31)&"!"&ADDRESS(MATCH(rn_07!$D$9,roll!C:C,0)+1,3,4)),ROW(B11)-1+SUM($B$14:$B$14),0)) ->  | D25: =IF(ROW(B11)-1>=$D$14,"",OFFSET(INDIRECT(MID(CELL("filename",roll!$A$15),FIND("]",CELL("filename",roll!$A$15))+1,31)&"!"&ADDRESS(MATCH(rn_07!$D$9,roll!C:C,0)+1,3,4)),ROW(B11)-1+SUM($B$14:$C$14),0)) ->  | E25: =IF(ROW(B11)-1>=$E$14,"",OFFSET(INDIRECT(MID(CELL("filename",roll!$A$15),FIND("]",CELL("filename",roll!$A$15))+1,31)&"!"&ADDRESS(MATCH(rn_07!$D$9,roll!C:C,0)+1,3,4)),ROW(B11)-1+SUM($B$14:$D$14),0)) -> 622 | F25: 1
B26: =IF(ROW(B12)-1>=$B$14,"",OFFSET(INDIRECT(MID(CELL("filename",roll!$A$15),FIND("]",CELL("filename",roll!$A$15))+1,31)&"!"&ADDRESS(MATCH(rn_07!$D$9,roll!C:C,0)+1,3,4)),ROW(B12)-1,0)) -> 10110 | C26: =IF(ROW(B12)-1>=$C$14,"",OFFSET(INDIRECT(MID(CELL("filename",roll!$A$15),FIND("]",CELL("filename",roll!$A$15))+1,31)&"!"&ADDRESS(MATCH(rn_07!$D$9,roll!C:C,0)+1,3,4)),ROW(B12)-1+SUM($B$14:$B$14),0)) ->  | D26: =IF(ROW(B12)-1>=$D$14,"",OFFSET(INDIRECT(MID(CELL("filename",roll!$A$15),FIND("]",CELL("filename",roll!$A$15))+1,31)&"!"&ADDRESS(MATCH(rn_07!$D$9,roll!C:C,0)+1,3,4)),ROW(B12)-1+SUM($B$14:$C$14),0)) ->  | E26: =IF(ROW(B12)-1>=$E$14,"",OFFSET(INDIRECT(MID(CELL("filename",roll!$A$15),FIND("]",CELL("filename",roll!$A$15))+1,31)&"!"&ADDRESS(MATCH(rn_07!$D$9,roll!C:C,0)+1,3,4)),ROW(B12)-1+SUM($B$14:$D$14),0)) -> 10123 | F26: 1
B27: =IF(ROW(B13)-1>=$B$14,"",OFFSET(INDIRECT(MID(CELL("filename",roll!$A$15),FIND("]",CELL("filename",roll!$A$15))+1,31)&"!"&ADDRESS(MATCH(rn_07!$D$9,roll!C:C,0)+1,3,4)),ROW(B13)-1,0)) -> 610 | C27: =IF(ROW(B13)-1>=$C$14,"",OFFSET(INDIRECT(MID(CELL("filename",roll!$A$15),FIND("]",CELL("filename",roll!$A$15))+1,31)&"!"&ADDRESS(MATCH(rn_07!$D$9,roll!C:C,0)+1,3,4)),ROW(B13)-1+SUM($B$14:$B$14),0)) ->  | D27: =IF(ROW(B13)-1>=$D$14,"",OFFSET(INDIRECT(MID(CELL("filename",roll!$A$15),FIND("]",CELL("filename",roll!$A$15))+1,31)&"!"&ADDRESS(MATCH(rn_07!$D$9,roll!C:C,0)+1,3,4)),ROW(B13)-1+SUM($B$14:$C$14),0)) ->  | E27: =IF(ROW(B13)-1>=$E$14,"",OFFSET(INDIRECT(MID(CELL("filename",roll!$A$15),FIND("]",CELL("filename",roll!$A$15))+1,31)&"!"&ADDRESS(MATCH(rn_07!$D$9,roll!C:C,0)+1,3,4)),ROW(B13)-1+SUM($B$14:$D$14),0)) -> 623 | F27: 1
B28: =IF(ROW(B14)-1>=$B$14,"",OFFSET(INDIRECT(MID(CELL("filename",roll!$A$15),FIND("]",CELL("filename",roll!$A$15))+1,31)&"!"&ADDRESS(MATCH(rn_07!$D$9,roll!C:C,0)+1,3,4)),ROW(B14)-1,0)) -> 10111 | C28: =IF(ROW(B14)-1>=$C$14,"",OFFSET(INDIRECT(MID(CELL("filename",roll!$A$15),FIND("]",CELL("filename",roll!$A$15))+1,31)&"!"&ADDRESS(MATCH(rn_07!$D$9,roll!C:C,0)+1,3,4)),ROW(B14)-1+SUM($B$14:$B$14),0)) ->  | D28: =IF(ROW(B14)-1>=$D$14,"",OFFSET(INDIRECT(MID(CELL("filename",roll!$A$15),FIND("]",CELL("filename",roll!$A$15))+1,31)&"!"&ADDRESS(MATCH(rn_07!$D$9,roll!C:C,0)+1,3,4)),ROW(B14)-1+SUM($B$14:$C$14),0)) ->  | E28: =IF(ROW(B14)-1>=$E$14,"",OFFSET(INDIRECT(MID(CELL("filename",roll!$A$15),FIND("]",CELL("filename",roll!$A$15))+1,31)&"!"&ADDRESS(MATCH(rn_07!$D$9,roll!C:C,0)+1,3,4)),ROW(B14)-1+SUM($B$14:$D$14),0)) -> 10124 | F28: 1
B29: =IF(ROW(B15)-1>=$B$14,"",OFFSET(INDIRECT(MID(CELL("filename",roll!$A$15),FIND("]",CELL("filename",roll!$A$15))+1,31)&"!"&ADDRESS(MATCH(rn_07!$D$9,roll!C:C,0)+1,3,4)),ROW(B15)-1,0)) -> 611 | C29: =IF(ROW(B15)-1>=$C$14,"",OFFSET(INDIRECT(MID(CELL("filename",roll!$A$15),FIND("]",CELL("filename",roll!$A$15))+1,31)&"!"&ADDRESS(MATCH(rn_07!$D$9,roll!C:C,0)+1,3,4)),ROW(B15)-1+SUM($B$14:$B$14),0)) ->  | D29: =IF(ROW(B15)-1>=$D$14,"",OFFSET(INDIRECT(MID(CELL("filename",roll!$A$15),FIND("]",CELL("filename",roll!$A$15))+1,31)&"!"&ADDRESS(MATCH(rn_07!$D$9,roll!C:C,0)+1,3,4)),ROW(B15)-1+SUM($B$14:$C$14),0)) ->  | E29: =IF(ROW(B15)-1>=$E$14,"",OFFSET(INDIRECT(MID(CELL("filename",roll!$A$15),FIND("]",CELL("filename",roll!$A$15))+1,31)&"!"&ADDRESS(MATCH(rn_07!$D$9,roll!C:C,0)+1,3,4)),ROW(B15)-1+SUM($B$14:$D$14),0)) -> 624 | F29: 1
B30: =IF(ROW(B16)-1>=$B$14,"",OFFSET(INDIRECT(MID(CELL("filename",roll!$A$15),FIND("]",CELL("filename",roll!$A$15))+1,31)&"!"&ADDRESS(MATCH(rn_07!$D$9,roll!C:C,0)+1,3,4)),ROW(B16)-1,0)) -> 10112 | C30: =IF(ROW(B16)-1>=$C$14,"",OFFSET(INDIRECT(MID(CELL("filename",roll!$A$15),FIND("]",CELL("filename",roll!$A$15))+1,31)&"!"&ADDRESS(MATCH(rn_07!$D$9,roll!C:C,0)+1,3,4)),ROW(B16)-1+SUM($B$14:$B$14),0)) ->  | D30: =IF(ROW(B16)-1>=$D$14,"",OFFSET(INDIRECT(MID(CELL("filename",roll!$A$15),FIND("]",CELL("filename",roll!$A$15))+1,31)&"!"&ADDRESS(MATCH(rn_07!$D$9,roll!C:C,0)+1,3,4)),ROW(B16)-1+SUM($B$14:$C$14),0)) ->  | E30: =IF(ROW(B16)-1>=$E$14,"",OFFSET(INDIRECT(MID(CELL("filename",roll!$A$15),FIND("]",CELL("filename",roll!$A$15))+1,31)&"!"&ADDRESS(MATCH(rn_07!$D$9,roll!C:C,0)+1,3,4)),ROW(B16)-1+SUM($B$14:$D$14),0)) -> 10125 | F30: 1
B31: =IF(ROW(B17)-1>=$B$14,"",OFFSET(INDIRECT(MID(CELL("filename",roll!$A$15),FIND("]",CELL("filename",roll!$A$15))+1,31)&"!"&ADDRESS(MATCH(rn_07!$D$9,roll!C:C,0)+1,3,4)),ROW(B17)-1,0)) -> 612 | C31: =IF(ROW(B17)-1>=$C$14,"",OFFSET(INDIRECT(MID(CELL("filename",roll!$A$15),FIND("]",CELL("filename",roll!$A$15))+1,31)&"!"&ADDRESS(MATCH(rn_07!$D$9,roll!C:C,0)+1,3,4)),ROW(B17)-1+SUM($B$14:$B$14),0)) ->  | D31: =IF(ROW(B17)-1>=$D$14,"",OFFSET(INDIRECT(MID(CELL("filename",roll!$A$15),FIND("]",CELL("filename",roll!$A$15))+1,31)&"!"&ADDRESS(MATCH(rn_07!$D$9,roll!C:C,0)+1,3,4)),ROW(B17)-1+SUM($B$14:$C$14),0)) ->  | E31: =IF(ROW(B17)-1>=$E$14,"",OFFSET(INDIRECT(MID(CELL("filename",roll!$A$15),FIND("]",CELL("filename",roll!$A$15))+1,31)&"!"&ADDRESS(MATCH(rn_07!$D$9,roll!C:C,0)+1,3,4)),ROW(B17)-1+SUM($B$14:$D$14),0)) -> 625 | F31: 1
B32: =IF(ROW(B18)-1>=$B$14,"",OFFSET(INDIRECT(MID(CELL("filename",roll!$A$15),FIND("]",CELL("filename",roll!$A$15))+1,31)&"!"&ADDRESS(MATCH(rn_07!$D$9,roll!C:C,0)+1,3,4)),ROW(B18)-1,0)) -> 10113 | C32: =IF(ROW(B18)-1>=$C$14,"",OFFSET(INDIRECT(MID(CELL("filename",roll!$A$15),FIND("]",CELL("filename",roll!$A$15))+1,31)&"!"&ADDRESS(MATCH(rn_07!$D$9,roll!C:C,0)+1,3,4)),ROW(B18)-1+SUM($B$14:$B$14),0)) ->  | D32: =IF(ROW(B18)-1>=$D$14,"",OFFSET(INDIRECT(MID(CELL("filename",roll!$A$15),FIND("]",CELL("filename",roll!$A$15))+1,31)&"!"&ADDRESS(MATCH(rn_07!$D$9,roll!C:C,0)+1,3,4)),ROW(B18)-1+SUM($B$14:$C$14),0)) ->  | E32: =IF(ROW(B18)-1>=$E$14,"",OFFSET(INDIRECT(MID(CELL("filename",roll!$A$15),FIND("]",CELL("filename",roll!$A$15))+1,31)&"!"&ADDRESS(MATCH(rn_07!$D$9,roll!C:C,0)+1,3,4)),ROW(B18)-1+SUM($B$14:$D$14),0)) -> 10126 | F32: 1
B33: =IF(ROW(B19)-1>=$B$14,"",OFFSET(INDIRECT(MID(CELL("filename",roll!$A$15),FIND("]",CELL("filename",roll!$A$15))+1,31)&"!"&ADDRESS(MATCH(rn_07!$D$9,roll!C:C,0)+1,3,4)),ROW(B19)-1,0)) -> 613 | C33: =IF(ROW(B19)-1>=$C$14,"",OFFSET(INDIRECT(MID(CELL("filename",roll!$A$15),FIND("]",CELL("filename",roll!$A$15))+1,31)&"!"&ADDRESS(MATCH(rn_07!$D$9,roll!C:C,0)+1,3,4)),ROW(B19)-1+SUM($B$14:$B$14),0)) ->  | D33: =IF(ROW(B19)-1>=$D$14,"",OFFSET(INDIRECT(MID(CELL("filename",roll!$A$15),FIND("]",CELL("filename",roll!$A$15))+1,31)&"!"&ADDRESS(MATCH(rn_07!$D$9,roll!C:C,0)+1,3,4)),ROW(B19)-1+SUM($B$14:$C$14),0)) ->  | E33: =IF(ROW(B19)-1>=$E$14,"",OFFSET(INDIRECT(MID(CELL("filename",roll!$A$15),FIND("]",CELL("filename",roll!$A$15))+1,31)&"!"&ADDRESS(MATCH(rn_07!$D$9,roll!C:C,0)+1,3,4)),ROW(B19)-1+SUM($B$14:$D$14),0)) -> 626 | F33: 1
B34: =IF(ROW(B20)-1>=$B$14,"",OFFSET(INDIRECT(MID(CELL("filename",roll!$A$15),FIND("]",CELL("filename",roll!$A$15))+1,31)&"!"&ADDRESS(MATCH(rn_07!$D$9,roll!C:C,0)+1,3,4)),ROW(B20)-1,0)) -> 10114 | C34: =IF(ROW(B20)-1>=$C$14,"",OFFSET(INDIRECT(MID(CELL("filename",roll!$A$15),FIND("]",CELL("filename",roll!$A$15))+1,31)&"!"&ADDRESS(MATCH(rn_07!$D$9,roll!C:C,0)+1,3,4)),ROW(B20)-1+SUM($B$14:$B$14),0)) ->  | D34: =IF(ROW(B20)-1>=$D$14,"",OFFSET(INDIRECT(MID(CELL("filename",roll!$A$15),FIND("]",CELL("filename",roll!$A$15))+1,31)&"!"&ADDRESS(MATCH(rn_07!$D$9,roll!C:C,0)+1,3,4)),ROW(B20)-1+SUM($B$14:$C$14),0)) ->  | E34: =IF(ROW(B20)-1>=$E$14,"",OFFSET(INDIRECT(MID(CELL("filename",roll!$A$15),FIND("]",CELL("filename",roll!$A$15))+1,31)&"!"&ADDRESS(MATCH(rn_07!$D$9,roll!C:C,0)+1,3,4)),ROW(B20)-1+SUM($B$14:$D$14),0)) -> 10127 | F34: 1
B36: परीक्षा प्रभारी | E36: केन्द्राधीक्षक
B37: =rn_01!$B$37 -> ASD (Lecturer) | E37: =rn_01!$E$37 -> XYZ (Principal)

Sheet rn_09
B1: =rn_01!$B$1 -> Class VIIITH Board Examination, 2025
B2: परीक्षा केंद्र नाम एवं परीक्षा केंद्र क्रमांक
B3: =rn_01!$B$3 -> GSSS Malutana (12345)
B4: परीक्षा कक्ष / हॉल क्रमांक
B5: =rn_01!$K$9 -> 9
B6: परीक्षा दिनांक (दिवस) ... से ... तक
B7: =rn_01!$B$7 -> 01-03-2025 | C7: =IF(B7="","",TEXT(B7,"DDDD")) -> Saturday | D7: =rn_01!$D$7 -> 22-05-2025 | E7: =IF(D7="","",TEXT(D7,"DDDD")) -> Thursday
B8: परीक्षार्थी रोल नंबर ... से ... तक
B9: =IF(B14>0,B15,IF(C14>0,C15,IF(D14>0,D15,IF(E14>0,E15,0)))) -> 627 | D9: =IF(E14>0,LOOKUP(2,1/(E15:E34<>""),E15:E34),IF(D14>0,LOOKUP(2,1/(D15:D34<>""),D15:D34),IF(C14>0,LOOKUP(2,1/(C15:C34<>""),C15:C34),IF(B14>0,LOOKUP(2,1/(B15:B34<>""),B15:B34),0)))) -> 10151
B10: कुल सम्मिलित परीक्षार्थी
B11: =COUNTIF($B$15:$E$34,">0") -> 48
B12: परीक्षार्थी बैठक व्यवस्था
B13: पंक्ति 1 | C13: पंक्ति 2 | D13: पंक्ति 3 | E13: पंक्ति 4
B14: =rn_01!L9 -> 20 | C14: =rn_01!M9 -> 9 | D14: =rn_01!N9 -> 8 | E14: =rn_01!O9 -> 11
B15: =IF(ROW(B1)-1>=$B$14,"",OFFSET(INDIRECT(MID(CELL("filename",roll!$A$15),FIND("]",CELL("filename",roll!$A$15))+1,31)&"!"&ADDRESS(MATCH(rn_08!$D$9,roll!C:C,0)+1,3,4)),ROW(B1)-1,0)) -> 627 | C15: =IF(ROW(B1)-1>=$C$14,"",OFFSET(INDIRECT(MID(CELL("filename",roll!$A$15),FIND("]",CELL("filename",roll!$A$15))+1,31)&"!"&ADDRESS(MATCH(rn_08!$D$9,roll!C:C,0)+1,3,4)),ROW(B1)-1+SUM($B$14:$B$14),0)) -> 637 | D15: =IF(ROW(B1)-1>=$D$14,"",OFFSET(INDIRECT(MID(CELL("filename",roll!$A$15),FIND("]",CELL("filename",roll!$A$15))+1,31)&"!"&ADDRESS(MATCH(rn_08!$D$9,roll!C:C,0)+1,3,4)),ROW(B1)-1+SUM($B$14:$C$14),0)) -> 10142 | E15: =IF(ROW(B1)-1>=$E$14,"",OFFSET(INDIRECT(MID(CELL("filename",roll!$A$15),FIND("]",CELL("filename",roll!$A$15))+1,31)&"!"&ADDRESS(MATCH(rn_08!$D$9,roll!C:C,0)+1,3,4)),ROW(B1)-1+SUM($B$14:$D$14),0)) -> 10146 | F15: =IF(SUM(B15:E15)>0,1,"") -> 1
B16: =IF(ROW(B2)-1>=$B$14,"",OFFSET(INDIRECT(MID(CELL("filename",roll!$A$15),FIND("]",CELL("filename",roll!$A$15))+1,31)&"!"&ADDRESS(MATCH(rn_08!$D$9,roll!C:C,0)+1,3,4)),ROW(B2)-1,0)) -> 10128 | C16: =IF(ROW(B2)-1>=$C$14,"",OFFSET(INDIRECT(MID(CELL("filename",roll!$A$15),FIND("]",CELL("filename",roll!$A$15))+1,31)&"!"&ADDRESS(MATCH(rn_08!$D$9,roll!C:C,0)+1,3,4)),ROW(B2)-1+SUM($B$14:$B$14),0)) -> 10138 | D16: =IF(ROW(B2)-1>=$D$14,"",OFFSET(INDIRECT(MID(CELL("filename",roll!$A$15),FIND("]",CELL("filename",roll!$A$15))+1,31)&"!"&ADDRESS(MATCH(rn_08!$D$9,roll!C:C,0)+1,3,4)),ROW(B2)-1+SUM($B$14:$C$14),0)) -> 642 | E16: =IF(ROW(B2)-1>=$E$14,"",OFFSET(INDIRECT(MID(CELL("filename",roll!$A$15),FIND("]",CELL("filename",roll!$A$15))+1,31)&"!"&ADDRESS(MATCH(rn_08!$D$9,roll!C:C,0)+1,3,4)),ROW(B2)-1+SUM($B$14:$D$14),0)) -> 646 | F16: =IF(SUM(B16:E16)>0,1,"") -> 1
B17: =IF(ROW(B3)-1>=$B$14,"",OFFSET(INDIRECT(MID(CELL("filename",roll!$A$15),FIND("]",CELL("filename",roll!$A$15))+1,31)&"!"&ADDRESS(MATCH(rn_08!$D$9,roll!C:C,0)+1,3,4)),ROW(B3)-1,0)) -> 628 | C17: =IF(ROW(B3)-1>=$C$14,"",OFFSET(INDIRECT(MID(CELL("filename",roll!$A$15),FIND("]",CELL("filename",roll!$A$15))+1,31)&"!"&ADDRESS(MATCH(rn_08!$D$9,roll!C:C,0)+1,3,4)),ROW(B3)-1+SUM($B$14:$B$14),0)) -> 638 | D17: =IF(ROW(B3)-1>=$D$14,"",OFFSET(INDIRECT(MID(CELL("filename",roll!$A$15),FIND("]",CELL("filename",roll!$A$15))+1,31)&"!"&ADDRESS(MATCH(rn_08!$D$9,roll!C:C,0)+1,3,4)),ROW(B3)-1+SUM($B$14:$C$14),0)) -> 10143 | E17: =IF(ROW(B3)-1>=$E$14,"",OFFSET(INDIRECT(MID(CELL("filename",roll!$A$15),FIND("]",CELL("filename",roll!$A$15))+1,31)&"!"&ADDRESS(MATCH(rn_08!$D$9,roll!C:C,0)+1,3,4)),ROW(B3)-1+SUM($B$14:$D$14),0)) -> 10147 | F17: 1
B18: =IF(ROW(B4)-1>=$B$14,"",OFFSET(INDIRECT(MID(CELL("filename",roll!$A$15),FIND("]",CELL("filename",roll!$A$15))+1,31)&"!"&ADDRESS(MATCH(rn_08!$D$9,roll!C:C,0)+1,3,4)),ROW(B4)-1,0)) -> 10129 | C18: =IF(ROW(B4)-1>=$C$14,"",OFFSET(INDIRECT(MID(CELL("filename",roll!$A$15),FIND("]",CELL("filename",roll!$A$15))+1,31)&"!"&ADDRESS(MATCH(rn_08!$D$9,roll!C:C,0)+1,3,4)),ROW(B4)-1+SUM($B$14:$B$14),0)) -> 10139 | D18: =IF(ROW(B4)-1>=$D$14,"",OFFSET(INDIRECT(MID(CELL("filename",roll!$A$15),FIND("]",CELL("filename",roll!$A$15))+1,31)&"!"&ADDRESS(MATCH(rn_08!$D$9,roll!C:C,0)+1,3,4)),ROW(B4)-1+SUM($B$14:$C$14),0)) -> 643 | E18: =IF(ROW(B4)-1>=$E$14,"",OFFSET(INDIRECT(MID(CELL("filename",roll!$A$15),FIND("]",CELL("filename",roll!$A$15))+1,31)&"!"&ADDRESS(MATCH(rn_08!$D$9,roll!C:C,0)+1,3,4)),ROW(B4)-1+SUM($B$14:$D$14),0)) -> 647 | F18: 1
B19: =IF(ROW(B5)-1>=$B$14,"",OFFSET(INDIRECT(MID(CELL("filename",roll!$A$15),FIND("]",CELL("filename",roll!$A$15))+1,31)&"!"&ADDRESS(MATCH(rn_08!$D$9,roll!C:C,0)+1,3,4)),ROW(B5)-1,0)) -> 629 | C19: =IF(ROW(B5)-1>=$C$14,"",OFFSET(INDIRECT(MID(CELL("filename",roll!$A$15),FIND("]",CELL("filename",roll!$A$15))+1,31)&"!"&ADDRESS(MATCH(rn_08!$D$9,roll!C:C,0)+1,3,4)),ROW(B5)-1+SUM($B$14:$B$14),0)) -> 639 | D19: =IF(ROW(B5)-1>=$D$14,"",OFFSET(INDIRECT(MID(CELL("filename",roll!$A$15),FIND("]",CELL("filename",roll!$A$15))+1,31)&"!"&ADDRESS(MATCH(rn_08!$D$9,roll!C:C,0)+1,3,4)),ROW(B5)-1+SUM($B$14:$C$14),0)) -> 10144 | E19: =IF(ROW(B5)-1>=$E$14,"",OFFSET(INDIRECT(MID(CELL("filename",roll!$A$15),FIND("]",CELL("filename",roll!$A$15))+1,31)&"!"&ADDRESS(MATCH(rn_08!$D$9,roll!C:C,0)+1,3,4)),ROW(B5)-1+SUM($B$14:$D$14),0)) -> 10148 | F19: 1
B20: =IF(ROW(B6)-1>=$B$14,"",OFFSET(INDIRECT(MID(CELL("filename",roll!$A$15),FIND("]",CELL("filename",roll!$A$15))+1,31)&"!"&ADDRESS(MATCH(rn_08!$D$9,roll!C:C,0)+1,3,4)),ROW(B6)-1,0)) -> 10130 | C20: =IF(ROW(B6)-1>=$C$14,"",OFFSET(INDIRECT(MID(CELL("filename",roll!$A$15),FIND("]",CELL("filename",roll!$A$15))+1,31)&"!"&ADDRESS(MATCH(rn_08!$D$9,roll!C:C,0)+1,3,4)),ROW(B6)-1+SUM($B$14:$B$14),0)) -> 10140 | D20: =IF(ROW(B6)-1>=$D$14,"",OFFSET(INDIRECT(MID(CELL("filename",roll!$A$15),FIND("]",CELL("filename",roll!$A$15))+1,31)&"!"&ADDRESS(MATCH(rn_08!$D$9,roll!C:C,0)+1,3,4)),ROW(B6)-1+SUM($B$14:$C$14),0)) -> 644 | E20: =IF(ROW(B6)-1>=$E$14,"",OFFSET(INDIRECT(MID(CELL("filename",roll!$A$15),FIND("]",CELL("filename",roll!$A$15))+1,31)&"!"&ADDRESS(MATCH(rn_08!$D$9,roll!C:C,0)+1,3,4)),ROW(B6)-1+SUM($B$14:$D$14),0)) -> 648 | F20: 1
B21: =IF(ROW(B7)-1>=$B$14,"",OFFSET(INDIRECT(MID(CELL("filename",roll!$A$15),FIND("]",CELL("filename",roll!$A$15))+1,31)&"!"&ADDRESS(MATCH(rn_08!$D$9,roll!C:C,0)+1,3,4)),ROW(B7)-1,0)) -> 630 | C21: =IF(ROW(B7)-1>=$C$14,"",OFFSET(INDIRECT(MID(CELL("filename",roll!$A$15),FIND("]",CELL("filename",roll!$A$15))+1,31)&"!"&ADDRESS(MATCH(rn_08!$D$9,roll!C:C,0)+1,3,4)),ROW(B7)-1+SUM($B$14:$B$14),0)) -> 640 | D21: =IF(ROW(B7)-1>=$D$14,"",OFFSET(INDIRECT(MID(CELL("filename",roll!$A$15),FIND("]",CELL("filename",roll!$A$15))+1,31)&"!"&ADDRESS(MATCH(rn_08!$D$9,roll!C:C,0)+1,3,4)),ROW(B7)-1+SUM($B$14:$C$14),0)) -> 10145 | E21: =IF(ROW(B7)-1>=$E$14,"",OFFSET(INDIRECT(MID(CELL("filename",roll!$A$15),FIND("]",CELL("filename",roll!$A$15))+1,31)&"!"&ADDRESS(MATCH(rn_08!$D$9,roll!C:C,0)+1,3,4)),ROW(B7)-1+SUM($B$14:$D$14),0)) -> 10149 | F21: 1
B22: =IF(ROW(B8)-1>=$B$14,"",OFFSET(INDIRECT(MID(CELL("filename",roll!$A$15),FIND("]",CELL("filename",roll!$A$15))+1,31)&"!"&ADDRESS(MATCH(rn_08!$D$9,roll!C:C,0)+1,3,4)),ROW(B8)-1,0)) -> 10131 | C22: =IF(ROW(B8)-1>=$C$14,"",OFFSET(INDIRECT(MID(CELL("filename",roll!$A$15),FIND("]",CELL("filename",roll!$A$15))+1,31)&"!"&ADDRESS(MATCH(rn_08!$D$9,roll!C:C,0)+1,3,4)),ROW(B8)-1+SUM($B$14:$B$14),0)) -> 10141 | D22: =IF(ROW(B8)-1>=$D$14,"",OFFSET(INDIRECT(MID(CELL("filename",roll!$A$15),FIND("]",CELL("filename",roll!$A$15))+1,31)&"!"&ADDRESS(MATCH(rn_08!$D$9,roll!C:C,0)+1,3,4)),ROW(B8)-1+SUM($B$14:$C$14),0)) -> 645 | E22: =IF(ROW(B8)-1>=$E$14,"",OFFSET(INDIRECT(MID(CELL("filename",roll!$A$15),FIND("]",CELL("filename",roll!$A$15))+1,31)&"!"&ADDRESS(MATCH(rn_08!$D$9,roll!C:C,0)+1,3,4)),ROW(B8)-1+SUM($B$14:$D$14),0)) -> 649 | F22: 1
B23: =IF(ROW(B9)-1>=$B$14,"",OFFSET(INDIRECT(MID(CELL("filename",roll!$A$15),FIND("]",CELL("filename",roll!$A$15))+1,31)&"!"&ADDRESS(MATCH(rn_08!$D$9,roll!C:C,0)+1,3,4)),ROW(B9)-1,0)) -> 631 | C23: =IF(ROW(B9)-1>=$C$14,"",OFFSET(INDIRECT(MID(CELL("filename",roll!$A$15),FIND("]",CELL("filename",roll!$A$15))+1,31)&"!"&ADDRESS(MATCH(rn_08!$D$9,roll!C:C,0)+1,3,4)),ROW(B9)-1+SUM($B$14:$B$14),0)) -> 641 | D23: =IF(ROW(B9)-1>=$D$14,"",OFFSET(INDIRECT(MID(CELL("filename",roll!$A$15),FIND("]",CELL("filename",roll!$A$15))+1,31)&"!"&ADDRESS(MATCH(rn_08!$D$9,roll!C:C,0)+1,3,4)),ROW(B9)-1+SUM($B$14:$C$14),0)) ->  | E23: =IF(ROW(B9)-1>=$E$14,"",OFFSET(INDIRECT(MID(CELL("filename",roll!$A$15),FIND("]",CELL("filename",roll!$A$15))+1,31)&"!"&ADDRESS(MATCH(rn_08!$D$9,roll!C:C,0)+1,3,4)),ROW(B9)-1+SUM($B$14:$D$14),0)) -> 10150 | F23: 1
B24: =IF(ROW(B10)-1>=$B$14,"",OFFSET(INDIRECT(MID(CELL("filename",roll!$A$15),FIND("]",CELL("filename",roll!$A$15))+1,31)&"!"&ADDRESS(MATCH(rn_08!$D$9,roll!C:C,0)+1,3,4)),ROW(B10)-1,0)) -> 10132 | C24: =IF(ROW(B10)-1>=$C$14,"",OFFSET(INDIRECT(MID(CELL("filename",roll!$A$15),FIND("]",CELL("filename",roll!$A$15))+1,31)&"!"&ADDRESS(MATCH(rn_08!$D$9,roll!C:C,0)+1,3,4)),ROW(B10)-1+SUM($B$14:$B$14),0)) ->  | D24: =IF(ROW(B10)-1>=$D$14,"",OFFSET(INDIRECT(MID(CELL("filename",roll!$A$15),FIND("]",CELL("filename",roll!$A$15))+1,31)&"!"&ADDRESS(MATCH(rn_08!$D$9,roll!C:C,0)+1,3,4)),ROW(B10)-1+SUM($B$14:$C$14),0)) ->  | E24: =IF(ROW(B10)-1>=$E$14,"",OFFSET(INDIRECT(MID(CELL("filename",roll!$A$15),FIND("]",CELL("filename",roll!$A$15))+1,31)&"!"&ADDRESS(MATCH(rn_08!$D$9,roll!C:C,0)+1,3,4)),ROW(B10)-1+SUM($B$14:$D$14),0)) -> 650 | F24: 1
B25: =IF(ROW(B11)-1>=$B$14,"",OFFSET(INDIRECT(MID(CELL("filename",roll!$A$15),FIND("]",CELL("filename",roll!$A$15))+1,31)&"!"&ADDRESS(MATCH(rn_08!$D$9,roll!C:C,0)+1,3,4)),ROW(B11)-1,0)) -> 632 | C25: =IF(ROW(B11)-1>=$C$14,"",OFFSET(INDIRECT(MID(CELL("filename",roll!$A$15),FIND("]",CELL("filename",roll!$A$15))+1,31)&"!"&ADDRESS(MATCH(rn_08!$D$9,roll!C:C,0)+1,3,4)),ROW(B11)-1+SUM($B$14:$B$14),0)) ->  | D25: =IF(ROW(B11)-1>=$D$14,"",OFFSET(INDIRECT(MID(CELL("filename",roll!$A$15),FIND("]",CELL("filename",roll!$A$15))+1,31)&"!"&ADDRESS(MATCH(rn_08!$D$9,roll!C:C,0)+1,3,4)),ROW(B11)-1+SUM($B$14:$C$14),0)) ->  | E25: =IF(ROW(B11)-1>=$E$14,"",OFFSET(INDIRECT(MID(CELL("filename",roll!$A$15),FIND("]",CELL("filename",roll!$A$15))+1,31)&"!"&ADDRESS(MATCH(rn_08!$D$9,roll!C:C,0)+1,3,4)),ROW(B11)-1+SUM($B$14:$D$14),0)) -> 10151 | F25: 1
B26: =IF(ROW(B12)-1>=$B$14,"",OFFSET(INDIRECT(MID(CELL("filename",roll!$A$15),FIND("]",CELL("filename",roll!$A$15))+1,31)&"!"&ADDRESS(MATCH(rn_08!$D$9,roll!C:C,0)+1,3,4)),ROW(B12)-1,0)) -> 10133 | C26: =IF(ROW(B12)-1>=$C$14,"",OFFSET(INDIRECT(MID(CELL("filename",roll!$A$15),FIND("]",CELL("filename",roll!$A$15))+1,31)&"!"&ADDRESS(MATCH(rn_08!$D$9,roll!C:C,0)+1,3,4)),ROW(B12)-1+SUM($B$14:$B$14),0)) ->  | D26: =IF(ROW(B12)-1>=$D$14,"",OFFSET(INDIRECT(MID(CELL("filename",roll!$A$15),FIND("]",CELL("filename",roll!$A$15))+1,31)&"!"&ADDRESS(MATCH(rn_08!$D$9,roll!C:C,0)+1,3,4)),ROW(B12)-1+SUM($B$14:$C$14),0)) ->  | E26: =IF(ROW(B12)-1>=$E$14,"",OFFSET(INDIRECT(MID(CELL("filename",roll!$A$15),FIND("]",CELL("filename",roll!$A$15))+1,31)&"!"&ADDRESS(MATCH(rn_08!$D$9,roll!C:C,0)+1,3,4)),ROW(B12)-1+SUM($B$14:$D$14),0)) ->  | F26: 1
B27: =IF(ROW(B13)-1>=$B$14,"",OFFSET(INDIRECT(MID(CELL("filename",roll!$A$15),FIND("]",CELL("filename",roll!$A$15))+1,31)&"!"&ADDRESS(MATCH(rn_08!$D$9,roll!C:C,0)+1,3,4)),ROW(B13)-1,0)) -> 633 | C27: =IF(ROW(B13)-1>=$C$14,"",OFFSET(INDIRECT(MID(CELL("filename",roll!$A$15),FIND("]",CELL("filename",roll!$A$15))+1,31)&"!"&ADDRESS(MATCH(rn_08!$D$9,roll!C:C,0)+1,3,4)),ROW(B13)-1+SUM($B$14:$B$14),0)) ->  | D27: =IF(ROW(B13)-1>=$D$14,"",OFFSET(INDIRECT(MID(CELL("filename",roll!$A$15),FIND("]",CELL("filename",roll!$A$15))+1,31)&"!"&ADDRESS(MATCH(rn_08!$D$9,roll!C:C,0)+1,3,4)),ROW(B13)-1+SUM($B$14:$C$14),0)) ->  | E27: =IF(ROW(B13)-1>=$E$14,"",OFFSET(INDIRECT(MID(CELL("filename",roll!$A$15),FIND("]",CELL("filename",roll!$A$15))+1,31)&"!"&ADDRESS(MATCH(rn_08!$D$9,roll!C:C,0)+1,3,4)),ROW(B13)-1+SUM($B$14:$D$14),0)) ->  | F27: 1
B28: =IF(ROW(B14)-1>=$B$14,"",OFFSET(INDIRECT(MID(CELL("filename",roll!$A$15),FIND("]",CELL("filename",roll!$A$15))+1,31)&"!"&ADDRESS(MATCH(rn_08!$D$9,roll!C:C,0)+1,3,4)),ROW(B14)-1,0)) -> 10134 | C28: =IF(ROW(B14)-1>=$C$14,"",OFFSET(INDIRECT(MID(CELL("filename",roll!$A$15),FIND("]",CELL("filename",roll!$A$15))+1,31)&"!"&ADDRESS(MATCH(rn_08!$D$9,roll!C:C,0)+1,3,4)),ROW(B14)-1+SUM($B$14:$B$14),0)) ->  | D28: =IF(ROW(B14)-1>=$D$14,"",OFFSET(INDIRECT(MID(CELL("filename",roll!$A$15),FIND("]",CELL("filename",roll!$A$15))+1,31)&"!"&ADDRESS(MATCH(rn_08!$D$9,roll!C:C,0)+1,3,4)),ROW(B14)-1+SUM($B$14:$C$14),0)) ->  | E28: =IF(ROW(B14)-1>=$E$14,"",OFFSET(INDIRECT(MID(CELL("filename",roll!$A$15),FIND("]",CELL("filename",roll!$A$15))+1,31)&"!"&ADDRESS(MATCH(rn_08!$D$9,roll!C:C,0)+1,3,4)),ROW(B14)-1+SUM($B$14:$D$14),0)) ->  | F28: 1
B29: =IF(ROW(B15)-1>=$B$14,"",OFFSET(INDIRECT(MID(CELL("filename",roll!$A$15),FIND("]",CELL("filename",roll!$A$15))+1,31)&"!"&ADDRESS(MATCH(rn_08!$D$9,roll!C:C,0)+1,3,4)),ROW(B15)-1,0)) -> 634 | C29: =IF(ROW(B15)-1>=$C$14,"",OFFSET(INDIRECT(MID(CELL("filename",roll!$A$15),FIND("]",CELL("filename",roll!$A$15))+1,31)&"!"&ADDRESS(MATCH(rn_08!$D$9,roll!C:C,0)+1,3,4)),ROW(B15)-1+SUM($B$14:$B$14),0)) ->  | D29: =IF(ROW(B15)-1>=$D$14,"",OFFSET(INDIRECT(MID(CELL("filename",roll!$A$15),FIND("]",CELL("filename",roll!$A$15))+1,31)&"!"&ADDRESS(MATCH(rn_08!$D$9,roll!C:C,0)+1,3,4)),ROW(B15)-1+SUM($B$14:$C$14),0)) ->  | E29: =IF(ROW(B15)-1>=$E$14,"",OFFSET(INDIRECT(MID(CELL("filename",roll!$A$15),FIND("]",CELL("filename",roll!$A$15))+1,31)&"!"&ADDRESS(MATCH(rn_08!$D$9,roll!C:C,0)+1,3,4)),ROW(B15)-1+SUM($B$14:$D$14),0)) ->  | F29: 1
B30: =IF(ROW(B16)-1>=$B$14,"",OFFSET(INDIRECT(MID(CELL("filename",roll!$A$15),FIND("]",CELL("filename",roll!$A$15))+1,31)&"!"&ADDRESS(MATCH(rn_08!$D$9,roll!C:C,0)+1,3,4)),ROW(B16)-1,0)) -> 10135 | C30: =IF(ROW(B16)-1>=$C$14,"",OFFSET(INDIRECT(MID(CELL("filename",roll!$A$15),FIND("]",CELL("filename",roll!$A$15))+1,31)&"!"&ADDRESS(MATCH(rn_08!$D$9,roll!C:C,0)+1,3,4)),ROW(B16)-1+SUM($B$14:$B$14),0)) ->  | D30: =IF(ROW(B16)-1>=$D$14,"",OFFSET(INDIRECT(MID(CELL("filename",roll!$A$15),FIND("]",CELL("filename",roll!$A$15))+1,31)&"!"&ADDRESS(MATCH(rn_08!$D$9,roll!C:C,0)+1,3,4)),ROW(B16)-1+SUM($B$14:$C$14),0)) ->  | E30: =IF(ROW(B16)-1>=$E$14,"",OFFSET(INDIRECT(MID(CELL("filename",roll!$A$15),FIND("]",CELL("filename",roll!$A$15))+1,31)&"!"&ADDRESS(MATCH(rn_08!$D$9,roll!C:C,0)+1,3,4)),ROW(B16)-1+SUM($B$14:$D$14),0)) ->  | F30: 1
B31: =IF(ROW(B17)-1>=$B$14,"",OFFSET(INDIRECT(MID(CELL("filename",roll!$A$15),FIND("]",CELL("filename",roll!$A$15))+1,31)&"!"&ADDRESS(MATCH(rn_08!$D$9,roll!C:C,0)+1,3,4)),ROW(B17)-1,0)) -> 635 | C31: =IF(ROW(B17)-1>=$C$14,"",OFFSET(INDIRECT(MID(CELL("filename",roll!$A$15),FIND("]",CELL("filename",roll!$A$15))+1,31)&"!"&ADDRESS(MATCH(rn_08!$D$9,roll!C:C,0)+1,3,4)),ROW(B17)-1+SUM($B$14:$B$14),0)) ->  | D31: =IF(ROW(B17)-1>=$D$14,"",OFFSET(INDIRECT(MID(CELL("filename",roll!$A$15),FIND("]",CELL("filename",roll!$A$15))+1,31)&"!"&ADDRESS(MATCH(rn_08!$D$9,roll!C:C,0)+1,3,4)),ROW(B17)-1+SUM($B$14:$C$14),0)) ->  | E31: =IF(ROW(B17)-1>=$E$14,"",OFFSET(INDIRECT(MID(CELL("filename",roll!$A$15),FIND("]",CELL("filename",roll!$A$15))+1,31)&"!"&ADDRESS(MATCH(rn_08!$D$9,roll!C:C,0)+1,3,4)),ROW(B17)-1+SUM($B$14:$D$14),0)) ->  | F31: 1
B32: =IF(ROW(B18)-1>=$B$14,"",OFFSET(INDIRECT(MID(CELL("filename",roll!$A$15),FIND("]",CELL("filename",roll!$A$15))+1,31)&"!"&ADDRESS(MATCH(rn_08!$D$9,roll!C:C,0)+1,3,4)),ROW(B18)-1,0)) -> 10136 | C32: =IF(ROW(B18)-1>=$C$14,"",OFFSET(INDIRECT(MID(CELL("filename",roll!$A$15),FIND("]",CELL("filename",roll!$A$15))+1,31)&"!"&ADDRESS(MATCH(rn_08!$D$9,roll!C:C,0)+1,3,4)),ROW(B18)-1+SUM($B$14:$B$14),0)) ->  | D32: =IF(ROW(B18)-1>=$D$14,"",OFFSET(INDIRECT(MID(CELL("filename",roll!$A$15),FIND("]",CELL("filename",roll!$A$15))+1,31)&"!"&ADDRESS(MATCH(rn_08!$D$9,roll!C:C,0)+1,3,4)),ROW(B18)-1+SUM($B$14:$C$14),0)) ->  | E32: =IF(ROW(B18)-1>=$E$14,"",OFFSET(INDIRECT(MID(CELL("filename",roll!$A$15),FIND("]",CELL("filename",roll!$A$15))+1,31)&"!"&ADDRESS(MATCH(rn_08!$D$9,roll!C:C,0)+1,3,4)),ROW(B18)-1+SUM($B$14:$D$14),0)) ->  | F32: 1
B33: =IF(ROW(B19)-1>=$B$14,"",OFFSET(INDIRECT(MID(CELL("filename",roll!$A$15),FIND("]",CELL("filename",roll!$A$15))+1,31)&"!"&ADDRESS(MATCH(rn_08!$D$9,roll!C:C,0)+1,3,4)),ROW(B19)-1,0)) -> 636 | C33: =IF(ROW(B19)-1>=$C$14,"",OFFSET(INDIRECT(MID(CELL("filename",roll!$A$15),FIND("]",CELL("filename",roll!$A$15))+1,31)&"!"&ADDRESS(MATCH(rn_08!$D$9,roll!C:C,0)+1,3,4)),ROW(B19)-1+SUM($B$14:$B$14),0)) ->  | D33: =IF(ROW(B19)-1>=$D$14,"",OFFSET(INDIRECT(MID(CELL("filename",roll!$A$15),FIND("]",CELL("filename",roll!$A$15))+1,31)&"!"&ADDRESS(MATCH(rn_08!$D$9,roll!C:C,0)+1,3,4)),ROW(B19)-1+SUM($B$14:$C$14),0)) ->  | E33: =IF(ROW(B19)-1>=$E$14,"",OFFSET(INDIRECT(MID(CELL("filename",roll!$A$15),FIND("]",CELL("filename",roll!$A$15))+1,31)&"!"&ADDRESS(MATCH(rn_08!$D$9,roll!C:C,0)+1,3,4)),ROW(B19)-1+SUM($B$14:$D$14),0)) ->  | F33: 1
B34: =IF(ROW(B20)-1>=$B$14,"",OFFSET(INDIRECT(MID(CELL("filename",roll!$A$15),FIND("]",CELL("filename",roll!$A$15))+1,31)&"!"&ADDRESS(MATCH(rn_08!$D$9,roll!C:C,0)+1,3,4)),ROW(B20)-1,0)) -> 10137 | C34: =IF(ROW(B20)-1>=$C$14,"",OFFSET(INDIRECT(MID(CELL("filename",roll!$A$15),FIND("]",CELL("filename",roll!$A$15))+1,31)&"!"&ADDRESS(MATCH(rn_08!$D$9,roll!C:C,0)+1,3,4)),ROW(B20)-1+SUM($B$14:$B$14),0)) ->  | D34: =IF(ROW(B20)-1>=$D$14,"",OFFSET(INDIRECT(MID(CELL("filename",roll!$A$15),FIND("]",CELL("filename",roll!$A$15))+1,31)&"!"&ADDRESS(MATCH(rn_08!$D$9,roll!C:C,0)+1,3,4)),ROW(B20)-1+SUM($B$14:$C$14),0)) ->  | E34: =IF(ROW(B20)-1>=$E$14,"",OFFSET(INDIRECT(MID(CELL("filename",roll!$A$15),FIND("]",CELL("filename",roll!$A$15))+1,31)&"!"&ADDRESS(MATCH(rn_08!$D$9,roll!C:C,0)+1,3,4)),ROW(B20)-1+SUM($B$14:$D$14),0)) ->  | F34: 1
B36: परीक्षा प्रभारी | E36: केन्द्राधीक्षक
B37: =rn_01!$B$37 -> ASD (Lecturer) | E37: =rn_01!$E$37 -> XYZ (Principal)

Sheet rn_10
B1: =rn_01!$B$1 -> Class VIIITH Board Examination, 2025
B2: परीक्षा केंद्र नाम एवं परीक्षा केंद्र क्रमांक
B3: =rn_01!$B$3 -> GSSS Malutana (12345)
B4: परीक्षा कक्ष / हॉल क्रमांक
B5: =rn_01!$K$10 -> 10
B6: परीक्षा दिनांक (दिवस) ... से ... तक
B7: =rn_01!$B$7 -> 01-03-2025 | C7: =IF(B7="","",TEXT(B7,"DDDD")) -> Saturday | D7: =rn_01!$D$7 -> 22-05-2025 | E7: =IF(D7="","",TEXT(D7,"DDDD")) -> Thursday
B8: परीक्षार्थी रोल नंबर ... से ... तक
B9: =IF(B14>0,B15,IF(C14>0,C15,IF(D14>0,D15,IF(E14>0,E15,0)))) -> 651 | D9: =IF(E14>0,LOOKUP(2,1/(E15:E34<>""),E15:E34),IF(D14>0,LOOKUP(2,1/(D15:D34<>""),D15:D34),IF(C14>0,LOOKUP(2,1/(C15:C34<>""),C15:C34),IF(B14>0,LOOKUP(2,1/(B15:B34<>""),B15:B34),0)))) -> 666
B10: कुल सम्मिलित परीक्षार्थी
B11: =COUNTIF($B$15:$E$34,">0") -> 31
B12: परीक्षार्थी बैठक व्यवस्था
B13: पंक्ति 1 | C13: पंक्ति 2 | D13: पंक्ति 3 | E13: पंक्ति 4
B14: =rn_01!L10 -> 10 | C14: =rn_01!M10 -> 6 | D14: =rn_01!N10 -> 3 | E14: =rn_01!O10 -> 12
B15: =IF(ROW(B1)-1>=$B$14,"",OFFSET(INDIRECT(MID(CELL("filename",roll!$A$15),FIND("]",CELL("filename",roll!$A$15))+1,31)&"!"&ADDRESS(MATCH(rn_09!$D$9,roll!C:C,0)+1,3,4)),ROW(B1)-1,0)) -> 651 | C15: =IF(ROW(B1)-1>=$C$14,"",OFFSET(INDIRECT(MID(CELL("filename",roll!$A$15),FIND("]",CELL("filename",roll!$A$15))+1,31)&"!"&ADDRESS(MATCH(rn_09!$D$9,roll!C:C,0)+1,3,4)),ROW(B1)-1+SUM($B$14:$B$14),0)) -> 656 | D15: =IF(ROW(B1)-1>=$D$14,"",OFFSET(INDIRECT(MID(CELL("filename",roll!$A$15),FIND("]",CELL("filename",roll!$A$15))+1,31)&"!"&ADDRESS(MATCH(rn_09!$D$9,roll!C:C,0)+1,3,4)),ROW(B1)-1+SUM($B$14:$C$14),0)) -> 659 | E15: =IF(ROW(B1)-1>=$E$14,"",OFFSET(INDIRECT(MID(CELL("filename",roll!$A$15),FIND("]",CELL("filename",roll!$A$15))+1,31)&"!"&ADDRESS(MATCH(rn_09!$D$9,roll!C:C,0)+1,3,4)),ROW(B1)-1+SUM($B$14:$D$14),0)) -> 10161 | F15: =IF(SUM(B15:E15)>0,1,"") -> 1
B16: =IF(ROW(B2)-1>=$B$14,"",OFFSET(INDIRECT(MID(CELL("filename",roll!$A$15),FIND("]",CELL("filename",roll!$A$15))+1,31)&"!"&ADDRESS(MATCH(rn_09!$D$9,roll!C:C,0)+1,3,4)),ROW(B2)-1,0)) -> 10152 | C16: =IF(ROW(B2)-1>=$C$14,"",OFFSET(INDIRECT(MID(CELL("filename",roll!$A$15),FIND("]",CELL("filename",roll!$A$15))+1,31)&"!"&ADDRESS(MATCH(rn_09!$D$9,roll!C:C,0)+1,3,4)),ROW(B2)-1+SUM($B$14:$B$14),0)) -> 10157 | D16: =IF(ROW(B2)-1>=$D$14,"",OFFSET(INDIRECT(MID(CELL("filename",roll!$A$15),FIND("]",CELL("filename",roll!$A$15))+1,31)&"!"&ADDRESS(MATCH(rn_09!$D$9,roll!C:C,0)+1,3,4)),ROW(B2)-1+SUM($B$14:$C$14),0)) -> 10160 | E16: =IF(ROW(B2)-1>=$E$14,"",OFFSET(INDIRECT(MID(CELL("filename",roll!$A$15),FIND("]",CELL("filename",roll!$A$15))+1,31)&"!"&ADDRESS(MATCH(rn_09!$D$9,roll!C:C,0)+1,3,4)),ROW(B2)-1+SUM($B$14:$D$14),0)) -> 661 | F16: =IF(SUM(B16:E16)>0,1,"") -> 1
B17: =IF(ROW(B3)-1>=$B$14,"",OFFSET(INDIRECT(MID(CELL("filename",roll!$A$15),FIND("]",CELL("filename",roll!$A$15))+1,31)&"!"&ADDRESS(MATCH(rn_09!$D$9,roll!C:C,0)+1,3,4)),ROW(B3)-1,0)) -> 652 | C17: =IF(ROW(B3)-1>=$C$14,"",OFFSET(INDIRECT(MID(CELL("filename",roll!$A$15),FIND("]",CELL("filename",roll!$A$15))+1,31)&"!"&ADDRESS(MATCH(rn_09!$D$9,roll!C:C,0)+1,3,4)),ROW(B3)-1+SUM($B$14:$B$14),0)) -> 657 | D17: =IF(ROW(B3)-1>=$D$14,"",OFFSET(INDIRECT(MID(CELL("filename",roll!$A$15),FIND("]",CELL("filename",roll!$A$15))+1,31)&"!"&ADDRESS(MATCH(rn_09!$D$9,roll!C:C,0)+1,3,4)),ROW(B3)-1+SUM($B$14:$C$14),0)) -> 660 | E17: =IF(ROW(B3)-1>=$E$14,"",OFFSET(INDIRECT(MID(CELL("filename",roll!$A$15),FIND("]",CELL("filename",roll!$A$15))+1,31)&"!"&ADDRESS(MATCH(rn_09!$D$9,roll!C:C,0)+1,3,4)),ROW(B3)-1+SUM($B$14:$D$14),0)) -> 10162 | F17: 1
B18: =IF(ROW(B4)-1>=$B$14,"",OFFSET(INDIRECT(MID(CELL("filename",roll!$A$15),FIND("]",CELL("filename",roll!$A$15))+1,31)&"!"&ADDRESS(MATCH(rn_09!$D$9,roll!C:C,0)+1,3,4)),ROW(B4)-1,0)) -> 10153 | C18: =IF(ROW(B4)-1>=$C$14,"",OFFSET(INDIRECT(MID(CELL("filename",roll!$A$15),FIND("]",CELL("filename",roll!$A$15))+1,31)&"!"&ADDRESS(MATCH(rn_09!$D$9,roll!C:C,0)+1,3,4)),ROW(B4)-1+SUM($B$14:$B$14),0)) -> 10158 | D18: =IF(ROW(B4)-1>=$D$14,"",OFFSET(INDIRECT(MID(CELL("filename",roll!$A$15),FIND("]",CELL("filename",roll!$A$15))+1,31)&"!"&ADDRESS(MATCH(rn_09!$D$9,roll!C:C,0)+1,3,4)),ROW(B4)-1+SUM($B$14:$C$14),0)) ->  | E18: =IF(ROW(B4)-1>=$E$14,"",OFFSET(INDIRECT(MID(CELL("filename",roll!$A$15),FIND("]",CELL("filename",roll!$A$15))+1,31)&"!"&ADDRESS(MATCH(rn_09!$D$9,roll!C:C,0)+1,3,4)),ROW(B4)-1+SUM($B$14:$D$14),0)) -> 662 | F18: 1
B19: =IF(ROW(B5)-1>=$B$14,"",OFFSET(INDIRECT(MID(CELL("filename",roll!$A$15),FIND("]",CELL("filename",roll!$A$15))+1,31)&"!"&ADDRESS(MATCH(rn_09!$D$9,roll!C:C,0)+1,3,4)),ROW(B5)-1,0)) -> 653 | C19: =IF(ROW(B5)-1>=$C$14,"",OFFSET(INDIRECT(MID(CELL("filename",roll!$A$15),FIND("]",CELL("filename",roll!$A$15))+1,31)&"!"&ADDRESS(MATCH(rn_09!$D$9,roll!C:C,0)+1,3,4)),ROW(B5)-1+SUM($B$14:$B$14),0)) -> 658 | D19: =IF(ROW(B5)-1>=$D$14,"",OFFSET(INDIRECT(MID(CELL("filename",roll!$A$15),FIND("]",CELL("filename",roll!$A$15))+1,31)&"!"&ADDRESS(MATCH(rn_09!$D$9,roll!C:C,0)+1,3,4)),ROW(B5)-1+SUM($B$14:$C$14),0)) ->  | E19: =IF(ROW(B5)-1>=$E$14,"",OFFSET(INDIRECT(MID(CELL("filename",roll!$A$15),FIND("]",CELL("filename",roll!$A$15))+1,31)&"!"&ADDRESS(MATCH(rn_09!$D$9,roll!C:C,0)+1,3,4)),ROW(B5)-1+SUM($B$14:$D$14),0)) -> 10163 | F19: 1
B20: =IF(ROW(B6)-1>=$B$14,"",OFFSET(INDIRECT(MID(CELL("filename",roll!$A$15),FIND("]",CELL("filename",roll!$A$15))+1,31)&"!"&ADDRESS(MATCH(rn_09!$D$9,roll!C:C,0)+1,3,4)),ROW(B6)-1,0)) -> 10154 | C20: =IF(ROW(B6)-1>=$C$14,"",OFFSET(INDIRECT(MID(CELL("filename",roll!$A$15),FIND("]",CELL("filename",roll!$A$15))+1,31)&"!"&ADDRESS(MATCH(rn_09!$D$9,roll!C:C,0)+1,3,4)),ROW(B6)-1+SUM($B$14:$B$14),0)) -> 10159 | D20: =IF(ROW(B6)-1>=$D$14,"",OFFSET(INDIRECT(MID(CELL("filename",roll!$A$15),FIND("]",CELL("filename",roll!$A$15))+1,31)&"!"&ADDRESS(MATCH(rn_09!$D$9,roll!C:C,0)+1,3,4)),ROW(B6)-1+SUM($B$14:$C$14),0)) ->  | E20: =IF(ROW(B6)-1>=$E$14,"",OFFSET(INDIRECT(MID(CELL("filename",roll!$A$15),FIND("]",CELL("filename",roll!$A$15))+1,31)&"!"&ADDRESS(MATCH(rn_09!$D$9,roll!C:C,0)+1,3,4)),ROW(B6)-1+SUM($B$14:$D$14),0)) -> 663 | F20: 1
B21: =IF(ROW(B7)-1>=$B$14,"",OFFSET(INDIRECT(MID(CELL("filename",roll!$A$15),FIND("]",CELL("filename",roll!$A$15))+1,31)&"!"&ADDRESS(MATCH(rn_09!$D$9,roll!C:C,0)+1,3,4)),ROW(B7)-1,0)) -> 654 | C21: =IF(ROW(B7)-1>=$C$14,"",OFFSET(INDIRECT(MID(CELL("filename",roll!$A$15),FIND("]",CELL("filename",roll!$A$15))+1,31)&"!"&ADDRESS(MATCH(rn_09!$D$9,roll!C:C,0)+1,3,4)),ROW(B7)-1+SUM($B$14:$B$14),0)) ->  | D21: =IF(ROW(B7)-1>=$D$14,"",OFFSET(INDIRECT(MID(CELL("filename",roll!$A$15),FIND("]",CELL("filename",roll!$A$15))+1,31)&"!"&ADDRESS(MATCH(rn_09!$D$9,roll!C:C,0)+1,3,4)),ROW(B7)-1+SUM($B$14:$C$14),0)) ->  | E21: =IF(ROW(B7)-1>=$E$14,"",OFFSET(INDIRECT(MID(CELL("filename",roll!$A$15),FIND("]",CELL("filename",roll!$A$15))+1,31)&"!"&ADDRESS(MATCH(rn_09!$D$9,roll!C:C,0)+1,3,4)),ROW(B7)-1+SUM($B$14:$D$14),0)) -> 10164 | F21: 1
B22: =IF(ROW(B8)-1>=$B$14,"",OFFSET(INDIRECT(MID(CELL("filename",roll!$A$15),FIND("]",CELL("filename",roll!$A$15))+1,31)&"!"&ADDRESS(MATCH(rn_09!$D$9,roll!C:C,0)+1,3,4)),ROW(B8)-1,0)) -> 10155 | C22: =IF(ROW(B8)-1>=$C$14,"",OFFSET(INDIRECT(MID(CELL("filename",roll!$A$15),FIND("]",CELL("filename",roll!$A$15))+1,31)&"!"&ADDRESS(MATCH(rn_09!$D$9,roll!C:C,0)+1,3,4)),ROW(B8)-1+SUM($B$14:$B$14),0)) ->  | D22: =IF(ROW(B8)-1>=$D$14,"",OFFSET(INDIRECT(MID(CELL("filename",roll!$A$15),FIND("]",CELL("filename",roll!$A$15))+1,31)&"!"&ADDRESS(MATCH(rn_09!$D$9,roll!C:C,0)+1,3,4)),ROW(B8)-1+SUM($B$14:$C$14),0)) ->  | E22: =IF(ROW(B8)-1>=$E$14,"",OFFSET(INDIRECT(MID(CELL("filename",roll!$A$15),FIND("]",CELL("filename",roll!$A$15))+1,31)&"!"&ADDRESS(MATCH(rn_09!$D$9,roll!C:C,0)+1,3,4)),ROW(B8)-1+SUM($B$14:$D$14),0)) -> 664 | F22: 1
B23: =IF(ROW(B9)-1>=$B$14,"",OFFSET(INDIRECT(MID(CELL("filename",roll!$A$15),FIND("]",CELL("filename",roll!$A$15))+1,31)&"!"&ADDRESS(MATCH(rn_09!$D$9,roll!C:C,0)+1,3,4)),ROW(B9)-1,0)) -> 655 | C23: =IF(ROW(B9)-1>=$C$14,"",OFFSET(INDIRECT(MID(CELL("filename",roll!$A$15),FIND("]",CELL("filename",roll!$A$15))+1,31)&"!"&ADDRESS(MATCH(rn_09!$D$9,roll!C:C,0)+1,3,4)),ROW(B9)-1+SUM($B$14:$B$14),0)) ->  | D23: =IF(ROW(B9)-1>=$D$14,"",OFFSET(INDIRECT(MID(CELL("filename",roll!$A$15),FIND("]",CELL("filename",roll!$A$15))+1,31)&"!"&ADDRESS(MATCH(rn_09!$D$9,roll!C:C,0)+1,3,4)),ROW(B9)-1+SUM($B$14:$C$14),0)) ->  | E23: =IF(ROW(B9)-1>=$E$14,"",OFFSET(INDIRECT(MID(CELL("filename",roll!$A$15),FIND("]",CELL("filename",roll!$A$15))+1,31)&"!"&ADDRESS(MATCH(rn_09!$D$9,roll!C:C,0)+1,3,4)),ROW(B9)-1+SUM($B$14:$D$14),0)) -> 10165 | F23: 1
B24: =IF(ROW(B10)-1>=$B$14,"",OFFSET(INDIRECT(MID(CELL("filename",roll!$A$15),FIND("]",CELL("filename",roll!$A$15))+1,31)&"!"&ADDRESS(MATCH(rn_09!$D$9,roll!C:C,0)+1,3,4)),ROW(B10)-1,0)) -> 10156 | C24: =IF(ROW(B10)-1>=$C$14,"",OFFSET(INDIRECT(MID(CELL("filename",roll!$A$15),FIND("]",CELL("filename",roll!$A$15))+1,31)&"!"&ADDRESS(MATCH(rn_09!$D$9,roll!C:C,0)+1,3,4)),ROW(B10)-1+SUM($B$14:$B$14),0)) ->  | D24: =IF(ROW(B10)-1>=$D$14,"",OFFSET(INDIRECT(MID(CELL("filename",roll!$A$15),FIND("]",CELL("filename",roll!$A$15))+1,31)&"!"&ADDRESS(MATCH(rn_09!$D$9,roll!C:C,0)+1,3,4)),ROW(B10)-1+SUM($B$14:$C$14),0)) ->  | E24: =IF(ROW(B10)-1>=$E$14,"",OFFSET(INDIRECT(MID(CELL("filename",roll!$A$15),FIND("]",CELL("filename",roll!$A$15))+1,31)&"!"&ADDRESS(MATCH(rn_09!$D$9,roll!C:C,0)+1,3,4)),ROW(B10)-1+SUM($B$14:$D$14),0)) -> 665 | F24: 1
B25: =IF(ROW(B11)-1>=$B$14,"",OFFSET(INDIRECT(MID(CELL("filename",roll!$A$15),FIND("]",CELL("filename",roll!$A$15))+1,31)&"!"&ADDRESS(MATCH(rn_09!$D$9,roll!C:C,0)+1,3,4)),ROW(B11)-1,0)) ->  | C25: =IF(ROW(B11)-1>=$C$14,"",OFFSET(INDIRECT(MID(CELL("filename",roll!$A$15),FIND("]",CELL("filename",roll!$A$15))+1,31)&"!"&ADDRESS(MATCH(rn_09!$D$9,roll!C:C,0)+1,3,4)),ROW(B11)-1+SUM($B$14:$B$14),0)) ->  | D25: =IF(ROW(B11)-1>=$D$14,"",OFFSET(INDIRECT(MID(CELL("filename",roll!$A$15),FIND("]",CELL("filename",roll!$A$15))+1,31)&"!"&ADDRESS(MATCH(rn_09!$D$9,roll!C:C,0)+1,3,4)),ROW(B11)-1+SUM($B$14:$C$14),0)) ->  | E25: =IF(ROW(B11)-1>=$E$14,"",OFFSET(INDIRECT(MID(CELL("filename",roll!$A$15),FIND("]",CELL("filename",roll!$A$15))+1,31)&"!"&ADDRESS(MATCH(rn_09!$D$9,roll!C:C,0)+1,3,4)),ROW(B11)-1+SUM($B$14:$D$14),0)) -> 10166 | F25: 1
B26: =IF(ROW(B12)-1>=$B$14,"",OFFSET(INDIRECT(MID(CELL("filename",roll!$A$15),FIND("]",CELL("filename",roll!$A$15))+1,31)&"!"&ADDRESS(MATCH(rn_09!$D$9,roll!C:C,0)+1,3,4)),ROW(B12)-1,0)) ->  | C26: =IF(ROW(B12)-1>=$C$14,"",OFFSET(INDIRECT(MID(CELL("filename",roll!$A$15),FIND("]",CELL("filename",roll!$A$15))+1,31)&"!"&ADDRESS(MATCH(rn_09!$D$9,roll!C:C,0)+1,3,4)),ROW(B12)-1+SUM($B$14:$B$14),0)) ->  | D26: =IF(ROW(B12)-1>=$D$14,"",OFFSET(INDIRECT(MID(CELL("filename",roll!$A$15),FIND("]",CELL("filename",roll!$A$15))+1,31)&"!"&ADDRESS(MATCH(rn_09!$D$9,roll!C:C,0)+1,3,4)),ROW(B12)-1+SUM($B$14:$C$14),0)) ->  | E26: =IF(ROW(B12)-1>=$E$14,"",OFFSET(INDIRECT(MID(CELL("filename",roll!$A$15),FIND("]",CELL("filename",roll!$A$15))+1,31)&"!"&ADDRESS(MATCH(rn_09!$D$9,roll!C:C,0)+1,3,4)),ROW(B12)-1+SUM($B$14:$D$14),0)) -> 666 | F26: 1
B27: =IF(ROW(B13)-1>=$B$14,"",OFFSET(INDIRECT(MID(CELL("filename",roll!$A$15),FIND("]",CELL("filename",roll!$A$15))+1,31)&"!"&ADDRESS(MATCH(rn_09!$D$9,roll!C:C,0)+1,3,4)),ROW(B13)-1,0)) ->  | C27: =IF(ROW(B13)-1>=$C$14,"",OFFSET(INDIRECT(MID(CELL("filename",roll!$A$15),FIND("]",CELL("filename",roll!$A$15))+1,31)&"!"&ADDRESS(MATCH(rn_09!$D$9,roll!C:C,0)+1,3,4)),ROW(B13)-1+SUM($B$14:$B$14),0)) ->  | D27: =IF(ROW(B13)-1>=$D$14,"",OFFSET(INDIRECT(MID(CELL("filename",roll!$A$15),FIND("]",CELL("filename",roll!$A$15))+1,31)&"!"&ADDRESS(MATCH(rn_09!$D$9,roll!C:C,0)+1,3,4)),ROW(B13)-1+SUM($B$14:$C$14),0)) ->  | E27: =IF(ROW(B13)-1>=$E$14,"",OFFSET(INDIRECT(MID(CELL("filename",roll!$A$15),FIND("]",CELL("filename",roll!$A$15))+1,31)&"!"&ADDRESS(MATCH(rn_09!$D$9,roll!C:C,0)+1,3,4)),ROW(B13)-1+SUM($B$14:$D$14),0)) -> 
B28: =IF(ROW(B14)-1>=$B$14,"",OFFSET(INDIRECT(MID(CELL("filename",roll!$A$15),FIND("]",CELL("filename",roll!$A$15))+1,31)&"!"&ADDRESS(MATCH(rn_09!$D$9,roll!C:C,0)+1,3,4)),ROW(B14)-1,0)) ->  | C28: =IF(ROW(B14)-1>=$C$14,"",OFFSET(INDIRECT(MID(CELL("filename",roll!$A$15),FIND("]",CELL("filename",roll!$A$15))+1,31)&"!"&ADDRESS(MATCH(rn_09!$D$9,roll!C:C,0)+1,3,4)),ROW(B14)-1+SUM($B$14:$B$14),0)) ->  | D28: =IF(ROW(B14)-1>=$D$14,"",OFFSET(INDIRECT(MID(CELL("filename",roll!$A$15),FIND("]",CELL("filename",roll!$A$15))+1,31)&"!"&ADDRESS(MATCH(rn_09!$D$9,roll!C:C,0)+1,3,4)),ROW(B14)-1+SUM($B$14:$C$14),0)) ->  | E28: =IF(ROW(B14)-1>=$E$14,"",OFFSET(INDIRECT(MID(CELL("filename",roll!$A$15),FIND("]",CELL("filename",roll!$A$15))+1,31)&"!"&ADDRESS(MATCH(rn_09!$D$9,roll!C:C,0)+1,3,4)),ROW(B14)-1+SUM($B$14:$D$14),0)) -> 
B29: =IF(ROW(B15)-1>=$B$14,"",OFFSET(INDIRECT(MID(CELL("filename",roll!$A$15),FIND("]",CELL("filename",roll!$A$15))+1,31)&"!"&ADDRESS(MATCH(rn_09!$D$9,roll!C:C,0)+1,3,4)),ROW(B15)-1,0)) ->  | C29: =IF(ROW(B15)-1>=$C$14,"",OFFSET(INDIRECT(MID(CELL("filename",roll!$A$15),FIND("]",CELL("filename",roll!$A$15))+1,31)&"!"&ADDRESS(MATCH(rn_09!$D$9,roll!C:C,0)+1,3,4)),ROW(B15)-1+SUM($B$14:$B$14),0)) ->  | D29: =IF(ROW(B15)-1>=$D$14,"",OFFSET(INDIRECT(MID(CELL("filename",roll!$A$15),FIND("]",CELL("filename",roll!$A$15))+1,31)&"!"&ADDRESS(MATCH(rn_09!$D$9,roll!C:C,0)+1,3,4)),ROW(B15)-1+SUM($B$14:$C$14),0)) ->  | E29: =IF(ROW(B15)-1>=$E$14,"",OFFSET(INDIRECT(MID(CELL("filename",roll!$A$15),FIND("]",CELL("filename",roll!$A$15))+1,31)&"!"&ADDRESS(MATCH(rn_09!$D$9,roll!C:C,0)+1,3,4)),ROW(B15)-1+SUM($B$14:$D$14),0)) -> 
B30: =IF(ROW(B16)-1>=$B$14,"",OFFSET(INDIRECT(MID(CELL("filename",roll!$A$15),FIND("]",CELL("filename",roll!$A$15))+1,31)&"!"&ADDRESS(MATCH(rn_09!$D$9,roll!C:C,0)+1,3,4)),ROW(B16)-1,0)) ->  | C30: =IF(ROW(B16)-1>=$C$14,"",OFFSET(INDIRECT(MID(CELL("filename",roll!$A$15),FIND("]",CELL("filename",roll!$A$15))+1,31)&"!"&ADDRESS(MATCH(rn_09!$D$9,roll!C:C,0)+1,3,4)),ROW(B16)-1+SUM($B$14:$B$14),0)) ->  | D30: =IF(ROW(B16)-1>=$D$14,"",OFFSET(INDIRECT(MID(CELL("filename",roll!$A$15),FIND("]",CELL("filename",roll!$A$15))+1,31)&"!"&ADDRESS(MATCH(rn_09!$D$9,roll!C:C,0)+1,3,4)),ROW(B16)-1+SUM($B$14:$C$14),0)) ->  | E30: =IF(ROW(B16)-1>=$E$14,"",OFFSET(INDIRECT(MID(CELL("filename",roll!$A$15),FIND("]",CELL("filename",roll!$A$15))+1,31)&"!"&ADDRESS(MATCH(rn_09!$D$9,roll!C:C,0)+1,3,4)),ROW(B16)-1+SUM($B$14:$D$14),0)) -> 
B31: =IF(ROW(B17)-1>=$B$14,"",OFFSET(INDIRECT(MID(CELL("filename",roll!$A$15),FIND("]",CELL("filename",roll!$A$15))+1,31)&"!"&ADDRESS(MATCH(rn_09!$D$9,roll!C:C,0)+1,3,4)),ROW(B17)-1,0)) ->  | C31: =IF(ROW(B17)-1>=$C$14,"",OFFSET(INDIRECT(MID(CELL("filename",roll!$A$15),FIND("]",CELL("filename",roll!$A$15))+1,31)&"!"&ADDRESS(MATCH(rn_09!$D$9,roll!C:C,0)+1,3,4)),ROW(B17)-1+SUM($B$14:$B$14),0)) ->  | D31: =IF(ROW(B17)-1>=$D$14,"",OFFSET(INDIRECT(MID(CELL("filename",roll!$A$15),FIND("]",CELL("filename",roll!$A$15))+1,31)&"!"&ADDRESS(MATCH(rn_09!$D$9,roll!C:C,0)+1,3,4)),ROW(B17)-1+SUM($B$14:$C$14),0)) ->  | E31: =IF(ROW(B17)-1>=$E$14,"",OFFSET(INDIRECT(MID(CELL("filename",roll!$A$15),FIND("]",CELL("filename",roll!$A$15))+1,31)&"!"&ADDRESS(MATCH(rn_09!$D$9,roll!C:C,0)+1,3,4)),ROW(B17)-1+SUM($B$14:$D$14),0)) -> 
B32: =IF(ROW(B18)-1>=$B$14,"",OFFSET(INDIRECT(MID(CELL("filename",roll!$A$15),FIND("]",CELL("filename",roll!$A$15))+1,31)&"!"&ADDRESS(MATCH(rn_09!$D$9,roll!C:C,0)+1,3,4)),ROW(B18)-1,0)) ->  | C32: =IF(ROW(B18)-1>=$C$14,"",OFFSET(INDIRECT(MID(CELL("filename",roll!$A$15),FIND("]",CELL("filename",roll!$A$15))+1,31)&"!"&ADDRESS(MATCH(rn_09!$D$9,roll!C:C,0)+1,3,4)),ROW(B18)-1+SUM($B$14:$B$14),0)) ->  | D32: =IF(ROW(B18)-1>=$D$14,"",OFFSET(INDIRECT(MID(CELL("filename",roll!$A$15),FIND("]",CELL("filename",roll!$A$15))+1,31)&"!"&ADDRESS(MATCH(rn_09!$D$9,roll!C:C,0)+1,3,4)),ROW(B18)-1+SUM($B$14:$C$14),0)) ->  | E32: =IF(ROW(B18)-1>=$E$14,"",OFFSET(INDIRECT(MID(CELL("filename",roll!$A$15),FIND("]",CELL("filename",roll!$A$15))+1,31)&"!"&ADDRESS(MATCH(rn_09!$D$9,roll!C:C,0)+1,3,4)),ROW(B18)-1+SUM($B$14:$D$14),0)) -> 
B33: =IF(ROW(B19)-1>=$B$14,"",OFFSET(INDIRECT(MID(CELL("filename",roll!$A$15),FIND("]",CELL("filename",roll!$A$15))+1,31)&"!"&ADDRESS(MATCH(rn_09!$D$9,roll!C:C,0)+1,3,4)),ROW(B19)-1,0)) ->  | C33: =IF(ROW(B19)-1>=$C$14,"",OFFSET(INDIRECT(MID(CELL("filename",roll!$A$15),FIND("]",CELL("filename",roll!$A$15))+1,31)&"!"&ADDRESS(MATCH(rn_09!$D$9,roll!C:C,0)+1,3,4)),ROW(B19)-1+SUM($B$14:$B$14),0)) ->  | D33: =IF(ROW(B19)-1>=$D$14,"",OFFSET(INDIRECT(MID(CELL("filename",roll!$A$15),FIND("]",CELL("filename",roll!$A$15))+1,31)&"!"&ADDRESS(MATCH(rn_09!$D$9,roll!C:C,0)+1,3,4)),ROW(B19)-1+SUM($B$14:$C$14),0)) ->  | E33: =IF(ROW(B19)-1>=$E$14,"",OFFSET(INDIRECT(MID(CELL("filename",roll!$A$15),FIND("]",CELL("filename",roll!$A$15))+1,31)&"!"&ADDRESS(MATCH(rn_09!$D$9,roll!C:C,0)+1,3,4)),ROW(B19)-1+SUM($B$14:$D$14),0)) -> 
B34: =IF(ROW(B20)-1>=$B$14,"",OFFSET(INDIRECT(MID(CELL("filename",roll!$A$15),FIND("]",CELL("filename",roll!$A$15))+1,31)&"!"&ADDRESS(MATCH(rn_09!$D$9,roll!C:C,0)+1,3,4)),ROW(B20)-1,0)) ->  | C34: =IF(ROW(B20)-1>=$C$14,"",OFFSET(INDIRECT(MID(CELL("filename",roll!$A$15),FIND("]",CELL("filename",roll!$A$15))+1,31)&"!"&ADDRESS(MATCH(rn_09!$D$9,roll!C:C,0)+1,3,4)),ROW(B20)-1+SUM($B$14:$B$14),0)) ->  | D34: =IF(ROW(B20)-1>=$D$14,"",OFFSET(INDIRECT(MID(CELL("filename",roll!$A$15),FIND("]",CELL("filename",roll!$A$15))+1,31)&"!"&ADDRESS(MATCH(rn_09!$D$9,roll!C:C,0)+1,3,4)),ROW(B20)-1+SUM($B$14:$C$14),0)) ->  | E34: =IF(ROW(B20)-1>=$E$14,"",OFFSET(INDIRECT(MID(CELL("filename",roll!$A$15),FIND("]",CELL("filename",roll!$A$15))+1,31)&"!"&ADDRESS(MATCH(rn_09!$D$9,roll!C:C,0)+1,3,4)),ROW(B20)-1+SUM($B$14:$D$14),0)) -> 
B36: परीक्षा प्रभारी | E36: केन्द्राधीक्षक
B37: =rn_01!$B$37 -> ASD (Lecturer) | E37: =rn_01!$E$37 -> XYZ (Principal)

Sheet pks
A1: pksaini
A2: Auto Examination Seating Arrangement Utility
A3: for 800 candidates (students)
A4: Specially Class Eightth Board Exam
A6: 1. EXAM CENTRE DETAIL
A7: 2. ROLL NUMBER DETAIL
A8: 3. PRINT PDF
A9: 4. FORMAT 1, 2, 3 To unlock these format password are "password"
A10: 5. ROLL NUMBER SERIES 2, 3

Sheet p-2
A1: कार्यालय प्रधानाचार्य एवं अध्यक्ष, प्रारंभिक शिक्षा पूर्णता प्रमाण पत्र परीक्षा, 2024 डाइट अलवर
A2: Email-dietalwar@gmail.com
A3: परीक्षा केंद्र एवं नोडल (संग्रहण) केंद्र व्यय विवरण
B4: परीक्षा केंद्र कोड नंबर : | C4: 80905 | H4: परीक्षार्थी संख्यां : | I4: 164
A5: क्र. सं. | B5: पदनाम- केन्द्राधीक्षक/परीक्षा प्रभारी/पर्यवीक्षक/वीक्षक/सहा कर्मचारी | C5: नाम कार्मिक | D5: कुल दिवस | E5: मानदेय दर | F5: कुल मानदेय | G5: बैंक खाता संख्यां | H5: बैंक एवं शाखा | I5: आई एफ एस सी कोड | J5: एम्प्लोयी आईडी | K5: हस्ताक्षर
A6: 1 | B6: केन्द्राधीक्षक | D6: 6 | E6: 100 | F6: =D6*E6 -> 600
A7: 2 | B7: परीक्षा प्रभारी | D7: 6 | E7: 90 | F7: =D7*E7 -> 540
A8: 3 | B8: वीक्षक/परिवीक्षक | D8: 6 | E8: 80 | F8: 480
A9: 4 | B9: वीक्षक/परिवीक्षक | D9: 5 | E9: 80 | F9: 400
A10: 5 | B10: वीक्षक/परिवीक्षक | D10: 2 | E10: 80 | F10: 160
A11: 6 | B11: वीक्षक/परिवीक्षक | D11: 3 | E11: 80 | F11: 240
A12: 7 | B12: वीक्षक/परिवीक्षक | D12: 6 | E12: 80 | F12: 480
A13: 8 | B13: वीक्षक/परिवीक्षक | D13: 2 | E13: 80 | F13: 160
A14: 9 | B14: वीक्षक/परिवीक्षक | D14: 4 | E14: 80 | F14: 320
A15: 10 | B15: वीक्षक/परिवीक्षक | D15: 3 | E15: 80 | F15: 240
A16: 11 | B16: वीक्षक/परिवीक्षक | D16: 5 | E16: 80 | F16: 400
A17: 12 | B17: वीक्षक/परिवीक्षक | D17: 5 | E17: 80 | F17: 400
A18: 13 | B18: वीक्षक/परिवीक्षक | D18: 6 | E18: 80 | F18: 480
A19: 14 | B19: वीक्षक/परिवीक्षक | D19: 4 | E19: 80 | F19: 320
A20: 15 | B20: वीक्षक/परिवीक्षक | D20: 1 | E20: 80 | F20: 80
A21: 16 | B21: वीक्षक/परिवीक्षक | D21: 2 | E21: 80 | F21: 160
A22: 17 | B22: वीक्षक/परिवीक्षक | D22: 1 | E22: 80 | F22: 80
A23: 18 | B23: वीक्षक/परिवीक्षक | D23: 1 | E23: 80 | F23: 80
A24: 19 | B24: सहायक कर्मचारी | D24: 3 | E24: 50 | F24: 150
A25: 20 | B25: सहायक कर्मचारी | D25: 3 | E25: 50 | F25: 150
A26: मानदेय का कुल योग - | D26: =SUM(D6:D25) -> 74 | E26: =SUM(E6:E25) -> 1570 | F26: =SUM(F6:F25) -> 5920
B28: हस्ताक्षर केन्द्राधीक्षक
B29: नाम केन्द्राधीक्षक :
B30: मोबाइल नंबर :

Sheet p-3
A1: ='p-2'!$A$1 -> कार्यालय प्रधानाचार्य एवं अध्यक्ष, प्रारंभिक शिक्षा पूर्णता प्रमाण पत्र परीक्षा, 2024 डाइट अलवर
A2: ='p-2'!$A$2 -> Email-dietalwar@gmail.com
A3: परीक्षा केंद्र द्वारा बण्डल भेजने का व्यय विवरण
A4: क्र. सं. | B4: कार्मिक का नाम | C4: पद नाम | D4: दिनांक | E4: बण्डल का किराया | F4: कार्मिक का किराया | G4: कुल व्यय | H4: Bank Account Number | I4: Bank Name & Branch Name | J4: Bank IFSC | K4: Employee ID | L4: हस्ताक्षर
A5: 1 | C5: वरिष्ठ अध्या | D5: 2024-03-28 | E5: 0 | F5: 60 | G5: =E5+F5 -> 60
A6: 2 | C6: वरिष्ठ अध्या | D6: 2024-03-29 | E6: 0 | F6: 60 | G6: 60
A7: 3 | C7: वरिष्ठ अध्या | D7: 2024-03-30 | E7: 0 | F7: 60 | G7: 60
A8: 4 | C8: वरिष्ठ अध्या | D8: 2024-03-31 | E8: 0 | F8: 60 | G8: 60
A9: 5 | C9: वरिष्ठ अध्या | D9: 2024-04-01 | E9: 0 | F9: 60 | G9: 60
A10: 6 | C10: वरिष्ठ अध्या | D10: 2024-04-02 | E10: 0 | F10: 60 | G10: 60
A11: मानदेय का कुल योग | E11: =SUM(E5:E10) -> 0 | F11: 360 | G11: =SUM(G5:G10) -> 360
B13: हस्ताक्षर केन्द्राधीक्षक
B14: नाम केन्द्राधीक्षक : | C14: ='p-2'!$C$29 -> 0
B15: मोबाइल नंबर : | C15: ='p-2'!$C$30 -> 0

Sheet p-1
A1: ='p-2'!$A$1 -> कार्यालय प्रधानाचार्य एवं अध्यक्ष, प्रारंभिक शिक्षा पूर्णता प्रमाण पत्र परीक्षा, 2024 डाइट अलवर
A2: ='p-2'!$A$2 -> Email-dietalwar@gmail.com
A3: परीक्षा केंद्र एवं नोडल (संग्रहण) केंद्र व्यय का मदवार इकजाई विवरण
A4: परीक्षा केंद्र कोड नं. - | C4: ='p-2'!$C$4 -> 80905 | D4: परीक्षार्थी संख्यां - | E4: ='p-2'!$I$4 -> 164
A5: क्र.सं. | B5: मदवार व्यय | E5: कुल व्यय
A6: 1 | B6: केन्द्राधीक्षक का मानदेय - | E6: ='p-2'!$F$6 -> 600
A7: 2 | B7: परीक्षा प्रभारी का मानदेय - | E7: ='p-2'!$F$7 -> 540
A8: 3 | B8: परिवीक्षकों का मानदेय - | E8: =80*2*6 -> 960
A9: 4 | B9: वीक्षकों का मानदेय - | E9: =80*7*6 -> 3360
A10: 5 | B10: सहायक कर्मचारियों का मानदेय - | E10: =50*6*2 -> 600
A11: 6 | B11: उत्तर-पुस्तिका जांच हेतु मानदेय - | E11: 0
A12: 7 | B12: परीक्षा केंद्र हेतु स्टेशनरी आदि व्यय हेतु रु. 500/- | E12: 500
A13: 8 | B13: नोडल (संग्रहण) केंद्र के लिए स्टेशनरी आदि व्यय हेतु रु. 1000/- | E13: 0
A14: 9 | B14: उत्तर पुस्तिका परिवहन व्यय | E14: 360
A15: 10 | B15: प्रश्न पत्र पेटिका परिवहन व्यय | E15: 500
A16: 11 | B16: परीक्षा दिवस को पुलिस थाने से प्रश्न पत्र लाने का किराया | E16: 360
A17: सर्व योग | E17: =SUM(E6:E16) -> 7780
B18: बैंक खाता संख्यां जिसमे राशी जमा की जानी हैं -
B19: खाता धारक का नाम -
B20: बैंक शाखा का नाम -
B21: बैंक IFSC कोड
B22: संस्था का TAN नंबर
A23: नोट : नोडल (संग्रहण)/ परीक्षा केंद्र बैंक पासबुक की प्रति जमा करें -
B25: हस्ताक्षर केन्द्राधीक्षक
B26: नाम केन्द्राधीक्षक : | C26: ='p-2'!$C$29 -> 0
B27: मोबाइल नंबर : | C27: ='p-2'!$C$30 -> 0

Sheet rs-2
B2: =rn_01!$B$1 -> Class VIIITH Board Examination, 2025
B3: =rn_01!$B$2 -> परीक्षा केंद्र नाम एवं परीक्षा केंद्र क्रमांक
B4: =rn_01!$B$3 -> GSSS Malutana (12345)
B5: परीक्षार्थी समेकित बैठक व्यवस्था
B6: क्र. सं. | C6: कक्ष क्रमांक | D6: रोल नंबर | G6: कुल परीक्षार्थी
D7: से | E7: तक | F7: कुल
B8: 1 | C8: 001 | F8: =IF(D8="","",E8-D8+1) ->  | G8: =SUM(F8:F9) -> 0
F9: =IF(D9="","",E9-D9+1) -> 
B10: 2 | C10: 002 | G10: =SUM(F10:F11) -> 0
B12: 3 | C12: 003 | G12: =SUM(F12:F13) -> 0
B14: 4 | C14: 004 | G14: =SUM(F14:F15) -> 0
B16: 5 | C16: 005 | G16: =SUM(F16:F17) -> 0
B18: 6 | C18: 006 | G18: =SUM(F18:F19) -> 0
B20: 7 | C20: 007 | G20: =SUM(F20:F21) -> 0
B22: 8 | C22: 008 | G22: =SUM(F22:F23) -> 0
B24: 9 | C24: 009 | G24: =SUM(F24:F25) -> 0
B26: 10 | C26: 010 | G26: =SUM(F26:F27) -> 0
B29: परीक्षा प्रभारी | F29: केन्द्राधीक्षक
B30: =rn_01!$B$37 -> ASD (Lecturer) | F30: =rn_01!$E$37 -> XYZ (Principal)

Sheet rs-3
B2: =rn_01!$B$1 -> Class VIIITH Board Examination, 2025
B3: =rn_01!$B$2 -> परीक्षा केंद्र नाम एवं परीक्षा केंद्र क्रमांक
B4: =rn_01!$B$3 -> GSSS Malutana (12345)
B5: परीक्षार्थी समेकित बैठक व्यवस्था
B6: क्र. सं. | C6: कक्ष क्रमांक | D6: रोल नंबर | G6: कुल परीक्षार्थी
D7: से | E7: तक | F7: कुल
B8: 1 | C8: 001 | D8: 501 | E8: 510 | F8: =IF(D8="","",E8-D8+1) -> 10 | G8: =SUM(F8:F10) -> 10
F9: =IF(D9="","",E9-D9+1) -> 
B11: 2 | C11: 002 | G11: =SUM(F11:F13) -> 0
B14: 3 | C14: 003 | G14: =SUM(F14:F16) -> 0
B17: 4 | C17: 004 | G17: =SUM(F17:F19) -> 0
B20: 5 | C20: 005 | G20: =SUM(F20:F22) -> 0
B23: 6 | C23: 006 | G23: =SUM(F23:F25) -> 0
B26: 7 | C26: 007 | G26: =SUM(F26:F28) -> 0
B29: 8 | C29: 008 | G29: =SUM(F29:F31) -> 0
B32: 9 | C32: 009 | G32: =SUM(F32:F34) -> 0
B35: 10 | C35: 010 | G35: =SUM(F35:F37) -> 0
B39: परीक्षा प्रभारी | F39: केन्द्राधीक्षक
B40: =rn_01!$B$37 -> ASD (Lecturer) | F40: =rn_01!$E$37 -> XYZ (Principal)
